{"text_format":"1","workbook":"xlsx","n_sheets":4,"sheets":["使い方","2021講座イベント情報","個別データ","選択リスト"],"not_rendered":{"charts":0,"images":4,"macros":1,"external_links":2,"defined_names":16,"comments":0,"pivot_tables":0},"unopened":[],"bounds":{"document_bytes":16777216,"sheet_cells":100000,"rows_first":2000,"rows_last":500,"rows_between":2000,"halvings":0,"cell_chars":16384,"cell_head_chars":4096},"cells_cut":0,"cells_raw":0,"read":"whole","date_system":"1900"}

{"sheet":"使い方","index":0,"n_rows":23,"n_cols":6,"rows_kept":23,"cut":false,"hidden":false,"merged":[[1,0,1,4],[22,0,22,4],[0,0,0,3],[1,5,1,8],[16,5,16,8],[0,5,0,7]]}
["検索のかけ方",null,null,null,null,"個別データの表示のさせ方"]
["１　各列毎に検索ができます。項目の行（緑の行）の右下の▼をクリックして、検索したいものを選びます。",null,null,null,null,"１　個別表示させたいデータの番号を選んで、最初の行にあるボタンをクリックします。"]
[]
[]
[]
[]
[]
[]
[]
[]
[]
[]
[]
[]
[]
[]
[null,null,null,null,null,"２　個別データが表示されます。戻る場合には、元のワークシートを選びます。"]
[]
[]
[]
[]
[]
["２　選んだ項目に適合するﾃﾞｰﾀのみを表示します。元に戻すには、（すべて）をクリックします。"]

{"sheet":"2021講座イベント情報","index":1,"n_rows":641,"n_cols":33,"rows_kept":641,"cut":false,"hidden":false,"merged":[[170,12,170,13],[174,12,174,13],[179,24,192,24],[1,26,1,27],[2,26,3,26],[8,26,10,26],[12,26,17,26],[19,26,21,26]]}
["整理番号１","種別２","対象３","事業名４","分類５","開催場所市町村６","事業内容７",null,"開始年８","月９","日10","終了年11","月12","日13","定員14","費用15","費用金額16","開催場所名称17","開催場所住所18","問い合わせ先名称19","問い合わせ先電話番号20","問い合わせ先FAX番号21","問い合わせ先\nE-MAIL22","関連サイトＵＲＬ23","備考24"]
[1,"新規","市町村向け","図書バッグ作り講座","現代的課題 - 子育て・家庭教育","盛岡市","児童保護者を対象とした，図書室利用の際に役立つエコバッグを児童書のデザインを参考にしながら制作。",null,2022,3,null,2022,3,null,null,"無料",null,"盛岡市中央公民館","盛岡市愛宕町14-1","盛岡市中央公民館","019-654-5366","019-653-3505","chuo.ph@city.morioka.iwate.jp","http://www.city.morioka.iwate.jp/kurashi/kokyoshisetsu/kominkan/chuo/index.html","先着順",null,"【選択用リスト】"]
[2,"継続","市町村向け","読書指導員による読み聞かせと絵本の選び方","現代的課題 - 子育て・家庭教育","盛岡市","実際に絵本を紹介しながら，読み聞かせなどの経験豊かな読書指導員から発達段階に合わせた絵本の選び方を学ぶ。【SDGs目標５】",null,2022,2,null,2022,3,null,null,"無料",null,"盛岡市中央公民館","盛岡市愛宕町14-1","盛岡市中央公民館","019-654-5366","019-653-3505","chuo.ph@city.morioka.iwate.jp","http://www.city.morioka.iwate.jp/kurashi/kokyoshisetsu/kominkan/chuo/index.html","先着順",null,"該当あり",null,null,"開催場所\n市町村","盛岡市",null,"現代的課題 - 子育て・家庭教育"]
[3,"継続","市町村向け","わくわく盛岡チャレンジクラブ","現代的課題 - 子育て・家庭教育","盛岡市","子どもたちにさまざまな体験をしてもらい，その経験を通じて，子どもたちの社会への関心と順応度とを高める場とする。",null,2021,7,null,2021,11,null,null,"無料",null,"盛岡市中央公民館","盛岡市愛宕町14-1","盛岡市中央公民館","019-654-5366","019-653-3505","chuo.ph@city.morioka.iwate.jp","http://www.city.morioka.iwate.jp/kurashi/kokyoshisetsu/kominkan/chuo/index.html",null,null,null,"○",null,null,"八幡平市",null,"現代的課題 - 環境・自然保護"]
[4,"継続","市町村向け","高校生のための短歌ゼミ～めざせ短歌甲子園～","教養・文化 - 文学","盛岡市","市内および近郊の高校生を対象として，啄木ゆかりの地で行われる短歌甲子園の開催地である盛岡として，青少年の文学への関心を高めるきっかけづくりを行う。",null,2022,2,null,2022,2,null,null,"無料",null,"盛岡市中央公民館","盛岡市愛宕町14-1","盛岡市中央公民館","019-654-5366","019-653-3505","chuo.ph@city.morioka.iwate.jp","http://www.city.morioka.iwate.jp/kurashi/kokyoshisetsu/kominkan/chuo/index.html",null,null,null,null,null,null,"滝沢市",null,"現代的課題 - 男女共同参画"]
[5,"新規","市町村向け","夏休み・冬休み　学びっ子フィールド","現代的課題 - 子育て・家庭教育","盛岡市","コロナ禍の中で図書館などでの学習スペースの座席数が削減されている昨今，お盆期間などの時期に生徒の長期学習空間を提供し，学校教育の後方支援の場を設ける。",null,2021,8,null,2022,1,null,null,"無料",null,"盛岡市中央公民館","盛岡市愛宕町14-1","盛岡市中央公民館","019-654-5366","019-653-3505","chuo.ph@city.morioka.iwate.jp","http://www.city.morioka.iwate.jp/kurashi/kokyoshisetsu/kominkan/chuo/index.html",null,null,null,null,null,null,"雫石町",null,"現代的課題 - 高齢化・介護・福祉"]
[6,"新規","市町村向け","冬休みお子様昔話映画観賞会","現代的課題 - 子育て・家庭教育","盛岡市","中央地域視聴覚ライブラリーで所蔵する昔話を上映し，子供たちに古典の面白さを感じてもらう場を設ける。",null,2022,1,null,2022,1,null,null,"無料",null,"盛岡市中央公民館","盛岡市愛宕町14-1","盛岡市中央公民館","019-654-5366","019-653-3505","chuo.ph@city.morioka.iwate.jp","http://www.city.morioka.iwate.jp/kurashi/kokyoshisetsu/kominkan/chuo/index.html",null,null,"更新種別","新規",null,null,"葛巻町",null,"現代的課題 - ＮＰＯ・ボランティア"]
[7,"新規","市町村向け","南部家別邸物語","学術一般 - 歴史・地理・民俗","盛岡市","和風建築である別館の風情に触れながら，中央公民館の歩みと連携する南部家の歴史を学ぶ。",null,2021,12,null,2021,12,null,null,"有料","500円","盛岡市中央公民館","盛岡市愛宕町14-1","盛岡市中央公民館","019-654-5366","019-653-3505","chuo.ph@city.morioka.iwate.jp","http://www.city.morioka.iwate.jp/kurashi/kokyoshisetsu/kominkan/chuo/index.html",null,null,null,null,null,null,"岩手町",null,"現代的課題 - まちづくり"]
[8,"継続","市町村向け","少年指導員養成講座","現代的課題 - ＮＰＯ・ボランティア","盛岡市","子ども会等の青少年活動を促進するため，活動に必要な知識・技術の習得を通して，地域に定着した指導者を養成する。",null,2021,7,7,2021,9,25,null,"無料",null,"盛岡市中央公民館","盛岡市愛宕町14-1","盛岡市中央公民館","019-654-5366","019-653-3505","chuo.ph@city.morioka.iwate.jp","http://www.city.morioka.iwate.jp/kurashi/kokyoshisetsu/kominkan/chuo/index.html",null,null,"県民・市町村向け","県民向け",null,null,"紫波町",null,"現代的課題 - 語学・国際理解"]
[9,"継続","市町村向け","少年指導員研修講座","現代的課題 - ＮＰＯ・ボランティア","盛岡市","地域社会教育促進事業と共同で地元の資源を学び，少年を対象としたボランティア指導者として求められる知識や技術向上を図るための研修会を行う。",null,2021,7,null,2021,8,null,null,"無料",null,"盛岡市中央公民館","盛岡市愛宕町14-1","盛岡市中央公民館","019-654-5366","019-653-3505","chuo.ph@city.morioka.iwate.jp","http://www.city.morioka.iwate.jp/kurashi/kokyoshisetsu/kominkan/chuo/index.html",null,null,null,"広域（近隣市町村含む）向け",null,null,"矢巾町",null,"学術一般 - 歴史・地理・民俗"]
[10,"継続","市町村向け","サークル支援講座","教養・文化 - その他","盛岡市","会員数の減少等により運営に支障をきたしている利用サークルに対し，会員募集のための体験講座の支援を行い，サークル活動の活性化を図る。",null,2021,10,null,2021,12,null,null,"有料","500円","盛岡市中央公民館","盛岡市愛宕町14-1","盛岡市中央公民館","019-654-5366","019-653-3505","chuo.ph@city.morioka.iwate.jp","http://www.city.morioka.iwate.jp/kurashi/kokyoshisetsu/kominkan/chuo/index.html",null,null,null,"市町村向け",null,null,"花巻市",null,"学術一般 - 心理・哲学・法律"]
[11,"継続","市町村向け","よくおでんした盛岡へ","学術一般 - 歴史・地理・民俗","盛岡市","盛岡に転入してきた方を対象に，盛岡の歴史や文化に触れる機会の場を設ける。",null,2021,5,11,2021,6,8,null,"有料","500円","盛岡市中央公民館","盛岡市愛宕町14-1","盛岡市中央公民館","019-654-5366","019-653-3505","chuo.ph@city.morioka.iwate.jp","http://www.city.morioka.iwate.jp/kurashi/kokyoshisetsu/kominkan/chuo/index.html",null,null,null,null,null,null,"北上市",null,"学術一般 - 教育"]
[12,"継続","市町村向け","盛岡わけもんカレッジ","教養・文化 - その他","盛岡市","公民館を利用する機会の少ない青年層を対象に，地元で活躍する方々から体験を聞き学び，参加した青年同士の交流を進めながら，盛岡を知り，見つめ直すきっかけとする。",null,2021,7,null,2021,10,null,null,"有料","500円","盛岡市中央公民館","盛岡市愛宕町14-1","盛岡市中央公民館","019-654-5366","019-653-3505","chuo.ph@city.morioka.iwate.jp","http://www.city.morioka.iwate.jp/kurashi/kokyoshisetsu/kominkan/chuo/index.html",null,null,null,null,null,null,"西和賀町",null,"学術一般 - 物理・天文・地学"]
[13,"継続","市町村向け","もりおかミドルアカデミー","教養・文化 - その他","盛岡市","セカンドライフが気になりはじめた世代を対象に，各界で活躍する同年代の方々と情報交換しながら楽しく学ぶ。",null,2021,7,null,2021,10,null,null,"有料","500円","盛岡市中央公民館","盛岡市愛宕町14-1","盛岡市中央公民館","019-654-5366","019-653-3505","chuo.ph@city.morioka.iwate.jp","http://www.city.morioka.iwate.jp/kurashi/kokyoshisetsu/kominkan/chuo/index.html",null,null,null,null,null,null,"奥州市",null,"学術一般 - 自然・動植物"]
[14,"継続","市町村向け","古典文学入門講座","教養・文化 - 文学","盛岡市","日本文学の原点となる平安期文学の成立過程を学ぶ。",null,2021,11,null,2021,12,null,null,"有料","1,000円","盛岡市中央公民館","盛岡市愛宕町14-1","盛岡市中央公民館","019-654-5366","019-653-3505","chuo.ph@city.morioka.iwate.jp","http://www.city.morioka.iwate.jp/kurashi/kokyoshisetsu/kominkan/chuo/index.html",null,null,null,null,null,null,"金ヶ崎町",null,"学術一般 - 医学・薬学"]
[15,"継続","市町村向け","環境講座　自然の不思議","現代的課題 - 環境・自然保護","盛岡市","自然環境の保護が求められる中，生き物の姿を通して身近な環境問題について学習する。",null,2022,2,null,2022,2,null,null,"無料",null,"盛岡市中央公民館","盛岡市愛宕町14-1","盛岡市中央公民館","019-654-5366","019-653-3505","chuo.ph@city.morioka.iwate.jp","http://www.city.morioka.iwate.jp/kurashi/kokyoshisetsu/kominkan/chuo/index.html",null,null,null,null,null,null,"平泉町",null,"学術一般 - その他"]
[16,"継続","市町村向け","防災講座（パネルディスカッション）\nあの3.11から10年～その時テレビは，ラジオはどう動いたか～","学術一般 - その他","盛岡市","10年前の３月11日，報道に携わった関係者はいかに伝えようと奮闘したのかを複数の関係者によるシンポジウム形式で当時を紹介してもらい，視聴者としての防災を意識してもらう場を設ける。",null,2022,3,null,2022,3,null,null,"無料",null,"盛岡市中央公民館","盛岡市愛宕町14-1","盛岡市中央公民館","019-654-5366","019-653-3505","chuo.ph@city.morioka.iwate.jp","http://www.city.morioka.iwate.jp/kurashi/kokyoshisetsu/kominkan/chuo/index.html",null,null,null,null,null,null,"一関市",null,"教養・文化 - 美術・工芸"]
[17,"継続","市町村向け","復興応援　バスツアー","学術一般 - その他","盛岡市","陸前高田の東日本大震災津波伝承館を見学して，復興の歩みを知ることで，これからの防災対応について学習する。",null,2021,12,null,2021,12,null,null,"無料",null,"盛岡市中央公民館","盛岡市愛宕町14-1","盛岡市中央公民館","019-654-5366","019-653-3505","chuo.ph@city.morioka.iwate.jp","http://www.city.morioka.iwate.jp/kurashi/kokyoshisetsu/kominkan/chuo/index.html",null,null,null,null,null,null,"大船渡市",null,"教養・文化 - 音楽"]
[18,"継続","市町村向け","ボランティア講座\n聴覚障害とコミュニケーション","現代的課題 - ＮＰＯ・ボランティア","盛岡市","令和２年に実施した手話講座を継続して行い，聴覚障がい者への理解を深める場を設ける。",null,2021,11,null,2022,2,null,null,"無料",null,"盛岡市中央公民館","盛岡市愛宕町14-1","盛岡市中央公民館","019-654-5366","019-653-3505","chuo.ph@city.morioka.iwate.jp","http://www.city.morioka.iwate.jp/kurashi/kokyoshisetsu/kominkan/chuo/index.html",null,null,null,null,null,null,"陸前高田市",null,"教養・文化 - 文学"]
[19,"新規","市町村向け","目からウロコ～盛岡の先人こぼればなし～先人同士の意外な関係","学術一般 - 歴史・地理・民俗","盛岡市","盛岡の先人たちの隠れた秘話や思わぬエピソードに触れ，人物を身近に感じてもらい，それぞれの生きた時代背景と生涯を学ぶ。",null,2021,10,null,2021,10,null,null,"無料",null,"盛岡市中央公民館","盛岡市愛宕町14-1","盛岡市中央公民館","019-654-5366","019-653-3505","chuo.ph@city.morioka.iwate.jp","http://www.city.morioka.iwate.jp/kurashi/kokyoshisetsu/kominkan/chuo/index.html",null,null,null,null,null,null,"住田町",null,"教養・文化 - 舞踏・演劇"]
[20,"新規","市町村向け","旧街道を歩こう！　","学術一般 - 歴史・地理・民俗","盛岡市","身近にある旧街道を散策し，昔のゆかりの風景を見つけながら当時の面影を想起してもらうことで，地元の魅力の再発見につなげる。",null,2021,11,null,2021,11,null,null,"有料","500円","盛岡市中央公民館","盛岡市愛宕町14-1","盛岡市中央公民館","019-654-5366","019-653-3505","chuo.ph@city.morioka.iwate.jp","http://www.city.morioka.iwate.jp/kurashi/kokyoshisetsu/kominkan/chuo/index.html",null,null,null,null,null,null,"遠野市",null,"教養・文化 - 郷土芸能"]
[21,"新規","市町村向け","英語と英米文化の教養講座","現代的課題 - 語学・国際理解","盛岡市","英語を通じて英語圏文化を学ぶことでカナダビクトリア市との交流促進のきっかけとなることやオリンピックホストタウンとしてのボランティア活動に携わる動機づけにつながる機会を設ける。【SDGs目標17】",null,2022,1,null,2022,2,null,null,"有料","1,000円","盛岡市中央公民館","盛岡市愛宕町14-1","盛岡市中央公民館","019-654-5366","019-653-3505","chuo.ph@city.morioka.iwate.jp","http://www.city.morioka.iwate.jp/kurashi/kokyoshisetsu/kominkan/chuo/index.html",null,null,null,null,null,null,"釜石市",null,"教養・文化 - 料理・お茶・お花・書道"]
[22,"新規","市町村向け","はじめての家庭菜園＆四季の寄せ植えと花のお話","ビジネスライフ - 農林水産","盛岡市","家庭菜園を学び，身近な地球環境について学習する場とする。",null,2021,7,null,2022,3,null,null,"有料","500円（材料費は別途）","盛岡市中央公民館","盛岡市愛宕町14-1","盛岡市中央公民館","019-654-5366","019-653-3505","chuo.ph@city.morioka.iwate.jp","http://www.city.morioka.iwate.jp/kurashi/kokyoshisetsu/kominkan/chuo/index.html",null,null,null,null,null,null,"大槌町",null,"教養・文化 - その他"]
[23,"新規","市町村向け","盛岡のおさけを学ぶ～大人のたしなみ「SAKE」講座～","教養・文化 - その他","盛岡市","南部杜氏ゆかりの地として，江戸時代からの歴史を学びながら，地元で根付いている｢醸造｣を見学して酒どころ盛岡の魅力に触れる。",null,2021,12,null,2021,12,null,null,"有料","500円（教材費・保険料は別途）","盛岡市中央公民館","盛岡市愛宕町14-1","盛岡市中央公民館","019-654-5366","019-653-3505","chuo.ph@city.morioka.iwate.jp","http://www.city.morioka.iwate.jp/kurashi/kokyoshisetsu/kominkan/chuo/index.html",null,null,null,null,null,null,"宮古市",null,"スポーツ・健康 - マラソン・陸上"]
[24,"新規","市町村向け","冬季オリンピック種目を体験し，もりおか　冬のスポーツを楽しもう","スポーツ・健康 - その他","盛岡市","2022年北京オリンピックの応援と，コロナ禍で在宅勤務増加に伴う運動不足解消を目指し，カーリングなどの冬のスポーツを体験する。【SDGs目標３】",null,2022,2,null,2022,2,null,null,"有料","500円","盛岡市アイスリンク","盛岡市本宮五丁目3-3","盛岡市中央公民館","019-654-5366","019-653-3505","chuo.ph@city.morioka.iwate.jp","http://www.city.morioka.iwate.jp/kurashi/kokyoshisetsu/kominkan/chuo/index.html",null,null,null,null,null,null,"山田町",null,"スポーツ・健康 - 球技"]
[25,"新規","市町村向け","こころとからだの癒し講座","スポーツ・健康 - 健康・予防","盛岡市","コロナ禍で巣ごもり生活を余儀なくされている昨今，ストレス解消のためのメンタルトレーニングと軽いストレッチ体操を体験し，健康維持に努める場を設ける。【SDGs目標３】",null,2021,9,null,2021,9,null,null,"有料","500円（教材費・保険料は別途）","盛岡市中央公民館","盛岡市愛宕町14-1","盛岡市中央公民館","019-654-5366","019-653-3505","chuo.ph@city.morioka.iwate.jp","http://www.city.morioka.iwate.jp/kurashi/kokyoshisetsu/kominkan/chuo/index.html",null,null,null,null,null,null,"岩泉町",null,"スポーツ・健康 - 武道"]
[26,"新規","市町村向け","地域のための会計講座（基礎編・決算編）","教養・文化 - その他","盛岡市","地域会計の重要性，会計年度の流れ，仕分け，記帳など経理事務の基礎を学び地域共同体を活性化を支援する場を設ける。【SDGs目標11】",null,2021,10,null,2022,2,null,null,"無料",null,"盛岡市中央公民館","盛岡市愛宕町14-1","盛岡市中央公民館","019-654-5366","019-653-3505","chuo.ph@city.morioka.iwate.jp","http://www.city.morioka.iwate.jp/kurashi/kokyoshisetsu/kominkan/chuo/index.html",null,null,null,null,null,null,"田野畑村",null,"スポーツ・健康 - 水泳"]
[27,"新規","市町村向け","公民館職員がおもてなす公民館フル活用講座：盛岡市中央公民館ってこんなところ！","教養・文化 - その他","盛岡市","企画展示室の工事を終えて７月１日にグランドオープンを迎えるにあたり，施設の内覧を含めた利用案内説明会を行う。",null,2021,7,null,2021,7,null,null,"無料",null,"盛岡市中央公民館","盛岡市愛宕町14-1","盛岡市中央公民館","019-654-5366","019-653-3505","chuo.ph@city.morioka.iwate.jp","http://www.city.morioka.iwate.jp/kurashi/kokyoshisetsu/kominkan/chuo/index.html",null,null,null,null,null,null,"川井村",null,"スポーツ・健康 - スキー・スケート"]
[28,"継続","市町村向け","公民館ってこんなところ「公民館の仲間たち」","教養・文化 - その他","盛岡市","ラウンジスペースを活用して，中央公民館登録社会教育関係団体の活動風景を示す写真展示を行い，サークル活動に関心を持ってもらう場を設け，サークルの会員増を支援する機会を設ける。",null,2021,4,null,2022,3,null,null,"無料",null,"盛岡市中央公民館","盛岡市愛宕町14-1","盛岡市中央公民館","019-654-5366","019-653-3505","chuo.ph@city.morioka.iwate.jp","http://www.city.morioka.iwate.jp/kurashi/kokyoshisetsu/kominkan/chuo/index.html",null,null,null,null,null,null,"久慈市",null,"スポーツ・健康 - 健康・予防"]
[29,"継続","市町村向け","不来方大学院","教養・文化 - その他","盛岡市","現代社会の理解と豊かな老後を築くために，高齢者が相集い，学習活動やクラブ活動を通して相互の親睦を深める。【SDGs目標３】",null,2021,5,null,2021,11,null,null,"有料","自治会費4,500円","盛岡市中央公民館","盛岡市愛宕町14-1","盛岡市中央公民館","019-654-5366","019-653-3505","chuo.ph@city.morioka.iwate.jp","http://www.city.morioka.iwate.jp/kurashi/kokyoshisetsu/kominkan/chuo/index.html",null,null,null,null,null,null,"普代村",null,"スポーツ・健康 - 登山・野外活動"]
[30,"継続","市町村向け","月釜茶会","教養・文化 - 料理・お茶・お花・書道","盛岡市","茶道協会と共催で茶会を開催し，広く市民に茶道と接する機会を提供する。",null,2021,7,null,2022,3,null,null,"有料","当日券1,000円","盛岡市中央公民館","盛岡市愛宕町14-1","盛岡市中央公民館","019-654-5366","019-653-3505","chuo.ph@city.morioka.iwate.jp","http://www.city.morioka.iwate.jp/kurashi/kokyoshisetsu/kominkan/chuo/index.html","5，6月分中止",null,null,null,null,null,"洋野町",null,"スポーツ・健康 - レクリエーション"]
[31,"継続","市町村向け","茶道にチャレンジ！","教養・文化 - 料理・お茶・お花・書道","盛岡市","公民館で行われているお茶会で盛岡茶道五流派を体験し，茶道の心得を学ぶ。",null,2021,7,null,2021,11,null,null,"有料","1,000円","盛岡市中央公民館","盛岡市愛宕町14-1","盛岡市中央公民館","019-654-5366","019-653-3505","chuo.ph@city.morioka.iwate.jp","http://www.city.morioka.iwate.jp/kurashi/kokyoshisetsu/kominkan/chuo/index.html","5，6月分中止",null,null,null,null,null,"野田村",null,"スポーツ・健康 - その他"]
[32,"新規","市町村向け","はじめての絵画教室　","教養・文化 - 美術・工芸","盛岡市","絵を描きたいが，なかなか上手くいかないで躊躇している人たちに，一歩を踏み出すためのコツを教える。",null,2021,8,null,2021,9,null,null,"有料","1,000円","盛岡市中央公民館","盛岡市愛宕町14-1","盛岡市中央公民館","019-654-5366","019-653-3505","chuo.ph@city.morioka.iwate.jp","http://www.city.morioka.iwate.jp/kurashi/kokyoshisetsu/kominkan/chuo/index.html",null,null,null,null,null,null,"二戸市",null,"ビジネスライフ - 経営管理"]
[33,"新規","市町村向け","中央公民館アートフェスタ","教養・文化 - 美術・工芸","盛岡市","企画展示室の供用可能となる機会に，庭園を有する稀有な公民館としての立地条件を生かした屋内外の環境を活用する展示会を開催する。",null,2021,11,null,2021,11,null,null,"無料",null,"盛岡市中央公民館","盛岡市愛宕町14-1","盛岡市中央公民館","019-654-5366","019-653-3505","chuo.ph@city.morioka.iwate.jp","http://www.city.morioka.iwate.jp/kurashi/kokyoshisetsu/kominkan/chuo/index.html",null,null,null,null,null,null,"軽米町",null,"ビジネスライフ - 土木・建築"]
[34,"新規","市町村向け","市民企画講座","教養・文化 - その他","盛岡市","市民の視点で市民及び団体が企画提案を募り事業・講座を実施する。",null,2021,12,null,2021,12,null,null,"有料","500円","盛岡市中央公民館","盛岡市愛宕町14-1","盛岡市中央公民館","019-654-5366","019-653-3505","chuo.ph@city.morioka.iwate.jp","http://www.city.morioka.iwate.jp/kurashi/kokyoshisetsu/kominkan/chuo/index.html",null,null,null,null,null,null,"九戸村",null,"ビジネスライフ - 機械・電気・工学"]
[35,"継続","市町村向け","公開講座","教養・文化 - その他","盛岡市","地域社会における生涯学習を推進するため，家庭教育・社会教育学級及び一般市民を対象に，誰でも参加できる公開講座を開催する。",null,2021,7,null,2021,9,null,null,"無料",null,"盛岡市中央公民館","盛岡市愛宕町14-1","盛岡市中央公民館","019-654-5366","019-653-3505","chuo.ph@city.morioka.iwate.jp","http://www.city.morioka.iwate.jp/kurashi/kokyoshisetsu/kominkan/chuo/index.html",null,null,null,null,null,null,"一戸町",null,"ビジネスライフ - ISO・知的財産"]
[36,"新規","市町村向け","読み聞かせボランティア講座","現代的課題 - ＮＰＯ・ボランティア","盛岡市","読書普及活動の広がりを支援するために，ボランティア育成を図る。",null,2021,9,null,2021,9,null,null,"無料",null,"盛岡市中央公民館","盛岡市愛宕町14-1","盛岡市中央公民館","019-654-5366","019-653-3505","chuo.ph@city.morioka.iwate.jp","http://www.city.morioka.iwate.jp/kurashi/kokyoshisetsu/kominkan/chuo/index.html",null,null,null,null,null,null,null,null,"ビジネスライフ - 農林水産"]
[37,"継続","市町村向け","作って，遊んで，子育てしよう！","現代的課題 - 子育て・家庭教育","盛岡市","身近にある材料を用いたおもちゃ作りをとおして，手作りおもちゃの楽しさを親子で味わうとともに，子育てについて学び合う。",null,2021,5,null,2021,5,null,null,"無料",null,"盛岡市中央公民館太田分館","盛岡市中太田深持9","盛岡市中央公民館太田分館","019-658-1330",null,null,null,null,null,null,null,null,null,null,null,"ビジネスライフ - 産業振興"]
[38,"継続","市町村向け","親子でクリスマス会を楽しもう！","現代的課題 - 子育て・家庭教育","盛岡市","クリスマス会や親子のふれあい遊びをとおして，子育てについての悩みや不安などを語り合う。 ",null,2021,12,null,2021,12,null,null,"無料",null,"盛岡市中央公民館太田分館","盛岡市中太田深持9","盛岡市中央公民館太田分館","019-658-1330",null,null,null,null,null,null,null,null,null,null,null,"ビジネスライフ - その他"]
[39,"継続","市町村向け","曲り家で昔話と読み聞かせを楽しもう！","現代的課題 - 子育て・家庭教育","盛岡市","曲り家で古の人々の暮らしに触れながら，郷土に伝わる昔話や絵本の読み聞かせを楽しむ。",null,2021,8,null,2021,8,null,null,"無料",null,"盛岡市中央公民館太田分館","盛岡市中太田深持9","盛岡市中央公民館太田分館","019-658-1330",null,null,null,null,null,null,null,null,null,null,null,"パソコン - パソコン"]
[40,"継続","市町村向け","夏休み工作教室\n「スノードームを作ってみよう！」","教養・文化 - 美術・工芸","盛岡市","スノードーム作りをとおして，豊かな創造性や感性を育むとともに，夏休み作品作りを楽しむ。",null,2021,8,null,2021,8,null,null,"無料",null,"盛岡市中央公民館太田分館","盛岡市中太田深持9","盛岡市中央公民館太田分館","019-658-1330"]
[41,"継続","市町村向け","ランニング教室","スポーツ・健康 - マラソン・陸上","盛岡市","中・高校生やランニング愛好者が，走りの基本を身につけるとともに，走ることの面白さや心地よさを楽しむ。",null,2021,7,null,2021,1,null,null,"無料",null,"盛岡市中央公民館太田分館","盛岡市中太田深持9","盛岡市中央公民館太田分館","019-658-1330"]
[42,"継続","市町村向け","マラソン教室出前授業","スポーツ・健康 - マラソン・陸上","盛岡市","小学校の校内マラソン大会に向けて，コースの試走や走り方，目標の持ち方などを学習する。",null,2021,9,null,2021,9,null,null,"無料",null,"盛岡市中央公民館太田分館","盛岡市中太田深持9","盛岡市中央公民館太田分館","019-658-1330"]
[43,"継続","市町村向け","まちなかたんけん出前授業","教養・文化 - その他","盛岡市","「まちなかたんけん」の授業を曲り家(太田民俗資料館)で行う。身近にある施設を探検することで，地域への関心や愛着心を育む。",null,2021,11,null,2021,11,null,null,"無料",null,"盛岡市中央公民館太田分館","盛岡市中太田深持9","盛岡市中央公民館太田分館","019-658-1330"]
[44,"継続","市町村向け","冬休み工作教室「パステルアートを楽しもう！」","教養・文化 - 美術・工芸","盛岡市","パステルアートの魅力にふれ，作品作りを楽しむ。",null,2022,1,null,2022,1,null,null,"無料",null,"盛岡市中央公民館太田分館","盛岡市中太田深持9","盛岡市中央公民館太田分館","019-658-1330"]
[45,"継続","市町村向け","スキー教室出前授業","スポーツ・健康 - スキー・スケート","盛岡市","小学校スキー教室において，スキー技能の向上とスキーの楽しさを学ぶ。",null,2022,2,null,2022,2,null,null,"無料",null,"盛岡市中央公民館太田分館","盛岡市中太田深持9","盛岡市中央公民館太田分館","019-658-1330"]
[46,"継続","市町村向け","太田の歴史を学ぼう","学術一般 - 歴史・地理・民俗","盛岡市","曲り家（太田民俗資料館）の整備・移築の経緯や歴史的価値，構造，生活様式の違いなどを学ぶ。",null,2022,2,null,2022,2,null,null,"無料",null,"盛岡市中央公民館太田分館","盛岡市中太田深持9","盛岡市中央公民館太田分館","019-658-1330"]
[47,"継続","市町村向け","太田東小学校八ツ口神楽引継式","学術一般 - 歴史・地理・民俗","盛岡市","卒業する６年生から５年生へ，八ツ口神楽の引継を行う。郷土芸能の持つ魅力や文化を継承することの大切さを学ぶ。",null,2022,2,null,2022,2,null,null,"無料",null,"盛岡市中央公民館太田分館","盛岡市中太田深持9","盛岡市中央公民館太田分館","019-658-1330"]
[48,"新規","市町村向け","やさしい和菓子作り体験","教養・文化 - 料理・お茶・お花・書道","盛岡市","餅菓子・大福・だんご・おはぎなど日本伝統の和菓子を自分の手で作りながら，さまざまな技術や知識を学ぶ。",null,2021,6,null,2021,6,null,null,"無料",null,"盛岡市中央公民館太田分館","盛岡市中太田深持9","盛岡市中央公民館太田分館","019-658-1330"]
[49,"継続","市町村向け","手芸教室「干支のミニ羽子板づ作り」","教養・文化 - 美術・工芸","盛岡市","干支のミニ羽子板作りをとおして，手芸の基礎と応用を学ぶ。",null,2021,11,null,2021,11,null,null,"無料",null,"盛岡市中央公民館太田分館","盛岡市中太田深持9","盛岡市中央公民館太田分館","019-658-1330"]
[50,"継続","市町村向け","講演会「私の人生を語る会」","教養・文化 - その他","盛岡市","地域で活躍する方から，その生き方や考え方，体験などを学ぶ。",null,2022,2,null,2022,2,null,null,"無料",null,"盛岡市中央公民館太田分館","盛岡市中太田深持9","盛岡市中央公民館太田分館","019-658-1330"]
[51,"継続","市町村向け","グランドゴルフ教室","スポーツ・健康 - レクリエーション","盛岡市","気軽に楽しめるグランドゴルフをとおして，運動の楽しさや喜びを体感する。",null,2021,10,null,2021,10,null,null,"無料",null,"盛岡市中央公民館太田分館","盛岡市中太田深持9","盛岡市中央公民館太田分館","019-658-1330"]
[52,"継続","市町村向け","ニュースポーツ教室","スポーツ・健康 - レクリエーション","盛岡市","気軽に楽しめるニュースポーツをとおして，運動の楽しさや喜びを体感する。",null,2022,2,null,2022,2,null,null,"無料",null,"盛岡市中央公民館太田分館","盛岡市中太田深持9","盛岡市中央公民館太田分館","019-658-1330"]
[53,"継続","市町村向け","八ツ口神楽継承活動","教養・文化 - 郷土芸能","盛岡市","太田地区に伝わる郷土芸能(八ツ口神楽)を継承・保存するために，後継者の育成活動を支援する。",null,2021,8,null,2021,8,null,null,"無料",null,"盛岡市中央公民館太田分館","盛岡市中太田深持9","盛岡市中央公民館太田分館","019-658-1330"]
[54,"継続","市町村向け","上鹿妻念仏剣舞継承活動","教養・文化 - 郷土芸能","盛岡市","太田地区に伝わる郷土芸能(上鹿妻念仏剣舞)を継承・保存するために，後継者の育成活動を支援する。",null,2021,8,null,2021,8,null,null,"無料",null,"盛岡市中央公民館太田分館","盛岡市中太田深持9","盛岡市中央公民館太田分館","019-658-1330"]
[55,"継続","市町村向け","上鹿妻田植踊り継承活動","教養・文化 - 郷土芸能","盛岡市","太田地区に伝わる郷土芸能(上鹿妻田植踊り)を継承・保存するために，後継者の育成活動を支援する。",null,2021,8,null,2021,8,null,null,"無料",null,"盛岡市中央公民館太田分館","盛岡市中太田深持9","盛岡市中央公民館太田分館","019-658-1330"]
[56,"継続","市町村向け","小正月行事のつどい","教養・文化 - 郷土芸能","盛岡市","太田地区に伝わる小正月行事を曲り家で再現し，昔の生活の様子とその由来を学ぶとともに，子どもから高齢者まで世代を超えた交流をする。",null,2022,1,null,2022,1,null,null,"無料",null,"盛岡市中央公民館太田分館","盛岡市中太田深持9","盛岡市中央公民館太田分館","019-658-1330"]
[57,"継続","市町村向け","親子ふれあい事業「影絵をみよう」","現代的課題 - 子育て・家庭教育","盛岡市","親子での影絵鑑賞の機会を提供することにより、子の情操豊かな成長を育む機会とし、心豊かな子育ての一助とします。",null,2021,9,18,2021,9,18,"50人","無料",null,"盛岡劇場タウンホール","盛岡市松尾町3-1","盛岡市河南公民館","019-622-2258","019-622-1910","kanan@mfca.jp","https://www.mfca.jp/morigeki/workshop"]
[58,"継続","市町村向け","コラボ事業vol.2　しらたき×かなん×こども「つくってそっちこっちおくよ！」","現代的課題 - 高齢化・介護・福祉","盛岡市","盛岡劇場内に、しらたき工房で制作したグッズ、工房の様子や作者のコメント等を掲示し、活動への理解を深める機会をつくります。また、夏休み期間を利用して親子工作体験を実施します。\n展示／通年　工作体験／7月29日",null,2021,4,null,2022,3,null,"工作8組16人","展示は無料、工作は有料","材料費・保険料700円","盛岡市河南公民館","盛岡市松尾町3-1","盛岡市河南公民館","019-622-2258","019-622-1910","kanan@mfca.jp","https://www.mfca.jp/morigeki/workshop"]
[59,"継続","市町村向け","少年自然教室","現代的課題 - 子育て・家庭教育","盛岡市","自然の中での体験的な活動をとおして自然保護への関心を高め、動植物に対する愛護の心を育てることを目的とします。また、異学校異学年の参加者相互のふれあいを深める機会とし、青少年の健全育成に寄与します。",null,2021,6,19,2022,1,29,"15人","有料","材料費・保険料5,000円","盛岡市立区界高原少年自然の家ほか","宮古市区界2-111\nほか","盛岡市河南公民館","019-622-2258","019-622-1910","kanan@mfca.jp","https://www.mfca.jp/morigeki/workshop"]
[60,"継続","市町村向け","ちあき先生と「英語であそぼう」","現代的課題 - 語学・国際理解","盛岡市","低学年の児童を対象に、歌やゲーム、さまざまな教材をとおして、楽しみながら英語に親しむ機会とします。",null,2022,1,5,2022,1,6,"10人","無料",null,"盛岡市河南公民館","盛岡市松尾町3-1","盛岡市河南公民館","019-622-2258","019-622-1910","kanan@mfca.jp","https://www.mfca.jp/morigeki/workshop"]
[61,"新規","市町村向け","かなんのよる活","教養・文化 - その他","盛岡市","河南公民館周辺を中心に、近隣の店や施設などを訪ねて話を聞く夜の街歩きなどを実施します。日中勤務の方にも仕事後参加してもらえる機会を提供します。（２回開催）",null,2021,7,null,2021,7,null,"12人","有料","保険料ほか600円","盛岡市河南公民館","盛岡市松尾町3-2","盛岡市河南公民館","019-622-2258","019-622-1910","kanan@mfca.jp","https://www.mfca.jp/morigeki/workshop"]
[62,"継続","市町村向け","環境講座","現代的課題 - 環境・自然保護","盛岡市","中津川をビオトープとして観察し、暮らしの近くにある自然に目を向け、郷土の自然を守り、よりよくするためにはどうすればいいかを考える機会を提供します。",null,2021,6,25,2021,6,25,"10人","有料","保険料100円","盛岡市河南公民館及び中津川周辺","盛岡市松尾町3-1","盛岡市河南公民館","019-622-2258","019-622-1910","kanan@mfca.jp","https://www.mfca.jp/morigeki/workshop"]
[63,"継続","市町村向け","いってみ隊であい旅～沿岸、この10年、これから～","現代的課題 - まちづくり","陸前高田市","東日本大震災を風化させない取り組みとして、陸前高田市の史跡、施設等を訪問し、町の歴史や文化を学びこれからについて共に考える機会とします。",null,2021,9,9,2021,9,9,"15人","有料","昼食代・保険料1,500円","陸前高田市の施設等","盛岡市松尾町3-1","盛岡市河南公民館","019-622-2258","019-622-1910","kanan@mfca.jp","https://www.mfca.jp/morigeki/workshop"]
[64,"継続","市町村向け","シニア向けスマホ講座","現代的課題 - 高齢化・介護・福祉","盛岡市","スマートフォンの基本的な使用方法、便利な使い方を学習するとともに、災害対策やトラブル防止策などもあわせて学習する機会を提供します。",null,2021,5,12,2021,5,12,"20人","無料",null,"盛岡市河南公民館","盛岡市松尾町3-1","盛岡市河南公民館","019-622-2258","019-622-1910","kanan@mfca.jp","https://www.mfca.jp/morigeki/workshop"]
[65,"継続","市町村向け","季節の歌をみんなで♪","教養・文化 - 音楽","盛岡市","音楽を楽しみながら心身の健康や心豊かな生活を送る一助となるよう、生涯学習の機会を提供します。",null,2021,6,2,2021,6,30,"50人","有料","受講料・教材費1,200円","盛岡劇場メインホール","盛岡市松尾町3-1","盛岡市河南公民館","019-622-2258","019-622-1910","kanan@mfca.jp","https://www.mfca.jp/morigeki/workshop"]
[66,"継続","市町村向け","岩手の文化入門講座","教養・文化 - 郷土芸能","盛岡市","地域に脈々と継承される伝統芸能や民間伝承について学びます。最終回には実演鑑賞会を開催し、河南地区及び県内の民族芸能団体の演舞を鑑賞します。",null,2021,9,null,2021,10,31,"25人","有料","受講料500円","盛岡市河南公民館","盛岡市松尾町3-1","盛岡市河南公民館","019-622-2258","019-622-1910","kanan@mfca.jp","https://www.mfca.jp/morigeki/workshop"]
[67,"継続","市町村向け","河南地区防災講座","現代的課題 - まちづくり","盛岡市","市民が地域の防災、減災について考える機会を提供します。",null,2022,3,null,2022,3,null,null,"無料",null,"盛岡市河南公民館","盛岡市松尾町3-1","盛岡市河南公民館","019-622-2258","019-622-1910","kanan@mfca.jp","https://www.mfca.jp/morigeki/workshop"]
[68,"継続","市町村向け","もりげきサロン","現代的課題 - 高齢化・介護・福祉","盛岡市","河南地区を中心に誰もが気軽に参加できる「憩いや語らいの居場所」づくりの一環として一室を開放し、集いの場を提供します。",null,2021,4,13,2022,3,22,null,"無料",null,"盛岡市河南公民館","盛岡市松尾町3-1","盛岡市河南公民館","019-622-2258","019-622-1910","kanan@mfca.jp","https://www.mfca.jp/morigeki/workshop"]
[69,"継続","市町村向け","岩手の文化入門講座・河南地区地元学講座「民俗芸能実演鑑賞会」","教養・文化 - 郷土芸能","盛岡市","河南地区を中心とした市民の相互交流と地域振興運動を促進し、地域の歴史や文化を掘り起こすことを目的とした講座等を行います。",null,2021,10,31,2021,10,31,null,"無料",null,"盛岡劇場・河南公民館","盛岡市松尾町3-1","盛岡市河南公民館","019-622-2258","019-622-1910","kanan@mfca.jp","https://www.mfca.jp/morigeki/workshop"]
[70,"新規","市町村向け","子育て応援講座「いっしょに　あ・そ・ぼ！」","現代的課題 - 子育て・家庭教育","盛岡市","子育て中の親が子育てに必要な情報の提供や仲間づくり、情報交換ができる場を提供する。（全8回）",null,2021,5,12,2022,3,9,"各10組","無料",null,"盛岡市都南公民館","盛岡市永井24-10-1","盛岡市都南公民館","019-637-6611","019-637-8700",null,"http://www.mfca.jp/kyarahall/workshop"]
[71,"継続","市町村向け","新米ママの子育て講座","現代的課題 - 子育て・家庭教育","盛岡市","子育て中の母親が、学習しながら不安を解消し、仲間づくりをとおして自信をもって子どもに接していくことができるように支援する。(全5回）",null,2021,6,22,2021,7,21,"15人","有料","保険料・おやつ代等500円","盛岡市都南公民館","盛岡市永井24-10-1","盛岡市都南公民館","019-637-6611","019-637-8700",null,"http://www.mfca.jp/kyarahall/workshop"]
[72,"継続","市町村向け","子育て応援講座「おとうさんと　あ・そ・ぼ！」\n※開催延期","現代的課題 - 子育て・家庭教育","盛岡市","ワンオペ育児が問題視される昨今、父親の育児参加が重要な役割を果たす。赤ちゃんとのふれあいを通して育児について学び、育児の不安を解消し、また父親同士の仲間づくりの機会を提供することで、子育て親育ちの支援を行う。（全3回）",null,2021,6,6,2021,6,20,"10組","無料",null,"盛岡市都南公民館","盛岡市永井24-10-1","盛岡市都南公民館","019-637-6611","019-637-8700",null,"http://www.mfca.jp/kyarahall/workshop"]
[73,"継続","市町村向け","「にこにこルーム」\n※4月開催中止","現代的課題 - 子育て・家庭教育","盛岡市","0歳児からの親子が気軽に集まり、同年代の子どもと遊び、親同士が育児について話し合い交流する。（全6回）",null,2021,4,15,2022,3,17,"なし","無料",null,"盛岡市都南公民館","盛岡市永井24-10-1","盛岡市都南公民館","019-637-6611","019-637-8700",null,"http://www.mfca.jp/kyarahall/workshop"]
[74,"継続","市町村向け","親子リズム講座","現代的課題 - 子育て・家庭教育","盛岡市","講師の指導により、親子が身体を動かして楽しむ。\n（1回×2）",null,2021,9,3,2022,2,18,"各20組","無料",null,"盛岡市都南公民館","盛岡市永井24-10-1","盛岡市都南公民館","019-637-6611","019-637-8700",null,"http://www.mfca.jp/kyarahall/workshop"]
[75,"継続","市町村向け","こんにちはママさん講座（あんあんコース）\n※5月開催中止","現代的課題 - 子育て・家庭教育","盛岡市","子育て家庭の母親を対象に、子どもとの遊びなど専門的な立場からのアドバイスや母親同士の交流を通じて、自分の子育てについて見直したり考えたりする機会とする。（2回×2）",null,2021,5,13,2021,12,9,"各20組","有料","離乳食試食材料費\n100円","盛岡市都南公民館","盛岡市永井24-10-1","盛岡市都南公民館","019-637-6611","019-637-8700",null,"http://www.mfca.jp/kyarahall/workshop"]
[76,"継続","市町村向け","こんにちはママさん講座（とことこコース）","現代的課題 - 子育て・家庭教育","盛岡市","子育て家庭の母親を対象に、子どもとの遊びなど専門的な立場からのアドバイスや母親同士の交流を通じて、自分の子育てについて見直したり考えたりする機会とする。（全3回）",null,2022,1,20,2022,2,3,"20組","有料","おやつ材料費等\n200円","盛岡市都南公民館","盛岡市永井24-10-1","盛岡市都南公民館","019-637-6611","019-637-8700",null,"http://www.mfca.jp/kyarahall/workshop"]
[77,"継続","市町村向け","親子のための防災講座","現代的課題 - 環境・自然保護","盛岡市","子どもにとって魅力的なお菓子というツールを使って、災害時にも役立つ「防災お菓子ポシェット」をつくりながら、防災を親子で考えるきっかけづくりとする。",null,2022,3,5,2022,3,5,"15組","有料","材料費実費","盛岡市都南公民館","盛岡市永井24-10-1","盛岡市都南公民館","019-637-6611","019-637-8700",null,"http://www.mfca.jp/kyarahall/workshop"]
[78,"継続","市町村向け","子どもシネマランド","現代的課題 - 子育て・家庭教育","盛岡市","幼児と小学生が親子で優れた映画を鑑賞し、豊かな情操を育むとともに、親子が触れ合う機会を提供する。（全6回）",null,2021,5,9,2022,3,13,"各60人","無料",null,"盛岡市都南公民館","盛岡市永井24-10-1","盛岡市都南公民館","019-637-6611","019-637-8700",null,"http://www.mfca.jp/kyarahall/workshop"]
[79,"新規","市町村向け","お父さんとつくる！母の日ごはん講座","教養・文化 - 料理・お茶・お花・書道","盛岡市","小中学生と父親が、母親のために作る実習を通して母親の日頃の苦労を敬い感謝の気持ちを表すとともに、親子のふれあいの機会を提供する。",null,2021,5,9,2021,5,9,"6組","有料","2.200円","盛岡市都南公民館","盛岡市永井24-10-1","盛岡市都南公民館","019-637-6611","019-637-8700",null,"http://www.mfca.jp/kyarahall/workshop"]
[80,"継続","市町村向け","親子向け環境セミナー","現代的課題 - 環境・自然保護","盛岡市","環境問題を他人事ではなく、自分事として捉えるために、身近な題材を使って親子で環境問題やSDGsを考える。",null,2021,7,31,2021,7,31,"12組","無料",null,"盛岡市都南公民館","盛岡市永井24-10-1","盛岡市都南公民館","019-637-6611","019-637-8700",null,"http://www.mfca.jp/kyarahall/workshop"]
[81,"継続","市町村向け","それいけ！キャラホール探検隊","現代的課題 - 環境・自然保護","盛岡市","自然体験活動や創作活動をとおして、異年齢の子ども同士が体験的に学び、豊かな人間性を育む。",null,2021,7,28,2021,7,28,"15人","有料","保険料等実費1,200円","盛岡市都南公民館","盛岡市永井24-10-1","盛岡市都南公民館","019-637-6611","019-637-8700",null,"http://www.mfca.jp/kyarahall/workshop"]
[82,"継続","市町村向け","親子の楽しい体験教室（ケーキ製作）","教養・文化 - 料理・お茶・お花・書道","盛岡市","クリスマスケーキの製作をとおして、親子のふれあいやものづくりの楽しさを体感する機会とする。",null,2021,12,12,2021,12,12,"12組","有料","材料費等実費","盛岡市都南公民館","盛岡市永井24-10-1","盛岡市都南公民館","019-637-6611","019-637-8700",null,"http://www.mfca.jp/kyarahall/workshop"]
[83,"継続","市町村向け","親子で楽しく学ぶ吹奏楽講座","教養・文化 - 音楽","盛岡市","楽器にさわったことのない子どもや、吹奏楽に興味のある子どもたちを対象に、楽器のしくみ等について学び、吹奏楽の楽しさを体感する。",null,2022,3,6,2022,3,6,"20組","有料","保険料等実費","盛岡市都南公民館","盛岡市永井24-10-1","盛岡市都南公民館","019-637-6611","019-637-8700",null,"http://www.mfca.jp/kyarahall/workshop"]
[84,"継続","市町村向け","公民館まつりに向けた体験講座","教養・文化 - 舞踏・演劇","盛岡市","平日の放課後の時間を使い、身体を動かす楽しさや仲間との協調性を育む場を提供する。最終回となる公民館まつりで、大ホールでの発表を目標とする。（全6回）",null,2021,9,14,2021,10,17,"15人","有料","保険料等実費","盛岡市都南公民館","盛岡市永井24-10-1","盛岡市都南公民館","019-637-6611","019-637-8700",null,"http://www.mfca.jp/kyarahall/workshop"]
[85,"継続","市町村向け","親子のためのマネーセミナー","現代的課題 - 子育て・家庭教育","盛岡市","ワークショップの「お店屋さんごっこ」を通して、親子で一緒にお金についての大切なことを学び、家庭での金銭教育を考える。",null,2022,2,"未定",2022,2,"未定","10組","無料",null,"盛岡市都南公民館","盛岡市永井24-10-1","盛岡市都南公民館","019-637-6611","019-637-8700",null,"http://www.mfca.jp/kyarahall/workshop"]
[86,"新規","市町村向け","成人のための防災講座","現代的課題 - 環境・自然保護","盛岡市","「いざという時のために備える」ことをすぐにでも実践したくなるようなためになる情報を中心に、防災・減災について学習する。",null,2021,8,29,2021,8,29,"20人","無料",null,"盛岡市都南公民館","盛岡市永井24-10-1","盛岡市都南公民館","019-637-6611","019-637-8700",null,"http://www.mfca.jp/kyarahall/workshop"]
[87,"継続","市町村向け","夜の料理教室","教養・文化 - 料理・お茶・お花・書道","盛岡市","日中忙しい方も参加できる夜に開講。料理の技術や知識習得、また料理を通したコミュニケーションの場を提供し、豊かな生活に役立てる。　　　　　　　　　　　　　　　　　　　　　　　　　　　　　　　　　　　",null,2021,7,30,2021,7,30,"6組","有料","材料費等実費","盛岡市都南公民館","盛岡市永井24-10-1","盛岡市都南公民館","019-637-6611","019-637-8700",null,"http://www.mfca.jp/kyarahall/workshop"]
[88,"継続","市町村向け","先人講座","学術一般 - 歴史・地理・民俗","盛岡市","盛岡の豊かな精神文化の礎を築いた先人について学ぶ機会を提供する。（先人記念館をはじめとする盛岡市文化振興事業団管理博物施設との連携事業。今年度は先人記念館との連携。入館料無料）（全2回）",null,2021,11,12,2021,11,19,"20～30人","無料",null,"盛岡市都南公民館","盛岡市永井24-10-1","盛岡市都南公民館","019-637-6611","019-637-8700",null,"http://www.mfca.jp/kyarahall/workshop"]
[89,"継続","市町村向け","古典文学入門講座","教養・文化 - 文学","盛岡市","わかりやすい解説つきで古典文学を学ぶことにより、時代背景や人々の生活、古典文学への興味関心を持つきっかけとなり、豊かな教養を身につける。（全5回）",null,2021,8,27,2021,9,24,"40人","有料","1,000円","盛岡市都南公民館","盛岡市永井24-10-1","盛岡市都南公民館","019-637-6611","019-637-8700",null,"http://www.mfca.jp/kyarahall/workshop"]
[90,"継続","市町村向け","復興支援事業\n「笑顔をつなごう～三鉄で行く震災学習列車」","現代的課題 - まちづくり","盛岡市","津波伝承館等の施設見学に加え、震災学習列車に乗車し、被災当時の状況と被災地の今を学ぶ。",null,2021,8,"未定",2021,8,"未定","20人","有料","保険料等実費","盛岡市都南公民館","盛岡市永井24-10-1","盛岡市都南公民館","019-637-6611","019-637-8700",null,"http://www.mfca.jp/kyarahall/workshop"]
[91,"継続","市町村向け","大人のための健康講座","スポーツ・健康 - 健康・予防","盛岡市","疲れた体をリラックスする体操やストレッチなどを通して、健康について考え、実践する機会を提供する。",null,2021,6,1,2021,6,15,"15人","有料","保険料72円","盛岡市都南公民館","盛岡市永井24-10-1","盛岡市都南公民館","019-637-6611","019-637-8700",null,"http://www.mfca.jp/kyarahall/workshop"]
[92,"継続","市町村向け","料理教室","教養・文化 - 料理・お茶・お花・書道","盛岡市","楽しくお話を聞きながら、日々の家庭の料理に生かせる知識や技術を学習し、豊かで健康な暮らしに役立てる。",null,2021,11,"未定",2021,11,"未定","未定","有料","材料費等実費","盛岡市都南公民館","盛岡市永井24-10-1","盛岡市都南公民館","019-637-6611","019-637-8700",null,"http://www.mfca.jp/kyarahall/workshop"]
[93,"新規","市町村向け","サロンコンサート","教養・文化 - 音楽","盛岡市","より身近に音楽に親しみ、地域で活動する演奏家について知るとともに市民の教養を高め、豊かな人間性を培う。",null,2022,3,3,2022,3,3,"30人","無料",null,"盛岡市都南公民館","盛岡市永井24-10-1","盛岡市都南公民館","019-637-6611","019-637-8700",null,"http://www.mfca.jp/kyarahall/workshop"]
[94,"新規","市町村向け","はたらく女性応援講座","教養・文化 - その他","盛岡市","日々忙しく働く女性の皆さんへ、将来に役立つマネーセミナーや、楽しい手芸講座など、休日に心身をリフレッシュすることを支援するとともに、公民館利用のきっかけの一助とする。（全2回）",null,2021,7,18,2022,10,3,"各20人","有料\n（手芸講座のみ）","材料費等実費","盛岡市都南公民館","盛岡市永井24-10-1","盛岡市都南公民館","019-637-6611","019-637-8700",null,"http://www.mfca.jp/kyarahall/workshop"]
[95,"継続","市町村向け","シニア元気教室","学術一般 - その他","盛岡市","スマートフォンの基本操作などを学び、シニア世代が快適に過ごせるよう支援する。（全3回）",null,2021,6,23,2022,1,"未定","各10人","無料",null,"盛岡市都南公民館","盛岡市永井24-10-1","盛岡市都南公民館","019-637-6611","019-637-8700",null,"http://www.mfca.jp/kyarahall/workshop"]
[96,"継続","市町村向け","生涯青春講座","現代的課題 - 高齢化・介護・福祉","盛岡市","郷土の先人や歴史、音楽、健康体操や館外研修をとおして、新しい知識を得、充実した時間を提供し、生きがいづくりの一助とする。",null,2021,8,24,2021,9,21,"15～20人","有料","館外研経費等実費","盛岡市都南公民館","盛岡市永井24-10-1","盛岡市都南公民館","019-637-6611","019-637-8700",null,"http://www.mfca.jp/kyarahall/workshop"]
[97,"継続","市町村向け","少年少女合唱教室","教養・文化 - 音楽","盛岡市","歌う楽しさを学ぶことで音楽に親しみ、仲間と力を合わせて美しい合唱を目指すことで創造のよろこびを体験し、豊かな情操を培う。福祉施設等で訪問発表を行うほか、合唱を通じて社会参加を図る。",null,2021,4,17,2021,12,25,"低学年クラス40人\n高学年クラス40人","有料","1,200円","盛岡市都南公民館","盛岡市永井24-10-1","盛岡市都南公民館","019-637-6611","019-637-8700",null,"http://www.mfca.jp/kyarahall/workshop"]
[98,"継続","市町村向け","キャラホール合唱祭","教養・文化 - 音楽","盛岡市","合唱をとおして音楽活動をしている団体等が一堂に会して発表・公開し、相互の交流と発展、文化芸術活動の振興を図る。",null,2021,7,4,2021,7,4,"なし","無料",null,"盛岡市都南公民館","盛岡市永井24-10-1","盛岡市都南公民館","019-637-6611","019-637-8700",null,"http://www.mfca.jp/kyarahall/workshop"]
[99,"継続","市町村向け","童謡・唱歌を歌う会","教養・文化 - 音楽","盛岡市","盛岡市内や近隣市町で活動している合唱の団体・サークルが童謡・唱歌を発表し、広く市民に公開して相互の交流を図るとともに、歌うことの楽しさ・活動の輪を広げる。",null,2021,9,19,2021,9,19,"なし","無料",null,"盛岡市都南公民館","盛岡市永井24-10-1","盛岡市都南公民館","019-637-6611","019-637-8700",null,"http://www.mfca.jp/kyarahall/workshop"]
[100,"継続","市町村向け","都南公民館まつり","教養・文化 - その他","盛岡市","公民館を拠点に学習活動・文化芸術活動を行っている団体等が、日頃の活動成果を発表して相互の交流を図るとともに、学習活動を奨励し、文化を育み、学習の輪を広げる。",null,2021,10,15,2021,10,17,"なし","無料",null,"盛岡市都南公民館","盛岡市永井24-10-1","盛岡市都南公民館","019-637-6611","019-637-8700",null,"http://www.mfca.jp/kyarahall/workshop"]
[101,"継続","市町村向け","親子ホタル観察講座","現代的課題 - 環境・自然保護","盛岡市","自然環境について学習することで、地域の自然を次世代に継承していくための環境保護活動の意欲を高める一助とする。（全2回）",null,2021,7,16,2021,7,20,"各20人","有料","保険料等実費","盛岡市都南公民館","盛岡市永井24-10-1","盛岡市都南公民館","019-637-6611","019-637-8700",null,"http://www.mfca.jp/kyarahall/workshop"]
[102,"継続","市町村向け","移動資料展","学術一般 - 歴史・地理・民俗","盛岡市","都南歴史民俗資料館所蔵資料を公民館で展示し、地域の歴史・文化に関する理解を深める。（全3回）",null,2021,10,29,2021,10,31,"なし","無料",null,"盛岡市都南公民館","盛岡市永井24-10-1","盛岡市都南公民館","019-637-6611","019-637-8700",null,"http://www.mfca.jp/kyarahall/workshop"]
[103,"新規","市町村向け","地元学講座(移動資料展関連企画)","学術一般 - 歴史・地理・民俗","盛岡市","主に都南地域の史跡や先人、民俗芸能に触れ、学ぶことで地域の歴史・文化に関する理解を深め、郷土愛を育む。（全3回）",null,2021,10,29,2021,10,31,"未定","有料","保険料等実費","盛岡市都南公民館","盛岡市永井24-10-1","盛岡市都南公民館","019-637-6611","019-637-8700",null,"http://www.mfca.jp/kyarahall/workshop"]
[104,"継続","市町村向け","おやとこひろば（12回）","現代的課題 - 子育て・家庭教育","盛岡市","0歳児から就園前児を対象に絵本の読み聞かせやいろいろな遊びなどを通して、子供の情操を育て豊富な言葉や運動の基礎を身につけさせる。",null,2021,4,7,2022,3,3,"なし","無料",null,"盛岡市松園地区公民館","盛岡市東松園二丁目５－３","盛岡市松園地区公民館","019-661-8111","019-661-9500","209600_mbx@city.morioka.iwate.jp"]
[105,"継続","市町村向け","お楽しみ映画会（3回）","現代的課題 - 子育て・家庭教育","盛岡市","様々なジャンルの映画を上映し、子供たちの情操を育む。",null,2021,4,26,2021,12,24,"50人×3回","無料",null,"盛岡市松園地区公民館","盛岡市東松園二丁目５－３","盛岡市松園地区公民館","019-661-8111","019-661-9500","209600_mbx@city.morioka.iwate.jp"]
[106,"継続","市町村向け","軽登山・トレッキング（3回）","現代的課題 - 環境・自然保護","盛岡市","県内の春夏秋の軽登山を楽しみながら、健康保持への関心を高める。",null,2021,5,14,2021,9,24,"13人×3回","有料","受講料\n500円\n参加費\n400円","盛岡市松園地区公民館","盛岡市東松園二丁目５－３","盛岡市松園地区公民館","019-661-8111","019-661-9500","209600_mbx@city.morioka.iwate.jp",null,"定員を超えた場合は抽選"]
[107,"継続","市町村向け","松園いきいき教室（４回）","現代的課題 - 高齢化・介護・福祉","盛岡市","いきいきとした人生を送るための様々な力を高める。",null,2021,5,19,2021,11,17,"18人×4回","無料",null,"盛岡市松園地区公民館","盛岡市東松園二丁目５－３","盛岡市松園地区公民館","019-661-8111","019-661-9500","209600_mbx@city.morioka.iwate.jp"]
[108,"継続","市町村向け","ヘルシークッキング教室（3回）","教養・文化 - 料理・お茶・お花・書道","盛岡市","季節の食材を使った健康な暮らしのための料理作りを学ぶ。",null,2021,6,18,2021,11,24,"12人×3回","有料","材料費600円","盛岡市松園地区公民館","盛岡市東松園二丁目５－３","盛岡市松園地区公民館","019-661-8111","019-661-9500","209600_mbx@city.morioka.iwate.jp",null,"定員を超えた場合は抽選"]
[109,"継続","市町村向け","英語で遊ｉｎｇ（6回）","現代的課題 - 語学・国際理解","盛岡市","ゲームや歌、絵本の読み聞かせなどを通して英語に対する興味関心を高める。",null,2021,7,null,2021,8,null,"なし","無料",null,"松園地区内小学校３校","盛岡市松園地区","盛岡市松園地区公民館","019-661-8111","019-661-9500","209600_mbx@city.morioka.iwate.jp"]
[110,"継続","市町村向け","松園を学ぶ","現代的課題 - まちづくり","盛岡市","松園地区にある資源（施設等）の理解を深め、地域づくりについて考える。",null,2021,7,6,2021,7,13,"15人","有料","参加費\n620円","岩手県立博物館","上田字松屋敷３４","盛岡市松園地区公民館","019-661-8111","019-661-9500","209600_mbx@city.morioka.iwate.jp"]
[111,"継続","市町村向け","パステルアート教室","教養・文化 - 美術・工芸","盛岡市","パステルアートの魅力にふれ、作品作りを楽しむ。",null,2021,8,3,2021,8,3,"小中学生と保護者18人","有料","材料費100円","盛岡市松園地区公民館","盛岡市東松園二丁目５－３","盛岡市松園地区公民館","019-661-8111","019-661-9500","209600_mbx@city.morioka.iwate.jp",null,"定員を超えた場合は抽選"]
[112,"継続","市町村向け","初級英語講座～お茶ｄｅ英会話～","現代的課題 - 語学・国際理解","盛岡市","世界のお茶の話をしながら、各国の文化や習慣を英会話とともに学ぶ。",null,2021,6,8,2021,6,29,"英語初心者18人","有料","受講料500円\n参加費1500円","盛岡市松園地区公民館","盛岡市東松園二丁目５－３","盛岡市松園地区公民館","019-661-8111","019-661-9500","209600_mbx@city.morioka.iwate.jp",null,"定員を超えた場合は抽選"]
[113,"継続","市町村向け","縄文講座（2回）","学術一般 - 歴史・地理・民俗","盛岡市","岩手県内に現存する縄文文化について学ぶ。",null,2021,9,1,2021,9,15,"14人","有料","受講料500円\n参加費300円","盛岡市松園地区公民館\n崎山貝塚","盛岡市東松園二丁目５－３\n宮古市","盛岡市松園地区公民館","019-661-8111","019-661-9500","209600_mbx@city.morioka.iwate.jp",null,"定員を超えた場合は抽選"]
[114,"継続","市町村向け","復興教育講演会","教養・文化 - その他","盛岡市","東日本大震災・津波の経験を風化させないために震災復興を自分の課題としてとらえさせ、日常的な防災意識を高める。",null,2021,6,22,2021,6,22,"なし","無料",null,"盛岡市立東松園小学校","盛岡市松園三丁目１２－１","盛岡市松園地区公民館","019-661-8111","019-661-9500","209600_mbx@city.morioka.iwate.jp"]
[115,"継続","市町村向け","スイーツづくり教室（3回）","教養・文化 - 料理・お茶・お花・書道","盛岡市","生活を豊かに彩るスイーツの作り方を学ぶ。",null,2021,10,12,2021,10,26,"12人","有料","受講料500円\n材料費3000円","盛岡市松園地区公民館","盛岡市東松園二丁目５－３","盛岡市松園地区公民館","019-661-8111","019-661-9500","209600_mbx@city.morioka.iwate.jp",null,"定員を超えた場合は抽選"]
[116,"継続","市町村向け","防災学習～被災地を巡って～","教養・文化 - その他","盛岡市","気象災害について学び、被災地を巡り防災意識を高める。",null,2021,10,22,2021,10,28,"14人","有料","参加費600円","盛岡市松園地区公民館\n,宮古市","盛岡市東松園二丁目５－３\n宮古市内","盛岡市松園地区公民館","019-661-8111","019-661-9500","209600_mbx@city.morioka.iwate.jp",null,"定員を超えた場合は抽選"]
[117,"継続","市町村向け","歌を楽しむ交流会","教養・文化 - 音楽","盛岡市","小学生と当館サークルとの親睦・交流を図る。",null,2021,11,29,2021,11,29,"なし","無料",null,"盛岡市立東松園小学校","盛岡市東松園２－５－１","盛岡市松園地区公民館","019-661-8111","019-661-9500","209600_mbx@city.morioka.iwate.jp"]
[118,"継続","市町村向け","味噌づくり教室（2回）","教養・文化 - 料理・お茶・お花・書道","盛岡市","大豆と味噌についての理解を深め県産大豆を使った味噌づくりをする。",null,2021,11,26,2021,12,2,"12人×2回","有料","受講料500円\n材料費1400円","盛岡市松園地区公民館","盛岡市東松園二丁目５－３","盛岡市松園地区公民館","019-661-8111","019-661-9500","209600_mbx@city.morioka.iwate.jp",null,"定員を超えた場合は抽選"]
[119,"継続","市町村向け","シニアエンジョイスキー教室","スポーツ・健康 - スキー・スケート","盛岡市","それぞれの技能にあわせてスキーを楽しみながら最新の技術を身につけ、積極的に健康の増進を図る。",null,2022,1,14,2022,1,14,"50歳以上12人","有料","参加費3000円","網張温泉スキー場","雫石町網張温泉","盛岡市松園地区公民館","019-661-8111","019-661-9500","209600_mbx@city.morioka.iwate.jp",null,"定員を超えた場合は抽選"]
[120,"継続","市町村向け","世代をつなぐ街づくり交流会","現代的課題 - まちづくり","盛岡市","松園地域の活性化に向けて小・中学生と地域の方々が世代を超えて交流活動を行うことで、地域づくりを推進し、次代を担う子供たちの心を育む。",null,2022,2,5,2022,2,5,"なし","無料",null,"盛岡市松園地区公民館","盛岡市東松園二丁目５－３","盛岡市松園地区公民館","019-661-8111","019-661-9500","209600_mbx@city.morioka.iwate.jp"]
[121,"継続","市町村向け","郷土食づくり交流会","教養・文化 - 料理・お茶・お花・書道","盛岡市","食育の一環として、郷土食づくりを行い、食に関する関心を高めるとともに、子供たちと地域の方々の交流を図る。",null,2022,3,7,2022,3,7,"なし","有料","材料費\n未定","盛岡市立東松園小学校","盛岡市東松園二丁目５－１","盛岡市松園地区公民館","019-661-8111","019-661-9500","209600_mbx@city.morioka.iwate.jp"]
[122,"継続","市町村向け","手話福祉体験教室","現代的課題 - 高齢化・介護・福祉","盛岡市","当館で活動している手話サークルの皆さんを講師にして手話による福祉体験学習をする。",null,"未定",null,null,null,null,null,"なし","無料",null,"松園地区内の学校","盛岡市東松園二丁目５－３","松園地区内","019-661-8111","019-661-9500","209600_mbx@city.morioka.iwate.jp"]
[123,"継続","市町村向け","子育て支援講座","現代的課題 - 子育て・家庭教育","盛岡市","幼児を持つ親を対象に，望ましい家庭教育のあり方を探る。",null,2021,6,4,2022,3,8,"10組","無料",null,"盛岡市見前地区公民館","盛岡市津志田中央二丁目9-1","盛岡市見前地区公民館","019-639-1788","019-637-8247","206600_mbx@city.morioka.iwate.jp"]
[124,"継続","市町村向け","少年少女教室Ⅰ「親子ホタル観察会」","現代的課題 - 子育て・家庭教育","盛岡市","都南地区５公民館連携のホタル観賞会を通して自然に親しませ，情操を育む。",null,2021,7,20,2021,7,20,"8組","無料",null,"大ケ生金山跡付近","盛岡市乙部大ケ生","盛岡市見前地区公民館","019-639-1788","019-637-8247","206600_mbx@city.morioka.iwate.jp"]
[125,"継続","市町村向け","少年少女教室Ⅱ「夏休み子ども科学教室」","現代的課題 - 子育て・家庭教育","盛岡市","小学生を対象に理科実験や工作を通して科学への興味関心を持つ機会にする。",null,2021,7,31,2021,7,31,"15人","有料","600円","盛岡市見前地区公民館","盛岡市津志田中央二丁目9-1","盛岡市見前地区公民館","019-639-1788","019-637-8247","206600_mbx@city.morioka.iwate.jp"]
[126,"継続","市町村向け","少年少女教室Ⅲ「冬休み子ども科学教室」","現代的課題 - 子育て・家庭教育","盛岡市","小学生を対象に理科実験や工作を通して科学への興味関心を持つ機会にする。",null,2022,1,8,2022,1,8,"15人","有料","600円","盛岡市見前地区公民館","盛岡市津志田中央二丁目9-1","盛岡市見前地区公民館","019-639-1788","019-637-8247","206600_mbx@city.morioka.iwate.jp"]
[127,"継続","市町村向け","少年少女教室Ⅳ「親子陶芸教室」","現代的課題 - 子育て・家庭教育","盛岡市","小学校と連携し，陶芸活動を通して情操教育の充実に資する。",null,2021,9,1,2021,9,3,"30人","無料",null,"盛岡市見前地区公民館","盛岡市津志田中央二丁目9-1","盛岡市見前地区公民館","019-639-1788","019-637-8247","206600_mbx@city.morioka.iwate.jp"]
[128,"継続","市町村向け","少年少女教室Ⅴ「親子影絵教室」","現代的課題 - 子育て・家庭教育","盛岡市","小学校と連携し，影絵を通して情操教育の充実に資する。",null,2022,1,27,2022,1,27,"30人","無料",null,"盛岡市見前地区公民館","盛岡市津志田中央二丁目9-1","盛岡市見前地区公民館","019-639-1788","019-637-8247","206600_mbx@city.morioka.iwate.jp"]
[129,"継続","市町村向け","地域活動ボランティア学習会","現代的課題 - ＮＰＯ・ボランティア","盛岡市","中学生の地域ボランティア活動を積極的に推進するためのリーダーを養成する。",null,2021,4,26,2022,2,23,"40人","無料",null,"盛岡市見前地区公民館","盛岡市津志田中央二丁目9-1","盛岡市見前地区公民館","019-639-1788","019-637-8247","206600_mbx@city.morioka.iwate.jp"]
[130,"継続","市町村向け","歩いてワクワク教養講座","学術一般 - 歴史・地理・民俗","盛岡市","ふるさとの文化や伝統，防災やエネルギー等について幅広く学び生涯学習の一助とする。",null,2021,5,26,2021,6,30,"13人","有料","4,000円","盛岡市街，藤原の郷　他",null,"盛岡市見前地区公民館","019-639-1788","019-637-8247","206600_mbx@city.morioka.iwate.jp",null,"抽選"]
[131,"継続","市町村向け","五感で楽しむトレッキング講座A","スポーツ・健康 - 登山・野外活動","盛岡市","山歩きの基本を学びながら，仲間と山麓の景色や花を楽しむ。",null,2021,5,12,2021,6,16,"12人","有料","2,500円","万寿山，鞍掛山",null,"盛岡市見前地区公民館","019-639-1788","019-637-8247","206600_mbx@city.morioka.iwate.jp",null,"抽選"]
[132,"継続","市町村向け","五感で楽しむトレッキング講座B","スポーツ・健康 - 登山・野外活動","盛岡市","山歩きの基本を学びながら，仲間と山麓の景色や花を楽しむ。",null,2021,5,19,2021,6,23,"12人","有料","2,500円","稲庭岳，南昌山",null,"盛岡市見前地区公民館","019-639-1788","019-637-8247","206600_mbx@city.morioka.iwate.jp",null,"抽選"]
[133,"継続","市町村向け","季節を味わう料理講座","教養・文化 - 料理・お茶・お花・書道","盛岡市","日々の食事がもっと美味しく感じる工夫を和食を通して探る。",null,2021,5,28,2021,7,2,"8人","有料","2,800円","盛岡市見前地区公民館","盛岡市津志田中央二丁目9-1","盛岡市見前地区公民館","019-639-1788","019-637-8247","206600_mbx@city.morioka.iwate.jp",null,"先着順"]
[134,"継続","市町村向け","ふるさと自然講座","現代的課題 - 環境・自然保護","盛岡市","自然環境の保全・防災の重要性について考え，実践的な活動のための方策を学ぶ。",null,2021,10,6,2021,10,29,"13人","有料","4,000円","簗川ダム，宮古，釜石　他",null,"盛岡市見前地区公民館","019-639-1788","019-637-8247","206600_mbx@city.morioka.iwate.jp",null,"抽選"]
[135,"継続","市町村向け","いきいき健康講座","スポーツ・健康 - 健康・予防","盛岡市","健康的な生活を送るための知識と実践を学ぶ。",null,2021,10,13,2021,11,10,"10人","有料","500円","盛岡市見前地区公民館","盛岡市津志田中央二丁目9-1","盛岡市見前地区公民館","019-639-1788","019-637-8247","206600_mbx@city.morioka.iwate.jp",null,"先着順"]
[136,"継続","市町村向け","先人に学ぶ講座","学術一般 - 歴史・地理・民俗","盛岡市","郷土の先人たちの偉業に触れ学び，教養を深め人生の糧とする。",null,2021,10,22,2021,11,19,"10人","有料","300円","盛岡市見前地区公民館","盛岡市津志田中央二丁目9-1","盛岡市見前地区公民館","019-639-1788","019-637-8247","206600_mbx@city.morioka.iwate.jp",null,"先着順"]
[137,"継続","市町村向け","秋のトレッキング講座A","スポーツ・健康 - 登山・野外活動","盛岡市","秋ならではの紅葉や景色を楽しみながら仲間との交流を深める。",null,2021,9,24,2021,9,24,"12人","有料","1,000円","宇麗羅山",null,"盛岡市見前地区公民館","019-639-1788","019-637-8247","206600_mbx@city.morioka.iwate.jp",null,"抽選"]
[138,"継続","市町村向け","秋のトレッキング講座B","スポーツ・健康 - 登山・野外活動","盛岡市","秋ならではの紅葉や景色を楽しみながら仲間との交流を深める。",null,2021,9,30,2021,9,30,"12人","有料","1,000円","魹ヶ崎",null,"盛岡市見前地区公民館","019-639-1788","019-637-8247","206600_mbx@city.morioka.iwate.jp",null,"抽選"]
[139,"継続","市町村向け","公民館利用団体展示交流発表会（公民館まつり）","教養・文化 - その他","盛岡市","公民館利用団体の活動を紹介し，交流を図る。",null,2021,11,6,2021,11,7,"なし","無料",null,"盛岡市見前地区公民館","盛岡市津志田中央二丁目9-1","盛岡市見前地区公民館","019-639-1788","019-637-8247","206600_mbx@city.morioka.iwate.jp"]
[140,"継続","市町村向け","そば打ち教室","教養・文化 - 料理・お茶・お花・書道","盛岡市","健康食「そば」の魅力に迫る手打ちそばに挑戦し，自分で打ったそばを食す醍醐味を味わう。",null,2021,11,17,2021,11,17,"5人","有料","600円","盛岡市見前地区公民館","盛岡市津志田中央二丁目9-1","盛岡市見前地区公民館","019-639-1788","019-637-8247","206600_mbx@city.morioka.iwate.jp",null,"先着順"]
[141,"新規","市町村向け","手作り味噌講座","教養・文化 - 料理・お茶・お花・書道","盛岡市","手作り味噌の美味しさを味わうとともに，発酵食品を手作りする楽しさを体験する。",null,2021,11,25,2021,12,2,"10人","有料","1,700円","盛岡市見前地区公民館","盛岡市津志田中央二丁目9-1","盛岡市見前地区公民館","019-639-1788","019-637-8247","206600_mbx@city.morioka.iwate.jp",null,"先着順"]
[142,"継続","市町村向け","祈りの灯火づくり","現代的課題 - ＮＰＯ・ボランティア","盛岡市","東日本大震災の記憶を風化させることなく追悼と復興への願いを込めて灯籠を作製する。",null,2022,2,23,2022,2,23,"30人","無料",null,"盛岡市見前地区公民館","盛岡市津志田中央二丁目9-1","盛岡市見前地区公民館","019-639-1788","019-637-8247","206600_mbx@city.morioka.iwate.jp"]
[143,"継続","市町村向け","いきいきシニア講座\n（らくらくスマホ教室）","パソコン - パソコン","盛岡市","「初めの方でも安心！らくらくスマホ教室」\nスマートフォンの基本的な操作や活用方法，安全な使い方について学ぶ。\n　\n　※6月と11月に開催",null,2021,6,17,2021,11,null,"各10人","無料","無料","盛岡市乙部地区公民館","盛岡市乙部6-79-1","盛岡市乙部地区公民館","019-696-2081","019-696-4796","206800_mbx@city.morioka.iwate.jp",null,"先着順です"]
[144,"継続","市町村向け","親子ホタル観察講座","現代的課題 - 環境・自然保護","盛岡市","ホタルの観察を通して，自然学習を行いながら親子で自然環境への関心を高める。",null,2021,7,21,2021,7,21,"5組10人","有料","保険料","盛岡市大ケ生","盛岡市大ケ生\n（ホタルの里）","盛岡市乙部地区公民館","019-696-2081","019-696-4796","206800_mbx@city.morioka.iwate.jp",null,"先着順です"]
[145,"継続","市町村向け","親子で楽しむ星空観察","現代的課題 - 子育て・家庭教育","盛岡市","星空の美しさを味わい，親子で天体観測に親しむ。",null,2021,8,null,2021,8,null,"5組10人","無料","無料","盛岡市乙部地区公民館","盛岡市乙部6-79-1","盛岡市乙部地区公民館","019-696-2081","019-696-4796","206800_mbx@city.morioka.iwate.jp",null,"先着順です"]
[146,"継続","市町村向け","社会科見学講座","現代的課題 - 子育て・家庭教育","盛岡市","小学生４・５・６年生を対象として社会科見学講座実施する。",null,2021,8,null,2021,8,null,"10人","有料","保険料等","盛岡市内","御所ダムを予定","盛岡市乙部地区公民館","019-696-2081","019-696-4796","206800_mbx@city.morioka.iwate.jp",null,"先着順です"]
[147,"継続","市町村向け","自然観察講座Ⅰ\n（復興支援講座）","学術一般 - 自然・動植物","盛岡市","東日本大震災等で被災した地域を訪ね，当時の模様について現地の方から聞くことで，自然の威力の大きさを知るとともに防災意識を高める。",null,2021,8,null,2021,8,null,"13人","有料","保険料等","盛岡市外","宮古市を予定","盛岡市乙部地区公民館","019-696-2081","019-696-4796","206800_mbx@city.morioka.iwate.jp",null,"先着順です"]
[148,"新規","市町村向け","ミニ畳作製教室","教養・文化 - 美術・工芸","盛岡市","人形や家財り物等の小物置く，ミニ畳を作製し置物の良さを引き立たせる。",null,2021,9,null,2021,9,null,"９人","有料","材料費","盛岡市乙部地区公民館","盛岡市乙部6-79-1","盛岡市乙部地区公民館","019-696-2081","019-696-4796","206800_mbx@city.morioka.iwate.jp",null,"先着順です"]
[149,"継続","市町村向け","自然観察講座Ⅱ\n（地元の自然に親しむ)","スポーツ・健康 - 登山・野外活動","盛岡市","「黒森山に行こう！」\n乙部地区を代表する山に登り，山に由来する話や植物について知る。　　",null,2021,9,null,2021,9,null,"10人","有料","保険料","黒森山を予定","盛岡市大ケ生地内","盛岡市乙部地区公民館","019-696-2081","019-696-4796","206800_mbx@city.morioka.iwate.jp",null,"先着順です"]
[150,"継続","市町村向け","おもしろイラスト講座","教養・文化 - 美術・工芸","盛岡市","「筆ペン１本で描くイラスト講座」\nイラストを描くコツを学び，生活の中に取り入れることで暮らしに彩を添える。",null,2021,10,null,2021,10,16,"10人","無料","無料","盛岡市乙部地区公民館","盛岡市乙部6-79-1","盛岡市乙部地区公民館","019-696-2081","019-696-4796","206800_mbx@city.morioka.iwate.jp",null,"先着順です"]
[151,"新規","市町村向け","健康講座","スポーツ・健康 - 健康・予防","盛岡市","運動不足の解消及び健康増進を目的とし，ストレッチや筋力トレーニング等を行う。",null,2021,10,null,2021,10,null,"９人","無料","無料","盛岡市乙部地区公民館","盛岡市乙部6-79-1","盛岡市乙部地区公民館","019-696-2081","019-696-4796","206800_mbx@city.morioka.iwate.jp",null,"先着順です"]
[152,"継続","市町村向け","料理講座\n「手打ちそば教室」","教養・文化 - 料理・お茶・お花・書道","盛岡市","食生活に創意工夫を取り入れ，豊かな食生活の一助とする。",null,2021,12,null,2021,12,null,"８人","有料","材料費","盛岡市乙部地区公民館","盛岡市乙部6-79-1","盛岡市乙部地区公民館","019-696-2081","019-696-4796","206800_mbx@city.morioka.iwate.jp",null,"先着順です"]
[153,"継続","市町村向け","クラフト講座","教養・文化 - 美術・工芸","盛岡市","クラフトを通して自然の素材に触れ，豊かな恵みを与えてくれる森林環境をより身近に感じながら，温もりのある作品を作る。\n　　\n　　　　※正月用しめ縄飾りの作製を予定※",null,2021,12,null,2021,12,null,"６人","有料","材料費\n等","盛岡市乙部地区公民館","盛岡市乙部6-79-1","盛岡市乙部地区公民館","019-696-2081","019-696-4796","206800_mbx@city.morioka.iwate.jp",null,"先着順です"]
[154,"継続","市町村向け","親子芸術鑑賞会","教養・文化 - その他","盛岡市","良質な映画を鑑賞する機会を提供し，豊かな情操を育む。",null,2021,11,null,2021,11,null,"なし","無料","無料","盛岡市乙部地区公民館","盛岡市乙部6-79-1","盛岡市乙部地区公民館","019-696-2081","019-696-4796","206800_mbx@city.morioka.iwate.jp"]
[155,"継続","市町村向け","公民館まつり","教養・文化 - その他","盛岡市","各サークルの作品展示・ステージ発表等。",null,2021,11,null,2021,11,null,"なし","無料","無料","盛岡市乙部地区公民館","盛岡市乙部6-79-1","盛岡市乙部地区公民館","019-696-2081","019-696-4796","206800_mbx@city.morioka.iwate.jp"]
[156,"継続","市町村向け","子育て講座","現代的課題 - 子育て・家庭教育","盛岡市","未就学児保護者を対象とした子育てを支援する。（全2回）",null,2021,6,null,2021,"6　　9","15　1　","12組","無料",null,"盛岡市見前南地区公民館","盛岡市西見前13-50","盛岡市見前南地区公民館","019-601-6735","019-601-6736",null,null,"先着"]
[157,"継続","市町村向け","家庭教育講演会","現代的課題 - 子育て・家庭教育","盛岡市","様々な人々とコミュニケーションを図り，自立に向けたキャリア教育の視点から家庭支援を行う。",null,2021,6,null,2021,6,16,"50名","無料",null,"盛岡市立見前南小学校","盛岡市西見前13-167","盛岡市見前南地区公民館","019-601-6735","019-601-6736"]
[158,"新規","市町村向け","親子DEセミナー","現代的課題 - 子育て・家庭教育","盛岡市","子どもの栄養サポートのあり方を親子で学ぶ。",null,2021,7,11,2021,7,11,"15組","無料",null,"盛岡市見前南地区公民館","盛岡市西見前13-50","盛岡市見前南地区公民館","019-601-6735","019-601-6736",null,null,"先着"]
[159,"継続","市町村向け","親子ホタル観察会","学術一般 - 自然・動植物","盛岡市","都南地区5館公民館連携事業による体験学習を通じて，身近な自然に親しむとともに豊かな情操を育む。",null,2021,7,null,2021,7,21,"8組","無料","24円","乙部地区公民館・大々生地区","盛岡市西見前13-50","盛岡市見前南地区公民館","019-601-6735","019-601-6736",null,null,"先着"]
[160,"継続","市町村向け","お菓子っこくらぶ","教養・文化 - 料理・お茶・お花・書道","盛岡市","身近な食材を用いて，家でもすぐにできる簡単なお菓子作りに挑戦する。（全３回）",null,"2021 2022","7　　　　　12　　　　2",null,"2021 2022","7　　　12　　　2","24　　18　　19","8名","無料","500円","盛岡市見前南地区公民館","盛岡市西見前13-50","盛岡市見前南地区公民館","019-601-6735","019-601-6736",null,null,"先着"]
[161,"継続","市町村向け","冬のチャレンジ体験日","教養・文化 - その他","盛岡市","科学の面白さを学べる実験や工作づくりに挑戦し，課題解決に主体的に取り組む。",null,2021,12,null,2021,12,25,"12名","無料","300円","盛岡市見前南地区公民館","盛岡市西見前13-50","盛岡市見前南地区公民館","019-601-6735","019-601-6736",null,null,"先着"]
[162,"継続","市町村向け","新年度子ども会リーダー講演会","現代的課題 - 子育て・家庭教育","盛岡市","新年度リーダーになる5年生を対象に子ども会活動の進め方についての学習を行う。（SDGｓ目標17）",null,2022,1,null,2022,1,27,"見前南小学校5学年","無料",null,"盛岡市立見前南小学校","盛岡市西見前13-167","盛岡市見前南地区公民館","019-601-6735","019-601-6736"]
[163,"継続","市町村向け","チャレンジ塾","現代的課題 - 子育て・家庭教育","盛岡市","夏季休業中の基本的生活習慣に取り組み，自分の立てた目標に向かって自主学習に取り組む場を提供する。",null,2021,8,null,2021,8,"3～8","15名","無料",null,"盛岡市見前南地区公民館","盛岡市西見前13-50","盛岡市見前南地区公民館","019-601-6735","019-601-6736",null,null,"先着"]
[164,"継続","市町村向け","サークル同好会結成応援プロジェクト","教養・文化 - その他","盛岡市","学問や興味のある活動を達成感を味わいながら、サークルや同好会結成を支援する。",null,2021,"通年",null,2022,"通","年","＿","無料",null,"盛岡市見前南地区公民館","盛岡市西見前13-50","盛岡市見前南地区公民館","019-601-6735","019-601-6736",null,null,"随時"]
[165,"継続","市町村向け","パティシエが教える世界のスイーツ","教養・文化 - 料理・お茶・お花・書道","盛岡市","オリンピック開催にちなんで世界のスイーツの魅力をパティシエから学ぶ。",null,2021,10,null,2021,10,26,"8名","有料","1,300円","盛岡市見前南地区公民館","盛岡市西見前13-50","盛岡市見前南地区公民館","019-601-6735","019-601-6736",null,null,"先着"]
[166,"継続","市町村向け","もりおかまち歩き「石川啄木とふれあう」","学術一般 - 歴史・地理・民俗","盛岡市","盛岡市内を歩きながら、ふるさとを想う気持ちや啄木の心情に触れる。",null,2021,6,null,2021,6,23,"10名","無料","1,000円","盛岡駅前通り","盛岡市西見前13-50","盛岡市見前南地区公民館","019-601-6735","019-601-6736",null,null,"先着"]
[167,"継続","市町村向け","クリスマスハワイアンキルト","教養・文化 - 美術・工芸","盛岡市","植物等の自然をテーマに色やデザインの魅力を感じながら    ハワイアンキルトの伝統工芸に挑戦する。",null,2021,"9　　　　10　　　10",null,2021,"9　　　10　　　10","29　　　6　　　13","12名","有料","1,300円","盛岡市見前南地区公民館","盛岡市西見前13-50","盛岡市見前南地区公民館","019-601-6735","019-601-6736",null,null,"先着"]
[168,"継続","市町村向け","健康食料理","教養・文化 - 料理・お茶・お花・書道","盛岡市","地産地消をテーマに幅広い年代の栄養サポートを行う。   　　　（全2回）（SDGｓ目標12）",null,2022,1,25,2022,"1　2","25　1","8名","有料","1,700円","盛岡市見前南地区公民館","盛岡市西見前13-50","盛岡市見前南地区公民館","019-601-6735","019-601-6736",null,null,"先着"]
[169,"継続","市町村向け","歩く！発見！ワン・ツー","学術一般 - 自然・動植物","盛岡市","自主防災について学び，各センターでの地域防災の基本的備えを学ぶ地域発見。(全2回)",null,2021,"5　　6",null,2021,"5　6","28　4","10名","無料","900円","盛岡市見前南地区公民館","盛岡市西見前13-50","盛岡市見前南地区公民館","019-601-6735","019-601-6736",null,null,"先着"]
[170,"継続","市町村向け","悠々閑々","現代的課題 - 高齢化・介護・福祉","盛岡市","地域のシルバー世代が交流し、共通の学びを通して心豊かに生きがいの機会の場とする。(全12回)",null,2021,6,null,2021,"6月～11月",null,"15名","無料",null,"盛岡市見前南地区公民館","盛岡市西見前13-50","盛岡市見前南地区公民館","019-601-6735","019-601-6736"]
[171,"継続","市町村向け","脳と身体の健康講座","スポーツ・健康 - 健康・予防","盛岡市","睡眠・血管と脳などについて健康法を学び、歌で脳と身体を鍛える。(全2回)（SDGｓ目標3）",null,2021,"8　　9",null,2021,"8　9","27　3","15名","無料",null,"盛岡市見前南地区公民館","盛岡市西見前13-50","盛岡市見前南地区公民館","019-601-6735","019-601-6736",null,null,"先着"]
[172,"継続","市町村向け","シネマ上映会","教養・文化 - その他","盛岡市","シネマを通じて豊かな情操を育み，各世代が触れ合う機会とする。大人向け2回，小人向け1回（全3回）",null,"2021 2022","12　　　　　1　　　　　2　",null,"2021 2022","12　　　　1　　　　2　","18　　22　　26","10名","無料",null,"盛岡市見前南地区公民館","盛岡市西見前13-50","盛岡市見前南地区公民館","019-601-6735","019-601-6736"]
[173,"継続","市町村向け","南ちゃんギャラリー","教養・文化 - 美術・工芸","盛岡市","オープンスペースの一空間をギャラリーとし地域の方の作品(絵・写真等)を常時展示する。",null,2021,"通年",null,2022,"通","年","＿","無料",null,"盛岡市見前南地区公民館","盛岡市西見前13-50","盛岡市見前南地区公民館","019-601-6735","019-601-6736"]
[174,"継続","市町村向け","公民館 DE ボランティア","現代的課題 - ＮＰＯ・ボランティア","盛岡市","地域や社会で起きていることや，人や地域のつながりに気付き，行動を起こすきっかけを作る。（SDGｓ目標1）",null,2021,"年間4回",null,2022,"　年間　　4回",null,"10名","無料",null,"盛岡市見前南地区公民館","盛岡市西見前13-50","盛岡市見前南地区公民館","019-601-6735","019-601-6736"]
[175,"継続","市町村向け","地元に学ぼう","学術一般 - 歴史・地理・民俗","盛岡市","都南地域のかつての村を知る地元学。　　　　　　　　　　　　       柿木～今宮神社～北上川上流浄化センター　　　　　　　",null,2021,9,null,2021,9,24,"10名","無料","48円","盛岡市見前南地区公民館","盛岡市西見前13-50","盛岡市見前南地区公民館","019-601-6735","019-601-6736",null,null,"先着"]
[176,"継続","市町村向け","文化まつり","教養・文化 - その他","盛岡市","地域参加型展示会、サークル発表で人と人の輪を拡げる。",null,2021,11,null,2021,11,14,"＿","無料",null,"盛岡市見前南地区公民館","盛岡市西見前13-50","盛岡市見前南地区公民館","019-601-6735","019-601-6736"]
[177,"継続","市町村向け","ふらっとお立ち寄り散歩道","教養・文化 - その他","盛岡市","ホームチャレンジング川柳としての575のリズムにのせて，気軽に楽しむ魅力ある川柳に取り組む。",null,2021,"通年",null,2022,"通","年","＿","無料",null,"盛岡市見前南地区公民館","盛岡市西見前13-50","盛岡市見前南地区公民館","019-601-6735","019-601-6736"]
[178,"継続","市町村向け","～復興～生きる喜びを分かち合う交流事業","現代的課題 - まちづくり","盛岡市","被災地・地域の方々を含むすべての人々が「ともに生きる」喜びと心の豊かさを分かち合う交流・癒しの場を共有する。",null,2021,"通年",null,2022,"通","年","＿","無料",null,"盛岡市見前南地区公民館","盛岡市西見前13-50","盛岡市見前南地区公民館","019-601-6735","019-601-6736"]
[179,null,"市町村向け","おはなしのじかん","現代的課題 - 子育て・家庭教育","盛岡市","毎月第2・4土曜日，幼児から小学生を対象にしたストーリーテリングや絵本の読み聞かせ",null,2021,4,null,2022,3,null,null,"無料",null,"盛岡市立図書館","盛岡市高松一丁目9-45","盛岡市立図書館","019-661-4343","019-661-2682","library.takamatsu@city.morioka.iwate.jp","http://www.city.morioka.iwate.jp/kurashi/kokyoshisetsu/tosho/1000821.html","大規模改修のため一時閉館予定であり，開始・終了年月日は現時点での予定。"]
[180,null,"市町村向け","えほんのへや","現代的課題 - 子育て・家庭教育","盛岡市","毎月第3木曜日，幼児から小学生低学年を対象にした絵本の読み聞かせ",null,2021,4,null,2022,3,null,null,"無料",null,"盛岡市立図書館","盛岡市高松一丁目9-45","盛岡市立図書館","019-661-4343","019-661-2682","library.takamatsu@city.morioka.iwate.jp","http://www.city.morioka.iwate.jp/kurashi/kokyoshisetsu/tosho/1000821.html"]
[181,null,"市町村向け","かみしばいのへや","現代的課題 - 子育て・家庭教育","盛岡市","毎月第2・4木曜日，幼児から小学生低学年を対象にした紙芝居の読み聞かせ",null,2021,4,null,2022,3,null,null,"無料",null,"盛岡市立図書館","盛岡市高松一丁目9-45","盛岡市立図書館","019-661-4343","019-661-2682","library.takamatsu@city.morioka.iwate.jp","http://www.city.morioka.iwate.jp/kurashi/kokyoshisetsu/tosho/1000821.html"]
[182,null,"市町村向け","おはなしころころ（わらべうた）","現代的課題 - 子育て・家庭教育","盛岡市","毎月（8月を除く）第2金曜日，幼児とその保護者を対象にしたわらべうた，手あそび，絵本の読み聞かせ",null,2021,4,null,2022,3,null,null,"無料",null,"盛岡市立図書館","盛岡市高松一丁目9-45","盛岡市立図書館","019-661-4343","019-661-2682","library.takamatsu@city.morioka.iwate.jp","http://www.city.morioka.iwate.jp/kurashi/kokyoshisetsu/tosho/1000821.html"]
[183,null,"市町村向け","こどもの読書週間記念行事","現代的課題 - 子育て・家庭教育","盛岡市","こどもの読書週間にあわせ，からくり玩具の工作や読み聞かせ",null,2021,4,null,2021,4,null,"6人","無料",null,"盛岡市立図書館","盛岡市高松一丁目9-45","盛岡市立図書館","019-661-4343","019-661-2682","library.takamatsu@city.morioka.iwate.jp","http://www.city.morioka.iwate.jp/kurashi/kokyoshisetsu/tosho/1000821.html"]
[184,null,"市町村向け","読み聞かせボランティアスキルアップ講座","現代的課題 - ＮＰＯ・ボランティア","盛岡市","1歳6ヵ月児健診での読み聞かせ事業のボランティアのスキルアップ講座",null,2021,6,null,2021,6,null,null,"無料",null,"盛岡市立図書館","盛岡市高松一丁目9-45","盛岡市立図書館","019-661-4343","019-661-2682","library.takamatsu@city.morioka.iwate.jp","http://www.city.morioka.iwate.jp/kurashi/kokyoshisetsu/tosho/1000821.html"]
[185,null,"市町村向け","夏休みこども映画会","現代的課題 - 子育て・家庭教育","盛岡市","幼児・小学生を対象に夏休みに映画の上映会開催",null,2021,7,null,2021,7,null,null,"無料",null,"盛岡市立図書館","盛岡市高松一丁目9-45","盛岡市立図書館","019-661-4343","019-661-2682","library.takamatsu@city.morioka.iwate.jp","http://www.city.morioka.iwate.jp/kurashi/kokyoshisetsu/tosho/1000821.html"]
[186,null,"市町村向け","読書週間記念行事","教養・文化 - その他","盛岡市","読書週間に因んだ一般向け講演会",null,2021,null,null,2021,null,null,"50人","無料",null,"盛岡市立図書館","盛岡市高松一丁目9-45","盛岡市立図書館","019-661-4343","019-661-2682","library.takamatsu@city.morioka.iwate.jp","http://www.city.morioka.iwate.jp/kurashi/kokyoshisetsu/tosho/1000821.html"]
[187,null,"市町村向け","こども図書館まつり","現代的課題 - 子育て・家庭教育","盛岡市","工作とゲーム",null,2021,null,null,2021,null,null,null,"無料",null,"盛岡市立図書館","盛岡市高松一丁目9-45","盛岡市立図書館","019-661-4343","019-661-2682","library.takamatsu@city.morioka.iwate.jp","http://www.city.morioka.iwate.jp/kurashi/kokyoshisetsu/tosho/1000821.html"]
[188,null,"市町村向け","こどもクリスマス会","現代的課題 - 子育て・家庭教育","盛岡市","人形劇と絵本の読み聞かせ",null,2021,null,null,2021,null,null,null,"無料",null,"盛岡市立図書館","盛岡市高松一丁目9-45","盛岡市立図書館","019-661-4343","019-661-2682","library.takamatsu@city.morioka.iwate.jp","http://www.city.morioka.iwate.jp/kurashi/kokyoshisetsu/tosho/1000821.html"]
[189,null,"市町村向け","新春短歌会俳句会","教養・文化 - 文学","盛岡市","新春恒例行事として愛好家の投稿による短歌会・俳句会を開催",null,2022,1,null,2022,1,null,null,"無料",null,"盛岡市立図書館","盛岡市高松一丁目9-45","盛岡市立図書館","019-661-4343","019-661-2682","library.takamatsu@city.morioka.iwate.jp","http://www.city.morioka.iwate.jp/kurashi/kokyoshisetsu/tosho/1000821.html"]
[190,null,"市町村向け","岩手の読書週間記念行事","教養・文化 - その他","盛岡市","岩手の読書週間に因んだ一般向け講演会",null,2021,null,null,2021,null,null,"50人","無料",null,"盛岡市立図書館","盛岡市高松一丁目9-45","盛岡市立図書館","019-661-4343","019-661-2682","library.takamatsu@city.morioka.iwate.jp","http://www.city.morioka.iwate.jp/kurashi/kokyoshisetsu/tosho/1000821.html"]
[191,null,"市町村向け","児童文学を読む会","教養・文化 - 文学","盛岡市","月１回児童文学作品をテキストとした読書会",null,2021,4,null,2022,3,null,null,"無料",null,"盛岡市立図書館","盛岡市高松一丁目9-45","盛岡市立図書館","019-661-4343","019-661-2682","library.takamatsu@city.morioka.iwate.jp","http://www.city.morioka.iwate.jp/kurashi/kokyoshisetsu/tosho/1000821.html"]
[192,null,"市町村向け","ちいさなおはなし会","教養・文化 - 文学","盛岡市","おはなし会とミニ読書会",null,2021,7,null,2021,7,null,null,"無料",null,"盛岡市立図書館","盛岡市高松一丁目9-45","盛岡市立図書館","019-661-4343","019-661-2682","library.takamatsu@city.morioka.iwate.jp","http://www.city.morioka.iwate.jp/kurashi/kokyoshisetsu/tosho/1000821.html"]
[193,"継続","市町村向け","おはなしのじかん","現代的課題 - 子育て・家庭教育","盛岡市","幼児を対象にした絵本の読み聞かせや手遊び",null,2021,4,null,2022,3,null,null,"無料",null,"盛岡市都南図書館","盛岡市永井24-90-2","盛岡市都南図書館","019-637-3636","019-637-3638","library.tonan@city.morioka.iwate.jp","http://www.city.morioka.iwate.jp/kurashi/kokyoshisetsu/tosho/1000831.html","中止の場合あり"]
[194,"継続","市町村向け","おとぎのへや","現代的課題 - 子育て・家庭教育","盛岡市","ボランティアサークルによる,幼児・児童を対象にした紙芝居や絵本の読み聞かせ会",null,2021,4,null,2022,3,null,null,"無料",null,"盛岡市都南図書館","盛岡市永井24-90-2","盛岡市都南図書館","019-637-3636","019-637-3638","library.tonan@city.morioka.iwate.jp","http://www.city.morioka.iwate.jp/kurashi/kokyoshisetsu/tosho/1000831.html","中止の場合あり"]
[195,"継続","市町村向け","だっこのおはなし会","現代的課題 - 子育て・家庭教育","盛岡市","ボランティアサークルによる,幼児を対象にした，わらべうたや絵本の読み聞かせ会",null,2021,4,null,2022,3,null,null,"無料",null,"盛岡市都南図書館","盛岡市永井24-90-2","盛岡市都南図書館","019-637-3636","019-637-3638","library.tonan@city.morioka.iwate.jp","http://www.city.morioka.iwate.jp/kurashi/kokyoshisetsu/tosho/1000831.html","中止の場合あり"]
[196,"継続","市町村向け","こどもの読書週間行事「ぬいぐるみおとまりかい」","現代的課題 - 子育て・家庭教育","盛岡市","ぬいぐるみと一緒におはなし会へ参加し,ぬいぐるみだけが図書館へお泊り。翌日,お泊り会の様子をアルバムにしてプレゼント",null,2021,5,null,2021,5,null,null,"無料",null,"盛岡市都南図書館","盛岡市永井24-90-2","盛岡市都南図書館","019-637-3636","019-637-3638","library.tonan@city.morioka.iwate.jp","http://www.city.morioka.iwate.jp/kurashi/kokyoshisetsu/tosho/1000831.html","中止の場合あり"]
[197,"継続","市町村向け","「エコを考える本棚」「環境パネル展」","現代的課題 - 環境・自然保護","盛岡市","エコを考える本の展示　環境パネルの展示",null,2021,6,null,2021,6,null,null,"無料",null,"盛岡市都南図書館","盛岡市永井24-90-2","盛岡市都南図書館","019-637-3636","019-637-3638","library.tonan@city.morioka.iwate.jp","http://www.city.morioka.iwate.jp/kurashi/kokyoshisetsu/tosho/1000831.html","中止の場合あり"]
[198,"継続","市町村向け","「平和図書展」「原爆写真パネル展」","教養・文化 - その他","盛岡市","平和関係図書の展示　原爆写真パネルの展示",null,2021,8,null,2021,8,null,null,"無料",null,"盛岡市都南図書館","盛岡市永井24-90-2","盛岡市都南図書館","019-637-3636","019-637-3638","library.tonan@city.morioka.iwate.jp","http://www.city.morioka.iwate.jp/kurashi/kokyoshisetsu/tosho/1000831.html","中止の場合あり"]
[199,"継続","市町村向け","読書週間行事","教養・文化 - その他","盛岡市","読書週間関連の行事",null,2021,10,null,2021,11,null,null,"無料",null,"盛岡市都南図書館","盛岡市永井24-90-2","盛岡市都南図書館","019-637-3636","019-637-3638","library.tonan@city.morioka.iwate.jp","http://www.city.morioka.iwate.jp/kurashi/kokyoshisetsu/tosho/1000831.html","中止の場合あり"]
[200,"継続","市町村向け","岩手の読書週間行事","教養・文化 - その他","盛岡市","岩手の読書週間関連の行事",null,2022,2,null,2022,2,null,null,"無料",null,"盛岡市都南図書館","盛岡市永井24-90-2","盛岡市都南図書館","019-637-3636","019-637-3638","library.tonan@city.morioka.iwate.jp","http://www.city.morioka.iwate.jp/kurashi/kokyoshisetsu/tosho/1000831.html","中止の場合あり"]
[201,"継続","市町村向け","3.11東日本大震災資料展","教養・文化 - その他","盛岡市","図書館所蔵の震災関連資料の展示",null,2022,3,null,2022,3,null,null,"無料",null,"盛岡市都南図書館","盛岡市永井24-90-2","盛岡市都南図書館","019-637-3636","019-637-3638","library.tonan@city.morioka.iwate.jp","http://www.city.morioka.iwate.jp/kurashi/kokyoshisetsu/tosho/1000831.html","中止の場合あり"]
[202,"継続","市町村向け","平和図書展","教養・文化 - その他","盛岡市","平和をテーマに関連図書の展示・貸出。",null,2021,8,7,2021,8,22,null,"無料",null,"盛岡市渋民図書館","盛岡市渋民字鶴塚55","盛岡市渋民図書館","019-683-2167","019-683-3528","209200_mbx@city.morioka.iwate.jp","http://www.city.morioka.iwate.jp/kurashi/kokyoshisetsu/tosho/1000842.html"]
[203,"継続","市町村向け","えほんのへや","現代的課題 - 子育て・家庭教育","盛岡市","幼児～小学生低学年を対象とした絵本の読み聞かせ。",null,2021,4,null,2022,3,null,null,"無料",null,"盛岡市渋民図書館","盛岡市渋民字鶴塚55","盛岡市渋民図書館","019-683-2167","019-683-3528","209200_mbx@city.morioka.iwate.jp","http://www.city.morioka.iwate.jp/kurashi/kokyoshisetsu/tosho/1000842.html"]
[204,"継続","市町村向け","市民及び学校団体等への展示室の公開","学術一般 - 物理・天文・地学","盛岡市","展示物を通して科学・技術に興味をもってもらう。",null,2021,4,1,2022,3,31,"なし","\n有料","子ども100円，大人200円","盛岡市子ども科学館","盛岡市本宮字蛇屋敷13-1","盛岡市子ども科学館","019-634-1171","019-635-2561","kokabou@goto.co.jp","https://www.kodomokagakukan.com"]
[205,"継続","市町村向け","体験支援と展示解説","学術一般 - 物理・天文・地学","盛岡市","展示物の体験を支援したり，原理を説明したりすることで展示物に含まれる科学・技術により興味をもってもらう。",null,2021,4,1,2022,3,31,"なし","無料",null,"盛岡市子ども科学館","盛岡市本宮字蛇屋敷13-1","盛岡市子ども科学館","019-634-1171","019-635-2561","kokabou@goto.co.jp","https://www.kodomokagakukan.com"]
[206,"新規","市町村向け","ホリデーサイエンス\n（サイエンスショーの代替企画）","学術一般 - 物理・天文・地学","盛岡市","テーマに沿った実験を見せることで，科学・技術に興味をもたせるきっかけをつくる。",null,null,null,null,null,null,null,"10人","無料",null,"盛岡市子ども科学館","盛岡市本宮字蛇屋敷13-1","盛岡市子ども科学館","019-634-1171","019-635-2561","kokabou@goto.co.jp","https://www.kodomokagakukan.com","土・日・祝日に開催"]
[207,"新規","市町村向け","補助道具を用いた科学体験\n(科学たいけんコーナーの代替企画)","学術一般 - 物理・天文・地学","盛岡市","展示物に関連した補助道具を体験させることで，科学・技術に興味をもってもらう。",null,2021,4,28,2022,3,31,"なし","入館料のみ",null,"盛岡市子ども科学館","盛岡市本宮字蛇屋敷13-1","盛岡市子ども科学館","019-634-1171","019-635-2561","kokabou@goto.co.jp","https://www.kodomokagakukan.com"]
[208,"継続","市町村向け","ワークショップ","学術一般 - 物理・天文・地学","盛岡市","ものづくりを楽しみながら科学・技術に興味をもってもらう。",null,null,null,null,null,null,null,"各内容による","\n有料","各内容により異なる","盛岡市子ども科学館","盛岡市本宮字蛇屋敷13-1","盛岡市子ども科学館","019-634-1171","019-635-2561","kokabou@goto.co.jp","https://www.kodomokagakukan.com","土・日・祝日に開催"]
[209,"継続","市町村向け","夏・冬休み実験工作教室","学術一般 - 物理・天文・地学","盛岡市","実験を通して科学・技術に関する知識を深め，工作を通してものづくりの楽しさを知ってもらう。",null,null,null,null,null,null,null,"各内容による","\n有料","各内容により異なる","盛岡市子ども科学館","盛岡市本宮字蛇屋敷13-1","盛岡市子ども科学館","019-634-1171","019-635-2561","kokabou@goto.co.jp","https://www.kodomokagakukan.com","8月，1月/年1回ずつ"]
[210,"継続","市町村向け","団体向け実験工作教室","学術一般 - 物理・天文・地学","盛岡市","選択していただいたメニューを各団体のお客様に実施し，科学・技術に触れる機会を提供する。",null,2021,4,1,2022,3,31,"各内容による","\n有料","各内容により異なる","盛岡市子ども科学館","盛岡市本宮字蛇屋敷13-1","盛岡市子ども科学館","019-634-1171","019-635-2561","kokabou@goto.co.jp","https://www.kodomokagakukan.com"]
[211,"継続","市町村向け","大人のためのものづくり教室","学術一般 - 物理・天文・地学","盛岡市","大人が興味を持つような内容を盛り込んだ教室を行い，普段来館されない年齢層の方にものづくりを体験する機会を提供する。",null,null,null,null,null,null,null,"各内容による","\n有料","内容により異なる","盛岡市子ども科学館","盛岡市本宮字蛇屋敷13-1","盛岡市子ども科学館","019-634-1171","019-635-2561","kokabou@goto.co.jp","https://www.kodomokagakukan.com","3月/年1回\n"]
[212,"継続","市町村向け","プラネタリウム一般投映「映像の時間」","学術一般 - 物理・天文・地学","盛岡市","ドーム空間を活かした映像を中心とした投映を行い，宇宙や星空，科学等に親しんでもらう。",null,null,null,null,null,null,null,"50人\n（当分の間）","\n有料","子ども100円，大人300円","盛岡市子ども科学館","盛岡市本宮字蛇屋敷13-1","盛岡市子ども科学館","019-634-1171","019-635-2561","kokabou@goto.co.jp","https://www.kodomokagakukan.com","土・日・祝日及び長期休業中に投映"]
[213,"継続","市町村向け","プラネタリウム一般投映「子どもの時間」","学術一般 - 物理・天文・地学","盛岡市","子どもを対象とし，スタッフによる解説を中心に据え，楽しみながら宇宙や星空，科学等に触れてもらう。",null,null,null,null,null,null,null,"50人\n（当分の間）","\n有料","子ども100円，大人300円","盛岡市子ども科学館","盛岡市本宮字蛇屋敷13-1","盛岡市子ども科学館","019-634-1171","019-635-2561","kokabou@goto.co.jp","https://www.kodomokagakukan.com","土・日・祝日に投映\n（長期休業を除く）"]
[214,"継続","市町村向け","プラネタリウム一般投映「星空の時間」","学術一般 - 物理・天文・地学","盛岡市","当日の星空を解説し，実際の星空を見る意欲を喚起する。またテーマを定期的に替え，天文学に触れる機会を提供する。",null,2021,4,1,2022,3,31,"50人\n（当分の間）","\n有料","子ども100円，大人300円","盛岡市子ども科学館","盛岡市本宮字蛇屋敷13-1","盛岡市子ども科学館","019-634-1171","019-635-2561","kokabou@goto.co.jp","https://www.kodomokagakukan.com"]
[215,"継続","市町村向け","プラネタリウム学習投映「幼児投映」","学術一般 - 物理・天文・地学","盛岡市","幼児を対象とした投映を行い，星空に親しんだり実際の星空を眺めたりする意欲喚起の機会を提供する。",null,2021,4,1,2022,3,31,"80人（同一団体の場合160人）\n（当分の間）","\n有料","子ども100円，大人300円","盛岡市子ども科学館","盛岡市本宮字蛇屋敷13-1","盛岡市子ども科学館","019-634-1171","019-635-2561","kokabou@goto.co.jp","https://www.kodomokagakukan.com"]
[216,"継続","市町村向け","プラネタリウム学習投映「小学校用学習投映」","学術一般 - 物理・天文・地学","盛岡市","小学校学習指導要領に基づいた学習が出来るよう，プラネタリウムの機能を用いた学習を提供する。",null,2021,4,1,2022,3,31,"80人（同一団体の場合160人）\n（当分の間）","\n有料","子ども100円，大人300円","盛岡市子ども科学館","盛岡市本宮字蛇屋敷13-1","盛岡市子ども科学館","019-634-1171","019-635-2561","kokabou@goto.co.jp","https://www.kodomokagakukan.com"]
[217,"継続","市町村向け","プラネタリウム学習投映「中学校用学習投映」","学術一般 - 物理・天文・地学","盛岡市","中学校学習指導要領に基づいた学習が出来るよう，プラネタリウムの機能を用いた学習を提供する。",null,2021,4,1,2022,3,31,"80人（同一団体の場合160人）\n（当分の間）","\n有料","子ども100円，大人300円","盛岡市子ども科学館","盛岡市本宮字蛇屋敷13-1","盛岡市子ども科学館","019-634-1171","019-635-2561","kokabou@goto.co.jp","https://www.kodomokagakukan.com"]
[218,"継続","市町村向け","観望会","学術一般 - 物理・天文・地学","盛岡市","天体望遠鏡を使って，本物の天体に触れる機会を提供する。",null,null,null,null,null,null,null,"30人","無料",null,"盛岡市子ども科学館","盛岡市本宮字蛇屋敷13-1","盛岡市子ども科学館","019-634-1171","019-635-2561","kokabou@goto.co.jp","https://www.kodomokagakukan.com","・毎月1回及び大型連休，夏・冬長期休業中/年間19回\n・5月26日\n・11月19日\n　要事前予約"]
[219,"継続","市町村向け","太陽を見る会","学術一般 - 物理・天文・地学","盛岡市","天体望遠鏡を使って，日中でも観察できる本物の天体に触れる機会を提供する。",null,null,null,null,null,null,null,"なし","無料",null,"盛岡市子ども科学館","盛岡市本宮字蛇屋敷13-1","盛岡市子ども科学館","019-634-1171","019-635-2561","kokabou@goto.co.jp","https://www.kodomokagakukan.com","6月19日，20日，\n12月18日，19日"]
[220,"継続","市町村向け","特別展\n","学術一般 - 物理・天文・地学","盛岡市","科学・技術に触れる機会を提供する。",null,null,null,null,null,null,null,"なし","\n有料","内容による","盛岡市子ども科学館","盛岡市本宮字蛇屋敷13-1","盛岡市子ども科学館","019-634-1171","019-635-2561","kokabou@goto.co.jp","https://www.kodomokagakukan.com","冬期休業中"]
[221,"継続","市町村向け","星の写真展","学術一般 - 物理・天文・地学","盛岡市","県内天文サークルと連携し，星の写真展を開催することで賑わいを創出し，一般市民の天文に関する興味と関心を深める。",null,null,null,null,null,null,null,"なし","無料",null,"盛岡市子ども科学館","盛岡市本宮字蛇屋敷13-1","盛岡市子ども科学館","019-634-1171","019-635-2561","kokabou@goto.co.jp","https://www.kodomokagakukan.com","11月"]
[222,"継続","市町村向け","宇宙の日作文絵画\nコンテスト作品展","学術一般 - 物理・天文・地学","盛岡市","盛岡市内及び近隣市町村の小・中学生に「宇宙の日」の作文絵画コンテスト参加を呼びかけることにより宇宙についての興味関心を高める。",null,null,null,null,null,null,null,"なし","無料",null,"盛岡市子ども科学館","盛岡市本宮字蛇屋敷13-1","盛岡市子ども科学館","019-634-1171","019-635-2561","kokabou@goto.co.jp","https://www.kodomokagakukan.com","募集は5月～7月\n作品展は2月～3月"]
[223,"継続","市町村向け","たのしい科学技術作品展　\n中学校の部","学術一般 - 物理・天文・地学","盛岡市","盛岡市内の中学校の生徒が作製した技術・家庭科作品を公開する機会を提供する。",null,null,null,null,null,null,null,"なし","無料",null,"盛岡市子ども科学館","盛岡市本宮字蛇屋敷13-1","盛岡市子ども科学館","019-634-1171","019-635-2561","kokabou@goto.co.jp","https://www.kodomokagakukan.com","1月"]
[224,"継続","市町村向け","たのしい科学技術作品展　\n小学校の部","学術一般 - 物理・天文・地学","盛岡市","盛岡市内の小学校の児童が工夫し作製した理科工作を公開する機会を提供する。",null,null,null,null,null,null,null,"なし","無料",null,"盛岡市子ども科学館","盛岡市本宮字蛇屋敷13-1","盛岡市子ども科学館","019-634-1171","019-635-2561","kokabou@goto.co.jp","https://www.kodomokagakukan.com","2月"]
[225,"継続","市町村向け","科学技術週間特別展示","学術一般 - 物理・天文・地学","盛岡市","文科省が定める科学技術週間期間中に科学・技術に触れる機会を提供する。",null,null,null,null,null,null,null,"なし","無料",null,"盛岡市子ども科学館","盛岡市本宮字蛇屋敷13-1","盛岡市子ども科学館","019-634-1171","019-635-2561","kokabou@goto.co.jp","https://www.kodomokagakukan.com","4月18日（発明の日）を含む1週間程度"]
[226,"継続","市町村向け","盛岡市小学校児童理科作品展示研究発表会","学術一般 - 物理・天文・地学","盛岡市","盛岡市内の小学校の児童が工夫し作製した理科工作を公開する機会を提供する。",null,null,null,null,null,null,null,"研究発表会は50人，作品展示は定員なし","無料",null,"盛岡市子ども科学館","盛岡市本宮字蛇屋敷13-1","盛岡市子ども科学館","019-634-1171","019-635-2561","kokabou@goto.co.jp","https://www.kodomokagakukan.com","夏期休業後"]
[227,"新規","市町村向け","ゴールデンウィークスペシャル\n（子ども科学館まつり\n代替企画）","学術一般 - 物理・天文・地学","盛岡市","ゴールデンウィークに特別なイベントを行う事で，科学・技術に触れる機会を提供し，興味を持ってもらう。",null,2021,5,1,2021,5,5,"各内容による","\n有料（一部無料）","各内容により異なる","盛岡市子ども科学館","盛岡市本宮字蛇屋敷13-1","盛岡市子ども科学館","019-634-1171","019-635-2561","kokabou@goto.co.jp","https://www.kodomokagakukan.com"]
[228,"継続","市町村向け","渋民・生出地区子ども映画会","現代的課題 - 子育て・家庭教育","盛岡市","渋民・生出地区の各保育施設において，視聴覚教材による子育て支援をする。",null,2021,5,null,2022,2,null,"なし","無料",null,null,null,"盛岡市渋民公民館","019-683-3526","019-683-3528"]
[229,"新規","市町村向け","ホッとひと息。ママの時間","現代的課題 - 子育て・家庭教育","盛岡市","心のモヤモヤの解消や産後の身体のケア,作品作りを実施し,ひと息できる時間を提供する。\n講師：日本コンディショニング協会認定インストラクター　中田幸恵他",null,2021,6,null,2021,6,null,"5人","無料",null,null,null,"盛岡市渋民公民館","019-683-3526","019-683-3528"]
[230,"継続","市町村向け","子どもスペシャル（夏）","現代的課題 - 子育て・家庭教育","盛岡市","親子のふれあいを支援するために実施する。県民の森で七滝ハイキングと施設内にて親子のレクリエーションを実施予定。\n講師：岩手県民の森サポーターズ会員　松田忠昭\n保険料：30円",null,2021,8,8,2021,8,8,"20人","有料","保険料30円",null,null,"盛岡市渋民公民館","019-683-3526","019-683-3528"]
[231,"継続","市町村向け","子どもスペシャル（冬）","現代的課題 - 子育て・家庭教育","盛岡市","子ども達に普段は体験することができない,液体窒素を使った科学実験を実施し,科学への興味関心を高める。【SDGｓ目標４】\n講師：盛岡市子ども科学館",null,2022,1,8,2022,1,8,"20人","無料",null,null,null,"盛岡市渋民公民館","019-683-3526","019-683-3528"]
[232,"新規","市町村向け","おじいちゃんと門松をつくろう！","現代的課題 - 子育て・家庭教育","盛岡市","おじいちゃんと孫がふれ合いながら本格的な門松を製作し,日本の伝統文化のよさを実感する。【SDGｓ目標11】\n講師：未定\n材料費,保険料：8,030円",null,2021,12,18,2021,12,18,"12人","有料","8,030円",null,null,"盛岡市渋民公民館","019-683-3526","019-683-3528"]
[233,"継続","市町村向け","夏休み！こども大作戦","スポーツ・健康 - 登山・野外活動","盛岡市","つどいの森で自然に親しむ機会を提供する。イワナのつかみ取り体験と流しそうめんを実施予定。\n講師：森林インストラクター会員 川村晃寛\n保険料,食材費等：1,080円",null,2021,7,23,2021,7,23,"20人","有料","1,080円",null,null,"盛岡市渋民公民館","019-683-3526","019-683-3528"]
[234,"継続","市町村向け","冬休み！こども大作戦","スポーツ・健康 - 登山・野外活動","盛岡市","玉山地域の特色を活かし，ドーム船でのワカサギ釣り，雪遊びの自然体験を提供する。薮川地区公民館との合同講座。\n講師：竹田勝博（予定）\n保険料，活動費等：1,400円",null,2022,1,7,2022,1,7,"15人","有料","1,400円",null,null,"盛岡市渋民公民館","019-683-3526","019-683-3528"]
[235,"継続","市町村向け","親子でチャレンジ料理教室","教養・文化 - 料理・お茶・お花・書道","盛岡市","家庭教育，食育を支援するために実施する。親子でふれあいながら料理し，料理に興味を持つきっかけを作る。【SDGｓ目標12】\n講師：食の匠・手作り工房きくぱん 横沢きく(予定)\n保険料，食材費：830円",null,2022,2,12,2022,2,12,"12人","有料","830円",null,null,"盛岡市渋民公民館","019-683-3526","019-683-3528"]
[236,"新規","市町村向け","チャレンジ・ザ・ドミノたおし","スポーツ・健康 - レクリエーション","盛岡市","思い思いのドミノ倒しの仕掛けを作って,集中力や想像力を高める。\n講師：ドミノいわて代表　日脇隆弘",null,2021,8,5,2021,8,5,"20人","無料",null,null,null,"盛岡市渋民公民館","019-683-3526","019-683-3528"]
[237,"継続","市町村向け","渋民放課後子ども教室","現代的課題 - 環境・自然保護","盛岡市","子どもたちが自然体験や地域学習を通して，心豊かで健やかに育まれる環境づくりを推進する。【SDGｓ目標11,17】\n講師：未定",null,2021,9,null,2022,1,null,"なし","無料",null,null,null,"盛岡市渋民公民館","019-683-3526","019-683-3528"]
[238,"継続","市町村向け","童謡・叙情歌を歌おう","教養・文化 - 音楽","盛岡市","健康増進とリフレッシュを目的に,歌唱力に左右されない童謡や叙情歌を合唱する機会を提供する。【SDGｓ目標３】\n講師：石山一枝(歌唱指導)　　　舞田小波(ピアノ伴奏)",null,2021,4,null,2021,8,null,"20人","有料","1,500円",null,null,"盛岡市渋民公民館","019-683-3526","019-683-3528"]
[239,"新規","市町村向け","ヒストリア玉山","学術一般 - 歴史・地理・民俗","盛岡市","玉山地域の文化や歴史について学ぶ。今回はオオヤマザクラの植樹についての解説を聞きながら,サクラパーク姫神と姫神ウィンドパークを見学する。",null,2021,5,7,2021,5,7,"12人","有料","保険料30円",null,null,"盛岡市渋民公民館","019-683-3526","019-683-3528"]
[240,"継続","市町村向け","登山教室","スポーツ・健康 - 登山・野外活動","盛岡市","健康増進とリフレッシュを目的に,初夏の八幡平を頂上から源田森まで往復するハイキングを実施する。",null,2021,6,2,2021,6,2,"15人","有料","保険料200円",null,null,"盛岡市渋民公民館","019-683-3526","019-683-3528"]
[241,"継続","市町村向け","健康講座～免疫力up","スポーツ・健康 - 健康・予防","盛岡市","ゆったりとしたヨガや簡単なエアロビクスを通し,自身の体と向き合う習慣を作り,免疫力アップにつなげる。",null,2021,7,null,2021,7,null,"15人","有料","1,060円",null,null,"盛岡市渋民公民館","019-683-3526","019-683-3528"]
[242,"新規","市町村向け","ワイン講座","教養・文化 - その他","盛岡市","地元発祥のワインの産地を訪ね,地元産ならではのこだわりについて学ぶ。\n【SDGｓ目標２,12】\n講師：未定\n保険料，食材費：1,030円",null,2021,9,4,2021,9,4,"15人","有料","1,030円",null,null,"盛岡市渋民公民館","019-683-3526","019-683-3528"]
[243,"継続","市町村向け","大人のクラフト教室","教養・文化 - 美術・工芸","盛岡市","ミニ羽子板作りを通して,日本の伝統文化に触れる。\n講師：ひなの会代表　成田和子\n保険料，材料費：1,800円",null,2021,9,9,2021,9,9,"8人","有料","1,800円",null,null,"盛岡市渋民公民館","019-683-3526","019-683-3528"]
[244,"新規","市町村向け","家庭料理教室","教養・文化 - 料理・お茶・お花・書道","盛岡市","日本の伝統食文化であるぬか床の魅力を実感し,関心を高める。【SDGｓ目標11,12】\n講師：未定\n保険料，食材費：1,450円",null,2021,11,20,2021,11,20,"12人","有料","1,450円",null,null,"盛岡市渋民公民館","019-683-3526","019-683-3528"]
[245,"継続","市町村向け","男の料理教室","教養・文化 - 料理・お茶・お花・書道","盛岡市","男性が作りたくなる料理教室を実施。今回は玉山地域の特産である「もりおか短角牛」を使ったローストビーフを作る。\n【SDGｓ目標２,12】\n講師：喫茶緑青　松本洋介\n保険料，食材費：3,030円",null,2021,12,12,2021,12,12,"8人","有料","3,030円",null,null,"盛岡市渋民公民館","019-683-3526","019-683-3528"]
[246,"継続","市町村向け","ＳＮＳ講座","ビジネスライフ - その他","盛岡市","SNSの使い方を学ぶ初心者向け講座を実施。代表的なSNSの種類の特徴や活用方法について学ぶ。\n講師：サニークリエイト代表　日脇隆弘\n教材費2,000円",null,2022,3,5,2022,3,5,"16人","有料","2,000円",null,null,"盛岡市渋民公民館","019-683-3526","019-683-3528"]
[247,"継続","市町村向け","渋民・生出高砂大学","教養・文化 - その他","盛岡市","健康や生きがいづくり，一般教養を学習する場を提供し，会員相互の親睦も図る。\n【SDGｓ目標３,11,17】\n講師：未定\n保険料，活動費等：700円　\n視察研修：2,000円",null,2021,5,null,2022,2,null,"なし","有料","活動費、視察研修費など",null,null,"盛岡市渋民公民館","019-683-3526","019-683-3528"]
[248,"継続","市町村向け","玉山地域公民館まつり","教養・文化 - 郷土芸能","盛岡市","玉山地域内の公民館利用団体や芸術文化団体等の作品展示，舞台発表等を実施し，玉山地域の芸術・文化の振興を図る。\n【SDGｓ目標11,17】",null,2021,10,30,2021,10,31,"なし","無料",null,null,null,"盛岡市渋民公民館","019-683-3526","019-683-3528"]
[249,"継続","市町村向け","ＥＭボカシづくり","現代的課題 - 環境・自然保護","盛岡市","　土中の微生物を活性化させて，土壌環境を良好にするＥＭボカシを作る。　　　　　　　　　　　　　　　　\n　講師：坂本江美　",null,2021,5,21,2021,5,21,"12人","無料",null,null,null,"教育委員会薮川地区公民館","019-681-5111","019-681-5035"]
[250,"継続","市町村向け","コンディショニング","スポーツ・健康 - 健康・予防","盛岡市","　硬くなった筋肉を弾力ある状態に戻し，使わない筋肉を使うことで身体の調子を整える運動を行い，体質改善に繋げる。　　講師：中田幸恵　　　　　　　　　　　　　　　　　　　　\n　　",null,2021,5,28,2021,5,28,"12人","無料",null,null,null,"教育委員会薮川地区公民館","019-681-5111","019-681-5035"]
[251,"継続","市町村向け","トレッキング","スポーツ・健康 - 登山・野外活動","盛岡市","　美しい自然に触れながら散策することで，自然環境の素晴らしさを体感して，健康であることの大切さを改めて実感する。\n　講師：池内博\n",null,2021,7,11,2021,7,11,"12人","無料",null,null,null,"教育委員会薮川地区公民館","019-681-5111","019-681-5035"]
[252,"継続","市町村向け","デコパージュ","教養・文化 - 美術・工芸","盛岡市","　同じ絵柄のプリントを４枚使用して， 3D(立体）に仕上げて，壁掛けを作る。\n　講師：高橋康子　材料費 1,500円",null,2021,8,1,2021,8,1,"12人","有料","1,500円",null,null,"教育委員会薮川地区公民館","019-681-5111","019-681-5035"]
[253,"継続","市町村向け","山の幸染め","教養・文化 - 美術・工芸","盛岡市","　庭先の花や葉を用い，火や水を使わずバッグなどに自然や環境に優しい染料で染める。\n　講師：坂本スミ　材料費　2,500円",null,2021,8,27,2021,8,27,"12人","有料","2,500円",null,null,"教育委員会薮川地区公民館","019-681-5111","019-681-5035"]
[254,"継続","市町村向け","盛岡探訪","学術一般 - 歴史・地理・民俗","盛岡市","　先人・文化人ゆかりの名所，旧跡を巡り，盛岡の歴史について理解を深める。\n　講師：盛岡ふるさとガイド　\n",null,2021,9,26,2021,9,26,"12人","無料",null,null,null,"教育委員会薮川地区公民館","019-681-5111","019-681-5035"]
[255,"継続","市町村向け","被災地復興視察","現代的課題 - 環境・自然保護","盛岡市","　山田町を訪ね，自然災害の恐ろしさを学ぶとともに防災意識を高める。\n　講師：山田町観光ガイド　",null,2021,10,17,2021,10,17,"20人","無料",null,null,null,"教育委員会薮川地区公民館","019-681-5111","019-681-5035"]
[256,"継続","市町村向け","盛岡城と城下町","学術一般 - 歴史・地理・民俗","盛岡市","　南部氏により築かれた城下町盛岡のシンボル【国指定史跡 盛岡城跡】の歴史を学ぶ。　\n　講師：歴史文化課　職員　",null,2021,11,12,2021,11,12,"15人","無料",null,null,null,"教育委員会薮川地区公民館","019-681-5111","019-681-5035"]
[257,"新規","市町村向け","料理教室","教養・文化 - 料理・お茶・お花・書道","盛岡市","　健康な暮らしに役立つ料理を学ぶ。　　　　\n　講師：横澤きく　材料費：未定",null,2021,9,5,2021,9,5,"12人","有料","未定",null,null,"教育委員会薮川地区公民館","019-681-5111","019-681-5035"]
[258,null,"市町村向け","学びの情報発信","教養・文化 - その他","滝沢市","広報たきざわや市ホームページ、「生きがい」と「やりがい」の学びガイド活用などを通じた学びの情報共有や学習相談など学びの支援の充実に努めます。",null,"年間",null,null,null,null,null,null,null,null,"滝沢市役所"]
[259,null,"市町村向け","ふれあいまちづくり出前講座","教養・文化 - その他","滝沢市","滝沢市ふれあいまちづくり出前講座で全庁規模による横断的な生涯学習推進ネットワーク形成を通じた学びの支援を充実します。",null,"年間",null,null,null,null,null,null,null,null,"滝沢市内"]
[260,null,"市町村向け","放送大学や大学公開講座の利用促進","学術一般 - その他","滝沢市","岩手学習センターと連携した放送大学の活用推奨や大学公開講座などに関する情報提供を行い、より高度で専門的な学習機会の充実を図ります。",null,"年間",null,null,null,null,null,null,null,null,"滝沢市役所"]
[261,null,"市町村向け","滝沢ふるさと交流館管理運営事業",null,"滝沢市","生涯学習関連施設の維持修繕や管理運営を行い、利便性や機能の充実を図ります。\nまた、ふるさと交流館と多目的研修センターにおいて、インターネットを活用した施設利用状況の公開による利便性の充実を図ります。",null,"年間",null,null,null,null,null,null,null,null,"滝沢ふるさと交流館"]
[262,null,"市町村向け","滝沢市多目的研修センター管理運営事業",null,"滝沢市","生涯学習関連施設の維持修繕や管理運営を行い、利便性や機能の充実を図ります。\nまた、ふるさと交流館と多目的研修センターにおいて、インターネットを活用した施設利用状況の公開による利便性の充実を図ります。",null,"年間",null,null,null,null,null,null,null,null,"滝沢市多目的研修センター"]
[263,null,"市町村向け","姥屋敷多目的研修センター管理運営事業",null,"滝沢市","生涯学習関連施設の維持修繕や管理運営を行い、利便性や機能の充実を図ります。\nまた、ふるさと交流館と多目的研修センターにおいて、インターネットを活用した施設利用状況の公開による利便性の充実を図ります。",null,"年間",null,null,null,null,null,null,null,null,"姥屋敷多目的研修センター"]
[264,null,"市町村向け","幼児家庭教育講座","現代的課題 - 子育て・家庭教育","滝沢市","幼児期の家庭教育に関係する講座を実施し、幼児をもつ親などの学習機会の拡充を図ります。",null,2021,5,null,2022,2,null,null,null,null,"市内各保育園や認定こども園"]
[265,null,"市町村向け","小中学校家庭教育学級","現代的課題 - 子育て・家庭教育","滝沢市","子どもの発達段階に応じた家庭・地域での教育のあり方や親の役割、家庭教育の重要性など家庭教育に関する課題解決学習機会を提供し、家庭教育力の向上を目的として、各学校において目標を設定し講座を実施します。 \n",null,2021,5,null,2022,2,null,null,null,null,"市内小中学校"]
[266,null,"市町村向け","ジュニアリーダーズセミナー","現代的課題 - まちづくり","滝沢市","次代を担う中学生や高校生たちが、異年齢の仲間たちとの交流や地域課題解決学習（研修会やプログラムづくり）などを通じた世代間交流や地域活動への参画交流・活躍を促進します。",null,2021,10,30,2021,10,30,null,null,null,"岩手山青少年交流の家"]
[267,null,"市町村向け","子ども会リーダー養成研修","現代的課題 - まちづくり","滝沢市","子ども会のリーダーとして活動する子どもたちが、子ども会の意義・役割などの基本を学び、地域課題解決学習（研修会やレクリエーション活動）などを通じた世代間交流や地域活動への参画交流・活躍を促進します。",null,2021,12,4,2021,12,4,null,null,null,"岩手山青少年交流の家"]
[268,null,"市町村向け","放課後子ども教室推進事業\n（市・運営団体）","教養・文化 - その他","滝沢市","子どもたちが放課後などの時間を安全に過ごすことができる居場所づくりの一環として放課後子ども教室を開催し、体験学習機会の充実を図ります。",null,"年間",null,null,null,null,null,null,null,null,"滝沢ふるさと交流館"]
[269,null,"市町村向け","新成人のつどい","教養・文化 - その他","滝沢市","新成人の新しい門出を祝福し、地域を支え、次世代の社会を担う若い新しい力となるよう参画意識を高め、新成人の自覚と誇りを喚起します。今年度は昨年度の対象者も含めて2ケ年分を連日開催とします。",null,2022,1,8,2022,1,8,"R2新成人",null,null,"総合公園体育館"]
[270,null,"市町村向け","新成人のつどい","教養・文化 - その他","滝沢市","新成人の新しい門出を祝福し、地域を支え、次世代の社会を担う若い新しい力となるよう参画意識を高め、新成人の自覚と誇りを喚起します。今年度は昨年度の対象者も含めて3ケ年分を連日開催とします。",null,2022,1,9,2022,1,9,"R3新成人",null,null,"総合公園体育館"]
[271,null,"市町村向け","新成人のつどい実行委員会設置","教養・文化 - その他","滝沢市","新成人の参画交流・活躍による企画と運営を実施します。（R2新成人対象含む）",null,2021,9,null,2022,1,null,null,null,null,"滝沢市役所"]
[272,null,"市町村向け","子ども会育成会指導者研修会（市子育連主催）","現代的課題 - まちづくり","滝沢市","次期子ども会育成会役員を対象とした研修会や地域課題解決学習（子ども会活動による地域づくり）による資質向上を図ります。",null,2022,1,22,2022,1,22,null,null,null,"滝沢ふるさと交流館"]
[273,null,"市町村向け","女性研修会","現代的課題 - 男女共同参画","滝沢市","女性研修会において、女性活躍・心身の健康づくりなどに関する地域課題解決学習を通じた女性活躍の推進を図ります。",null,2021,10,null,2021,10,null,null,null,null,"滝沢ふるさと交流館"]
[274,null,"市町村向け","国際理解・国際交流講座「多文化共生セミナー」","現代的課題 - 語学・国際理解","滝沢市","県国際交流協会や市国際交流協会、市ユネスコ協会などとの連携・協働による「多文化共生セミナー」を開催します。",null,2021,7,10,2021,7,10,null,null,null,"ビッグルーフ滝沢大ホール"]
[275,null,"市町村向け","幼児国際理解交流会\n","現代的課題 - 語学・国際理解","滝沢市","幼児の国際理解への意識醸成のため、日常的に交流する機会の少ない外国人の皆さんと接する機会を提供します。",null,2021,5,null,2021,12,null,null,null,null,"市内3保育園"]
[276,null,"市町村向け","滝沢市教育振興運動推進協議会","現代的課題 - まちづくり","滝沢市","「明るく　かしこく　たくましい子どもの育成」を目指し、子どもと家庭、学校、地域、市行政の５者が連携・協働し、コミュニティスクール移行を見据えた地域学校協働活動（教育振興運動と学校教育振興協議会など）を通じた「地域とともにある学校づくり」や「学校を核とした地域づくり」を展開します。",null,"年間",null,null,null,null,null,null,null,null,"市内など"]
[277,null,"市町村向け","滝沢市青少年育成市民会議","現代的課題 - まちづくり","滝沢市","滝沢市青少年育成市民会議と連携・協働して、青少年健全育成と地域活性化を促進します。",null,"年間",null,null,null,null,null,null,null,null,"市内など"]
[278,null,"市町村向け","滝沢市子ども会育成連合会","現代的課題 - まちづくり","滝沢市","滝沢市子ども会育成連合会と連携・協働して、子ども会育成者の資質の向上と子ども会活動の活性化を促進します。",null,"年間",null,null,null,null,null,null,null,null,"市内など"]
[279,null,"市町村向け","滝沢市地域婦人協議会","現代的課題 - まちづくり","滝沢市","滝沢市地域婦人協議会と連携・協働して、女性活躍の推進による地域課題の解決を促進します。",null,"年間",null,null,null,null,null,null,null,null,"市内など"]
[280,null,"市町村向け","滝沢市ＰＴＡ連絡協議会","現代的課題 - まちづくり","滝沢市","滝沢市ＰＴＡ連絡協議会と連携・協働して、児童生徒の福祉増進や教育課題の解決を促進します。",null,"年間",null,null,null,null,null,null,null,null,"市内など"]
[281,null,"市町村向け","滝沢ユネスコ協会","現代的課題 - 語学・国際理解","滝沢市","滝沢ユネスコ協会と連携・協働して、国際連合・ユネスコ憲章、世界人権宣言の精神に基づく活動を通じた地域活性化を促進します。",null,"年間",null,null,null,null,null,null,null,null,"市内など"]
[282,null,"市町村向け","滝沢市国際交流協会","現代的課題 - 語学・国際理解","滝沢市","滝沢市国際交流協会と連携・協働して、多文化共生社会の啓発と国際感覚豊かな人づくりを目指します。",null,"年間",null,null,null,null,null,null,null,null,"市内など"]
[283,null,"市町村向け","滝沢市少年団体指導員協議会","現代的課題 - まちづくり","滝沢市","滝沢市少年団体指導員協議会と連携・協働して、自然体験活動を通じた青少年健全育成と地域活性化を促進します。",null,"年間",null,null,null,null,null,null,null,null,"市内など"]
[284,null,"市町村向け","生涯学習推進事業\n・学びプランたきざわの確実な展開","教養・文化 - その他","滝沢市","第１次滝沢市生涯学習推進計画後期基本計画学びプランたきざわの確実な展開を図ります。",null,"年間",null,null,null,null,null,null,null,null,"滝沢市役所"]
[285,null,"市町村向け","生涯学習推進事業\n・生涯学習推進協議会\n・生涯学習推進会議","教養・文化 - その他","滝沢市","生涯学習推進協議会（生涯学習関係団体と小中学校長会、学識経験者で構成）と生涯学習推進会議（市三役と全部長などで構成）を通じた全庁規模による横断的な生涯学習・スポーツ推進を図ります。",null,"年2回",null,null,null,null,null,null,null,null,"滝沢市役所"]
[286,null,"市町村向け","社会教育委員会議","現代的課題 - まちづくり","滝沢市","社会教育委員会議を通じたネットワーク型社会教育行政の展開と社会教育を基盤とした「人・つながり・地域づくり」の促進を図ります。 \n",null,"年2回",null,null,null,null,null,null,null,null,"滝沢市役所"]
[287,null,"市町村向け","青少年問題協議会","現代的課題 - まちづくり","滝沢市","青少年問題協議会の開催により、総合的な情報共有や意見交換、地域課題解決学習（青少年対策講演会）で青少年問題に関する人と人とのつながりづくりを促進します。",null,"年1回",null,null,null,null,null,null,null,null,"滝沢市役所"]
[288,null,"市町村向け","岩手県社会教育連絡協議会","現代的課題 - まちづくり","盛岡市","県内市町村と連携・協働して情報共有や研修会などを実施し社会教育行政推進体制の強化を図ります。",null,null,null,null,null,null,null,null,null,null,"盛岡市内"]
[289,null,"市町村向け","管内教育振興協議会","現代的課題 - まちづくり","盛岡市","管内区市町村と連携・協働して共同事業を実施し社会教育行政推進体制の強化を図ります。",null,null,null,null,null,null,null,null,null,null,"盛岡市内"]
[290,null,"市町村向け","教育振興運動推進協議会合同会議","教養・文化 - その他","滝沢市","協議会事業の企画運営や運動推進方針などに関する情報共有を図ります。",null,2021,4,22,2021,4,22,null,null,null,"滝沢市役所"]
[291,null,"市町村向け","教育振興運動推進協議会総会","教養・文化 - その他","滝沢市","協議会事業の企画運営や運動推進方針などに関する情報共有を図ります。",null,2021,7,4,2021,7,4,null,null,null,"総合公園体育館"]
[292,null,"市町村向け","教育振興運動市町村担当者研修会(県事業）","教養・文化 - その他","花巻市","令和3年度岩手県教育振興運動推進方針などについて学びます。",null,2021,7,null,2021,7,null,null,null,null,"岩手県生涯学習推進センター"]
[293,null,"市町村向け","管内教育振興運動推進研修会（教育事務所主催）","教養・文化 - その他","滝沢市","岩手県教育振興運動推進方針や学校と地域との連携・協働などについて理解を深めます。",null,2021,9,null,2021,9,null,null,null,null,"盛岡市内"]
[294,null,"市町村向け","たきざわ学びフェスタ","学術一般 - 教育","滝沢市","市民の生涯学習による「人・つながり・地域づくり」への意識啓発と「明るく　かしこく　たくましい子どもの育成」、地域の教育課題の解決を目指す教育振興運動の一層の推進を図ります。",null,2021,11,27,2021,11,27,null,null,null,"ビッグルーフ滝沢"]
[295,null,"市町村向け","ＳＤＧｓセミナーinたきざわ第1部","現代的課題 - 語学・国際理解","滝沢市","県環境学習交流センターや県青少年育成県民会議などと連携・協働したＳＤＧｓに関する学びによる「国際感覚豊かな人づくり」と「発達障がいの理解と支援」の促進を図ります。\n第一部　世界はひとつＳＤＧｓセミナー\n第二部　発達障がいとペアレントトレーニングセミナー\n第三部　親子自然観察トレッキング",null,2021,9,25,2021,9,25,null,null,null,"ビッグルーフ滝沢"]
[296,null,"市町村向け","ＳＤＧｓセミナーinたきざわ第2部","現代的課題 - 語学・国際理解","滝沢市","県環境学習交流センターや県青少年育成県民会議などと連携・協働したＳＤＧｓに関する学びによる「国際感覚豊かな人づくり」と「発達障がいの理解と支援」の促進を図ります。\n第一部　世界はひとつＳＤＧｓセミナー\n第二部　発達障がいとペアレントトレーニングセミナー\n第三部　親子自然観察トレッキング",null,2021,10,16,2021,10,16,null,null,null,"ビッグルーフ滝沢"]
[297,null,"市町村向け","ＳＤＧｓセミナーinたきざわ第3部","現代的課題 - 語学・国際理解","滝沢市","県環境学習交流センターや県青少年育成県民会議などと連携・協働したＳＤＧｓに関する学びによる「国際感覚豊かな人づくり」と「発達障がいの理解と支援」の促進を図ります。\n第一部　世界はひとつＳＤＧｓセミナー\n第二部　発達障がいとペアレントトレーニングセミナー\n第三部　親子自然観察トレッキング",null,2021,10,23,2021,10,23,null,null,null,"岩手山麓"]
[298,null,"市町村向け","国際理解・国際交流講座「多文化共生セミナー」【再掲】","現代的課題 - 語学・国際理解","滝沢市","県国際交流協会や市国際交流協会、市ユネスコ協会などとの連携・協働による「多文化共生セミナー」を開催します。",null,2021,7,10,2021,7,10,null,null,null,"ビッグルーフ滝沢"]
[299,null,"市町村向け","子ども会活動支援事業","教養・文化 - その他","滝沢市","子ども会活動支援事業を通じた子どもたちの豊かな人間性が養われるよう自然とのふれあい活動メニューなどを子ども会に提供し、会活動に活かすことで、「明るくかしこくたくましい子どもの育成」を図ります。",null,2021,7,null,2021,12,null,null,null,null,"岩手県内"]
[300,null,"市町村向け","スポーツ推進審議会の開催","スポーツ・健康 - その他","滝沢市","第1次滝沢市生涯学習推進計画学びプランたきざわの確実な展開を図るスポーツ推進審議会を開催します。\n",null,2022,2,null,2022,2,null,null,null,null,"滝沢市役所"]
[301,null,"市町村向け","スポーツ参画人口の拡大","スポーツ・健康 - その他","滝沢市","スポーツイベント（スポーツフェスティバルや市民体育祭、チャレンジデーなど）やスポーツ教室、講習会など通じた全ての人々が興味・関心などに応じた参画を促し交流・活躍を図ります。\n自治会推薦のスポーツ推進リーダーによる地域スポーツ活動の活性化を図ります。\nさらに、東京２０２０オリンピック・パラリンピックＰＲイベントを通じた機運醸成を図ります。\n",null,2021,6,16,2021,6,16,null,null,null,"滝沢ニュータウンメインストリート"]
[302,null,"市町村向け","スポーツ参画人口の拡大","スポーツ・健康 - その他","滝沢市","スポーツイベント（スポーツフェスティバルや市民体育祭、チャレンジデーなど）やスポーツ教室、講習会など通じた全ての人々が興味・関心などに応じた参画を促し交流・活躍を図ります。\n自治会推薦のスポーツ推進リーダーによる地域スポーツ活動の活性化を図ります。\nさらに、東京２０２１オリンピック・パラリンピックＰＲイベントを通じた機運醸成を図ります。\n",null,2021,8,14,2021,8,14,null,null,null,"ビッグルーフ滝沢"]
[303,null,"市町村向け","スポーツ参画人口の拡大","スポーツ・健康 - その他","滝沢市","スポーツイベント（スポーツフェスティバルや市民体育祭、チャレンジデーなど）やスポーツ教室、講習会など通じた全ての人々が興味・関心などに応じた参画を促し交流・活躍を図ります。\n自治会推薦のスポーツ推進リーダーによる地域スポーツ活動の活性化を図ります。\nさらに、東京２０２２オリンピック・パラリンピックＰＲイベントを通じた機運醸成を図ります。\n",null,2021,10,27,2021,10,27,null,null,null,"市内各所"]
[304,null,"市町村向け","滝沢市スポーツ推進委員協議会の支援","スポーツ・健康 - その他","滝沢市","スポーツ推進委員協議会を支援し、主催事業の開催支援と子ども会や自治会などへのスポーツ推進委員派遣を通じたスポーツ・レクリエーションの機会の拡充を図ります。",null,"年間",null,null,null,null,null,null,null,null,"市内"]
[305,null,"市町村向け","スポーツを通じた健康増進","スポーツ・健康 - その他","滝沢市","滝沢市健康づくり宣言に基づき、健康づくりへの意識高揚とスポーツ推進による地域活性化を図ります。",null,"年間",null,null,null,null,null,null,null,null,"市内"]
[306,null,"市町村向け","健康づくりの支援","スポーツ・健康 - その他","滝沢市","滝沢市体育協会と連携・協働した健康推進事業「元気アップ教室」や自治会などの地域と連携した「健康教室」、「栄養教室」などの充実を図り市民の健康づくりを支援します。",null,"年間",null,null,null,null,null,null,null,null,"市内"]
[307,null,"市町村向け","情報発信・交流の充実","スポーツ・健康 - その他","滝沢市","各種スポーツで活躍した選手・団体などを広く周知することにより、スポーツへの関心を高め、スポーツ実践活動を促進します。\n・市内体育施設や広報たきざわ、ホームページなどによる情報発信・交流\n・盛岡広域スポーツコミッションによるイベント周知や市内有力選手の紹介",null,"年間",null,null,null,null,null,null,null,null,"市内体育施設"]
[308,null,"市町村向け","公益財団法人滝沢市体育協会との連携・協働","スポーツ・健康 - その他","滝沢市","滝沢市体育協会や各種目別協会（27団体）と連携・協働し、競技スポーツの指導者・審判講習会を通じた地域スポーツ活動を支える指導者資質向上、県内外で開催される研修会・講習会などに関する情報発信を促進します。",null,"年間",null,null,null,null,null,null,null,null,"市内"]
[309,null,"市町村向け","コンプライアンス徹底とガバナンス強化","スポーツ・健康 - その他","滝沢市","市補助金交付団体について関係法令に基づいた補助金申請書類確認などの指導監督を通じたコンプライアンス徹底に努めます。\nまた、関係機関と連携・協働し、スポーツ団体の不祥事など問題発生の未然防止やスポーツ・インテグリティ（誠実性・健全性・高潔性）を高めた組織運営の透明化・ガバナンス強化について指導に努めます。",null,"年間",null,null,null,null,null,null,null,null,"市内"]
[310,null,"市町村向け","スポーツを通じた地域活性化","スポーツ・健康 - その他","滝沢市","滝沢市スポーツ推進委員協議会や公益財団法人滝沢市体育協会、種目別協会、地域スポーツクラブ、商工会、観光協会、企業などとの連携・協働で、スポーツを通じた地域活性化を推進します。\n地域スポーツイベントへの参画を促し交流・活躍を通じたスポーツによる地域一体感の醸成を促進します。",null,"年間",null,null,null,null,null,null,null,null,"市内"]
[311,null,"市町村向け","スポーツアクティビティの創出","スポーツ・健康 - その他","滝沢市","滝沢市スポーツ推進委員協議会や商工会、観光協会、企業、いわてスポーツコミッション、盛岡広域スポーツコミッションと連携・協働し、観光情報の発信や特産品のＰＲなどスポーツを通じた地域活性化と人的・経済的交流の拡大を目指します。\n各団体や関係各課と連携・協働し、市内の山、川など豊かな自然を生かしたスポーツアクティビティの創出とスポーツ資源としての可能性調査に取り組みます。",null,"年間",null,null,null,null,null,null,null,null,"市内"]
[312,null,"市町村向け","希望郷いわて　元気・体力アップ６０（ロクマル）運動","スポーツ・健康 - その他","滝沢市","「希望郷いわて　元気・体力アップ60運動」の取り組みを、児童生徒の実態に合わせて、意図的・計画的に毎日60分以上運動や遊び、スポーツに親しみながら運動の習慣化・体力向上を目指します。",null,"年間",null,null,null,null,null,null,null,null,"市内"]
[313,null,"市町村向け","総合型地域スポーツクラブ「チャグチャグスポーツクラブ」と連携・協働","スポーツ・健康 - その他","滝沢市","総合型地域スポーツクラブ「チャグチャグスポーツクラブ」と連携・協働し、スポーツを通じた地域課題や教育課題の解決、スポーツ・レクリエーションの機会の拡充を図ります。\n・チャグチャグスポーツクラブ(14種目、7教室)",null,"年間",null,null,null,null,null,null,null,null,"市内"]
[314,null,"市町村向け","滝沢市スポーツ少年団と連携・協働","スポーツ・健康 - その他","滝沢市","滝沢市スポーツ少年団（20単位団）と連携・協働し、スポーツを通じた地域課題や教育課題の解決、学び成長世代におけるスポーツ・レクリエーションの機会の拡充を図ります。",null,"年間",null,null,null,null,null,null,null,null,"市内"]
[315,null,"市町村向け","いわてスーパーキッズと新体力テスト","スポーツ・健康 - その他","滝沢市","公益財団法人岩手県体育協会や滝沢市スポーツ少年団本部、市内各小学校などと連携・協働して、岩手から世界で活躍するトップアスリート発掘・育成を目指した「いわてスーパーキッズ」への参加を推奨します。\nまた、その応募資格基準となるスポーツ庁による新体力テストを実施します。",null,"年間",null,null,null,null,null,null,null,null,"市内"]
[316,null,"市町村向け","プロスポーツチームとの連携・協働","スポーツ・健康 - その他","滝沢市","県内トッププロスポーツチームなどと連携・協働し、スポーツイベントや教室、講習会などを通じた子どもとトップアスリートの交流イベントの情報発信に努め、スポーツの楽しさを体験する機会の充実を図ります。",null,"年間",null,null,null,null,null,null,null,null,"市内"]
[317,null,"市町村向け","障がい者スポーツの推進","スポーツ・健康 - その他","滝沢市","障がい者計画や障がい福祉計画、スポーツ推進委員などと連携したスポーツの支援の充実を図ります。",null,"年間",null,null,null,null,null,null,null,null,"市内"]
[318,null,"市町村向け","スポーツ施設のバリアフリー化とユニバーサルデザイン化","スポーツ・健康 - その他","滝沢市","スポーツ施設のバリアフリー化・ユニバーサルデザイン化に向けた基準や先進事例の情報収集に努めます。",null,"年間",null,null,null,null,null,null,null,null,"市内"]
[319,null,"市町村向け","高齢者スポーツの推進","スポーツ・健康 - その他","滝沢市","睦大学や市老人クラブ連合会、シニア世代を対象としたチャグチャグスポーツクラブなどと連携・協働した高齢者スポーツの推進を図ります。",null,"年間",null,null,null,null,null,null,null,null,"市内"]
[320,null,"市町村向け","スポーツを通じた女性活躍の推進","スポーツ・健康 - その他","滝沢市","スポーツを通じた女性活躍の推進を図ります。",null,"年間",null,null,null,null,null,null,null,null,"市内"]
[321,null,"市町村向け","計画的な維持管理、修繕、更新","スポーツ・健康 - その他","滝沢市","市内体育施設の計画的な維持管理、修繕、更新を通じた利用促進を図ります。",null,"年間",null,null,null,null,null,null,null,null,"市内体育施設"]
[322,null,"市町村向け","学校体育施設の開放","スポーツ・健康 - その他","滝沢市","市内小中学校や各学校施設開放運営委員会と連携・協働し、市立小中学校の体育施設などの開放によるスポーツ・レクリエーション活動の場を提供します。",null,"年間",null,null,null,null,null,null,null,null,"市内"]
[323,null,"市町村向け","スポーツパル制度の広域化","スポーツ・健康 - その他","滝沢市","盛岡広域スポーツコミッションと連携・協働し、スポーツパル制度（スポーツ施設の情報共有・ポイント制度・交流イベントなど）の広域化を目指します。また、施設利用ポイントによるグッズ交換などスポーツ活動機会の充実を図ります。さらに、広域スポーツ施設の共有化や適正配置を実施します。",null,"年間",null,null,null,null,null,null,null,null,"市内"]
[324,null,"市町村向け","アスリート育成強化","スポーツ・健康 - その他","滝沢市","公益財団法人滝沢市体育協会と連携・協働し、全国大会などの選手派遣や奨励金交付を通じた競技活動の支援に取り組みます。\n全国レベルの競技者や団体、指導者などを招きイベントや強化試合、クリニック講習会などを通じたアスリート育成強化と競技スポーツの裾野の拡大を目指します。",null,"年間",null,null,null,null,null,null,null,null,"市内"]
[325,null,"市町村向け","盛岡広域スポーツコミッションと連携・協働","スポーツ・健康 - その他","滝沢市","盛岡広域8市町からオリンピックやパラリンピックで活躍するアスリート輩出を目指す「エイト・オリンピアンズ・プロジェクト」を「情報発信・応援・育成」をキーワードに展開します。",null,"年間",null,null,null,null,null,null,null,null,"市内"]
[326,"新規","市町村向け","初級ドイツ語講座","現代的課題 - 語学・国際理解","矢巾町","一般成人が対象です。初級編として自己紹介や日常会話で役立つフレーズなどを学ぶことができます。",null,2021,7,28,2021,9,29,"5～10人","無料",null,"矢巾町公民館","矢巾町大字南矢幅第13地割123番地","矢巾町役場文化スポーツ課","019-611-2852",".019-697-5581",null,null,"先着順です"]
[327,null,"広域（近隣市町村含む）向け","田園映画祭","教養・文化 - その他","矢巾町","一般成人が対象です。視聴覚教育として映画を上映します。",null,2021,7,6,2021,7,8,"20人程度","無料",null,"矢巾町公民館","矢巾町大字南矢幅第13地割123番地","矢巾町役場文化スポーツ課","019-697-2161","019-697-5581",null,null,"申込不要"]
[328,null,"市町村向け","矢巾町芸術祭","教養・文化 - その他","矢巾町","舞踊部門、邦楽ダンス部門、展示部門を開催します。参加者は7/1～8/13まで募集予定です。",null,2021,9,12,2021,10,17,null,"参加費","団体2,000円、個人500円","矢巾町公民館、田園ホール","矢巾町大字南矢幅第13地割123番地","矢巾町役場文化スポーツ課","019-611-2852","019-697-5581",null,null,"チケット配布の予定"]
[329,null,"市町村向け","矢巾町音楽祭","教養・文化 - その他","矢巾町","吹奏楽・合奏部門、ピアノ・声楽部門を開催します。参加者は7/1～8/13まで募集予定です。",null,2021,11,6,2021,11,7,null,"参加費","団体2,000円、個人501円","矢巾町公民館、田園ホール","矢巾町大字南矢幅第13地割123番地","矢巾町役場文化スポーツ課","019-611-2852","019-697-5581",null,null,"チケット配布の予定"]
[330,null,"広域（近隣市町村含む）向け","友好都市交流振り返り展示会","現代的課題 - 語学・国際理解","矢巾町","矢巾町と友好都市を締結しているアメリカ・フリモントとの交流の軌跡をご紹介する展示会です。",null,2021,7,20,2021,7,22,null,"無料",null,"やはぱーく","矢巾町駅東一丁目12-1","矢巾町役場文化スポーツ課","019-611-2852","019-697-5581"]
[331,null,"広域（近隣市町村含む）向け","外国人とのふれあい広場","現代的課題 - 語学・国際理解","矢巾町","町内・県内在住の外国人とのふれあいの場として、イベントを開催します。",null,2021,12,11,2021,12,11,null,"参加費","未定","やはぱーく","矢巾町駅東一丁目12-1","矢巾町役場文化スポーツ課","019-611-2852","019-697-5581"]
[332,null,"市町村向け","男女共同参画パネル展","現代的課題 - 男女共同参画","矢巾町","男女共同参画に関する啓発活動としてパネルや関連図書をご自由にご覧いただけます。",null,2021,8,24,2021,9,20,null,"無料",null,"矢巾町公民館","矢巾町大字南矢幅第13地割123番地","矢巾町役場文化スポーツ課","019-611-2852","019-697-5581"]
[333,null,"市町村向け","原爆パネル展","学術一般 - 歴史・地理・民俗","矢巾町","原爆に関するパネルを展示し、戦争や平和について考える機会を提供します。",null,2021,7,27,2021,8,22,null,"無料",null,"矢巾町公民館","矢巾町大字南矢幅第13地割123番地","矢巾町役場文化スポーツ課","019-697-2161","019-697-5581"]
[334,null,"県民向け","特別展「遠野物語と遠野の縄文文化」","学術一般 - 歴史・地理・民俗","遠野市","遠野の旧石器・縄文時代の遺跡から出土した土器や石器のほか、北東北の土偶や信仰関係の資料を展示",null,2021,7,16,2021,9,23,"なし","有料","一般310\n高校以下160","遠野市立博物館","遠野市東舘町３-９","遠野市立博物館","0198-62-2340","0198-62-5758","bunka@city.tono.iwate.jp"]
[335,null,"県民向け","企画展「遠野物語と呪術」","学術一般 - 歴史・地理・民俗","遠野市","遠野を中心に東北各地のまじないに関する資料を展示",null,2021,10,22,2021,11,23,"なし","有料","一般310\n高校以下160","遠野市立博物館","遠野市東舘町３-９","遠野市立博物館","0198-62-2340","0198-62-5758","bunka@city.tono.iwate.jp"]
[336,null,"県民向け","特別展「遠野のひな人形」","学術一般 - 歴史・地理・民俗","遠野市","遠野に伝わる江戸時代から明治大正期のひな人形を展示",null,2022,2,4,2022,3,6,"なし","有料","一般310\n高校以下160","遠野市立博物館","遠野市東舘町３-９","遠野市立博物館","0198-62-2340","0198-62-5758","bunka@city.tono.iwate.jp"]
[337,null,"市町村向け","こども本の森遠野\nブックコーティング体験会","教養・文化 - その他","遠野市","全国から「こども本の森 遠野」へ寄せられた本に、コーティングをする体験会です。",null,2021,5,29,2021,5,29,25,"無料",null,"遠野市立図書館","遠野市東舘町３-９","こども本の森拠点整備室","0198-62-2340","0198-62-5758","bunka@city.tono.iwate.jp",null,"先着順です"]
[338,null,"市町村向け","こども本の森遠野\nブックコーティング体験会","教養・文化 - その他","遠野市","全国から「こども本の森 遠野」へ寄せられた本に、コーティングをする体験会です。",null,2021,6,13,2021,6,13,25,"無料",null,"遠野市立図書館","遠野市東舘町３-９","こども本の森拠点整備室","0198-62-2340","0198-62-5758","bunka@city.tono.iwate.jp",null,"先着順です"]
[339,null,"県民向け","特別展「ドキ土器！遠野縄文展-ジョーモンヲタノシモウ-」","学術一般 - 歴史・地理・民俗","遠野市","遠野市内で出土した縄文時代の土偶や土器、石器などを楽しくポップに展示",null,2021,5,1,2021,10,17,"なし","無料",null,"遠野まちなか・ドキ・土器館","遠野市新町5-3","文化課","0198-62-2340","0198-62-5758","bunka@city.tono.iwate.jp"]
[340,null,"市町村向け","夏のドキドキ土器・土偶作り体験教室(成形)","学術一般 - 歴史・地理・民俗","遠野市","縄文土器・土偶作り体験。粘土から縄文土器・土偶の形を作る。",null,2021,7,3,2021,7,3,15,"無料",null,"遠野まちなか・ドキ・土器館","遠野市新町5-3","文化課","0198-62-2340","0198-62-5758","bunka@city.tono.iwate.jp"]
[341,null,"市町村向け","夏のドキドキ土器・土偶作り体験教室(野焼き)","学術一般 - 歴史・地理・民俗","遠野市","縄文土器・土偶作り体験。乾燥させた縄文土器・土偶の野焼きを体験する。",null,2021,7,31,2021,8,1,15,"無料",null,"綾織地区センター(グラウンド　(仮))","遠野市綾織町下綾織字且の鼻26","文化課","0198-62-2340","0198-62-5758","bunka@city.tono.iwate.jp"]
[342,null,"市町村向け","冬休み！ドキドキ勾玉作り体験教室","学術一般 - 歴史・地理・民俗","遠野市","滑石を削り勾玉を作る体験。古代の文化を体験する。",null,2022,1,10,2021,1,10,15,"無料",null,"遠野まちなか・ドキ・土器館","遠野市新町5-3","文化課","0198-62-2340","0198-62-5758","bunka@city.tono.iwate.jp"]
[343,null,"市町村向け","市史編さん講座","学術一般 - 歴史・地理・民俗","遠野市","遠野の歴史・文化や市史の編さんに関する内容でテーマを設け、わかりやすく紹介する。",null,null,null,null,null,null,null,20,"無料",null,"遠野市立図書館","遠野市東舘町３-９","市史編さん室","0198-62-2340","0198-62-5758","bunka@city.tono.iwate.jp",null,"先着順です"]
[344,null,"市町村向け","古文書講座","学術一般 - 歴史・地理・民俗","遠野市","くずし字の解読や史料からわかるエピソードの紹介など、古文書に親しむ講座",null,null,null,null,null,null,null,10,"無料",null,"遠野市立図書館","遠野市東舘町３-９","市史編さん室","0198-62-2340","0198-62-5758","bunka@city.tono.iwate.jp",null,"先着順です"]
[345,null,"市町村向け","図書の企画展","教養・文化 - その他","遠野市","月ごとにテーマによって図書を展示",null,2021,4,1,2022,3,31,"なし","無料",null,"遠野市立図書館","遠野市東舘町３－９","遠野市立図書館","0198-62-2340","0198-62-5758","bunka@city.tono.iwate.jp"]
[346,null,"市町村向け","図書館映画会","教養・文化 - その他","遠野市","毎月第１土曜日に開催",null,2021,4,1,2022,3,31,"なし","無料",null,"遠野市立図書館","遠野市東舘町３－９","遠野市立図書館","0198-62-2340","0198-62-5758","bunka@city.tono.iwate.jp"]
[347,null,"市町村向け","図書館特別映画会","教養・文化 - その他","遠野市","４月、７月、10月、12月に開催",null,2021,4,1,2022,3,31,"なし","無料",null,"遠野市立図書館","遠野市東舘町３－９","遠野市立図書館","0198-62-2340","0198-62-5758","bunka@city.tono.iwate.jp"]
[348,null,"市町村向け","ブックスタート事業","現代的課題 - 子育て・家庭教育","遠野市","1歳児検診に合せ絵本の読み聞かせと配布",null,2021,4,1,2022,3,31,"なし","無料",null,"遠野市立図書館","遠野市東舘町３－９","遠野市立図書館","0198-62-2340","0198-62-5758","bunka@city.tono.iwate.jp",null,"現在読み聞かせは休止中"]
[349,null,"市町村向け","夏休み工作会","現代的課題 - 子育て・家庭教育","遠野市","夏休みに合わせた子供向け工作体験",null,2021,8,1,2021,8,1,20,"無料",null,"遠野市立図書館","遠野市東舘町３－９","遠野市立図書館","0198-62-2340","0198-62-5758","bunka@city.tono.iwate.jp"]
[350,null,"市町村向け","遠野地区読書ボランティア研修会","現代的課題 - ＮＰＯ・ボランティア","遠野市","読書推進に携わるボランティア向け研修会",null,2021,6,1,2022,1,31,"なし","無料",null,"遠野市立図書館","遠野市東舘町３－９","遠野市立図書館","0198-62-2340","0198-62-5758","bunka@city.tono.iwate.jp"]
[351,"新規","県民向け","こども本の森遠野イベント","教養・文化 - その他","遠野市","令和３年７月25日オープンにより、その後の各イベントについては随時お知らせしますので「こども本の森遠野ホームページ」をご覧ください。",null,2021,7,25,2022,3,31,null,null,null,"こども本の森遠野","遠野市中央通り１-16","こども本の森拠点整備室","0198-62-2340","0198-62-5758","bunka@city.tono.iwate.jp"]
[352,null,"市町村向け","遠野植物物語～植物観察会～","学術一般 - 自然・動植物","西和賀町","遠野市や岩手県内に自生する植物の名前や特性等を学び、地元の自然に理解を深める。",null,2021,7,21,2021,7,21,15,2000,null,"西和賀町内","遠野市新町1-10","（一財）遠野市教育文化振興財団","0198-62-6191","0198-62-6195","mail@tono-ecf.or.jp","http://www.tono-ecf.or.jp"]
[353,"新規","市町村向け","鍋城大学","教養・文化 - その他","遠野市","高齢者の健康維持・増進（市内在住の概ね60歳以上の町民）",null,2021,5,null,2022,2,null,80,"未定",null,"遠野市民センター","遠野市新町1-10","遠野町まちづくり協議会","0198-62-4411","0198-62-3302","tono@tonotv.com"]
[354,"新規","市町村向け","ホップ和紙づくり","教養・文化 - 美術・工芸","遠野市","環境と地域産業を学ぶ（市内在住の町民）",null,2021,10,null,2021,12,null,30,"未定",null,"遠野市民センター","遠野市新町1-10","遠野町まちづくり協議会","0198-62-4411","0198-62-3302","tono@tonotv.com"]
[355,"新規","市町村向け","ヨガ","教養・文化 - その他","遠野市","高齢者の健康の自己管理（市内在住の町民）",null,2021,11,null,2021,11,null,20,"未定",null,"遠野市民センター","遠野市新町1-10","遠野町まちづくり協議会","0198-62-4411","0198-62-3302","tono@tonotv.com"]
[356,"新規","市町村向け","そば打ち体験","教養・文化 - その他","遠野市","食と生活の知恵を学ぶ（市内在住の町民）",null,2021,12,null,2021,12,null,20,"未定",null,"遠野ふるさと村","遠野市附馬牛町上附馬牛５-89-１","遠野町まちづくり協議会","0198-62-4411","0198-62-3302","tono@tonotv.com"]
[357,"新規","市町村向け","つるしびな教室","教養・文化 - 美術・工芸","遠野市","つるしびなを作成（市内在住の町民）",null,2021,12,null,2021,12,null,10,"未定",null,"松崎地区センター","遠野市松崎町白岩薬研淵１-３","松崎町未来づくり協議会","0198-62-2885","0198-62-2885","matuzakicho@tonotv.com"]
[358,"新規","市町村向け","フラワーアレンジメント教室","教養・文化 - 美術・工芸","遠野市","正月・桃の節句用のフラワーアレンジメントを作成（市内在住の町民）",null,2021,12,null,2022,2,null,10,"未定",null,"松崎地区センター","遠野市松崎町白岩薬研淵１-３","松崎町未来づくり協議会","0198-62-2885","0198-62-2885","matuzakicho@tonotv.com"]
[359,"新規","市町村向け","ジャニスポ教室","学術一般 - その他","遠野市","新しい運動の仕方を学ぶ（市内在住の町内児童）",null,2021,11,null,2021,11,null,25,"無料",null,"松崎地区センター","遠野市松崎町白岩薬研淵１-３","松崎町未来づくり協議会","0198-62-2885","0198-62-2885","matuzakicho@tonotv.com"]
[360,"新規","市町村向け","3B体操","学術一般 - その他","遠野市","体操（市内在住の町民）",null,2021,10,null,2021,10,null,20,"未定",null,"松崎地区センター","遠野市松崎町白岩薬研淵１-３","松崎町未来づくり協議会","0198-62-2885","0198-62-2885","matuzakicho@tonotv.com"]
[361,"新規","市町村向け","郷土歴史講座","学術一般 - 歴史・地理・民俗","遠野市","松崎町遠野遺産のフィールドワーク（市内在住の町民）",null,2021,11,null,2021,11,null,15,"未定",null,"松崎地区センター","遠野市松崎町白岩薬研淵１-３","松崎町未来づくり協議会","0198-62-2885","0198-62-2885","matuzakicho@tonotv.com"]
[362,"新規","市町村向け","刈り払い機作業従事者の安全衛生教育講習会","現代的課題 - ＮＰＯ・ボランティア","遠野市","環境ボランティアを養成（市内在住の町民）",null,2021,7,null,2021,7,null,null,"未定",null,"綾織地区センター","遠野市綾織町下綾織且の鼻26","綾織夢・希望のまち推進会","0198-62-2838","0198-62-2838","ayaoricho@tonotv.com"]
[363,"新規","市町村向け","フラワーアレンジメント教室","教養・文化 - 美術・工芸","遠野市","婦人向け趣味の教養講座（市内在住の町民）",null,2021,12,null,2021,12,null,null,"未定",null,"綾織地区センター","遠野市綾織町下綾織且の鼻26","綾織夢・希望のまち推進会","0198-62-2838","0198-62-2838","ayaoricho@tonotv.com"]
[364,"新規","市町村向け","小正月のつどい","学術一般 - 歴史・地理・民俗","遠野市","老人クラブを講師にみずき団子作りなど小正月行事を体験（町内の保育園・児童館児童）",null,2022,1,null,2022,1,null,null,"無料",null,"綾織地区センター","遠野市綾織町下綾織且の鼻26","綾織夢・希望のまち推進会","0198-62-2838","0198-62-2838","ayaoricho@tonotv.com"]
[365,"新規","市町村向け","ヨガ教室","学術一般 - その他","遠野市","運動不足の解消及び習慣の定着（市内在住の町民）",null,2022,2,null,2022,2,null,null,"未定",null,"綾織地区センター","遠野市綾織町下綾織且の鼻26","綾織夢・希望のまち推進会","0198-62-2838","0198-62-2838","ayaoricho@tonotv.com"]
[366,"新規","市町村向け","年越しそば教室","学術一般 - 教育","遠野市","児童向けのそば打ち体験教室（町内の小学生）",null,2021,11,null,2021,11,null,20,"無料",null,"附馬牛地区センター","遠野市附馬牛町下附馬牛11-40-１","附馬牛町地域づくり協議会","0198-64-2001","0198-64-2001","tsukimoushi@tonotv.com"]
[367,"新規","市町村向け","正月飾りアレンジメント教室","教養・文化 - 美術・工芸","遠野市","大人向けのフラワーアレンジメント教室（市内在住の町民）",null,2021,12,null,2021,12,null,10,"未定",null,"附馬牛地区センター","遠野市附馬牛町下附馬牛11-40-１","附馬牛町地域づくり協議会","0198-64-2001","0198-64-2001","tsukimoushi@tonotv.com"]
[368,"新規","市町村向け","「小正月行事」を体験しよう","学術一般 - 歴史・地理・民俗","遠野市","多世代の小正月行事体験教室（市内在住の町民）",null,2022,1,null,2022,1,null,80,"未定",null,"附馬牛地区センター","遠野市附馬牛町下附馬牛11-40-１","附馬牛町地域づくり協議会","0198-64-2001","0198-64-2001","tsukimoushi@tonotv.com"]
[369,"新規","市町村向け","本格そば打ちでおもてなし教室","学術一般 - 教育","遠野市","大人向けの本格そば打ち・おもてなし教室",null,2022,1,null,2022,1,null,10,"未定",null,"附馬牛地区センター","遠野市附馬牛町下附馬牛11-40-１","附馬牛町地域づくり協議会","0198-64-2001","0198-64-2001","tsukimoushi@tonotv.com"]
[370,"新規","市町村向け","「流しびな」を学ぼう","学術一般 - 歴史・地理・民俗","遠野市","流しびな体験教室",null,2022,3,null,2022,3,null,80,"未定",null,"附馬牛地区センター","遠野市附馬牛町下附馬牛11-40-１","附馬牛町地域づくり協議会","0198-64-2001","0198-64-2001","tsukimoushi@tonotv.com"]
[371,"新規","市町村向け","つるしびな講座","教養・文化 - 美術・工芸","遠野市","つるしびなの制作",null,2021,11,null,2021,12,null,10,"未定",null,"青笹地区センター","遠野市青笹町青笹13-3-1","青笹町地域づくり連絡協議会","0198-62-2836","0198-62-2836","aozasatown@tonotv.com"]
[372,"新規","市町村向け","小正月行事","学術一般 - 歴史・地理・民俗","遠野市","わら細工体験教室（市内在住の町民）\n水木団子・田植え（市内在住の町民）",null,2022,1,null,2022,1,null,100,"未定",null,"青笹地区センター等","遠野市青笹町青笹13-3-1","青笹町地域づくり連絡協議会","0198-62-2836","0198-62-2836","aozasatown@tonotv.com"]
[373,"新規","市町村向け","体ほぐし体操","学術一般 - その他","遠野市","リラクゼーションヨガ（市内在住の町民）",null,2021,6,null,2021,11,null,20,"未定",null,"青笹地区センター","遠野市青笹町青笹13-3-1","青笹町地域づくり連絡協議会","0198-62-2836","0198-62-2836","aozasatown@tonotv.com"]
[374,"新規","市町村向け","風鈴づくり","教養・文化 - 美術・工芸","遠野市","ペットボトルで風鈴づくり（親子８組）",null,2021,8,null,2021,8,null,16,"未定",null,"健康管理センター","遠野市宮守町下宮守29-77","宮守銀河まちづくり協議会","0198-69-1700","0198-67-2135","miyamoriginga@tonotv.com"]
[375,"新規","市町村向け","ポプリづくり","教養・文化 - 美術・工芸","遠野市","ドライフラワーでポプリづくり（宮守地区内の女性）",null,2021,10,null,2021,10,null,10,"未定",null,"健康管理センター","遠野市宮守町下宮守29-77","宮守銀河まちづくり協議会","0198-69-1700","0198-67-2135","miyamoriginga@tonotv.com"]
[376,"新規","市町村向け","ピラティス教室","学術一般 - その他","遠野市","体感を整えて、体系や姿勢の維持、改善（宮守地区内の方）",null,2021,11,null,2021,11,null,10,"未定",null,"健康管理センター","遠野市宮守町下宮守29-77","宮守銀河まちづくり協議会","0198-69-1700","0198-67-2135","miyamoriginga@tonotv.com"]
[377,"新規","市町村向け","郷土のこびる（おやつ）づくり","学術一般 - その他","遠野市","郷土ゆかりのおやつづくり（宮守地区内の方）",null,2022,1,null,2022,1,null,10,"未定",null,"健康管理センター","遠野市宮守町下宮守29-77","宮守銀河まちづくり協議会","0198-69-1700","0198-67-2135","miyamoriginga@tonotv.com"]
[378,"新規","市町村向け","Excel応用講座","学術一般 - 教育","遠野市","表計算の応用等を学習（宮守地区内の方）",null,2022,2,null,2022,2,null,10,"未定",null,"健康管理センター","遠野市宮守町下宮守29-77","宮守銀河まちづくり協議会","0198-69-1700","0198-67-2135","miyamoriginga@tonotv.com"]
[379,null,"県民向け","第57回雫石町総合芸術祭","教養・文化 - その他","雫石町","　絵画や写真、菊花などの展示のほか、洋舞や筝曲をはじめとする舞台発表（3日のみ）、茶席（3日のみ）を設けててります。",null,2021,11,2,2021,11,4,"無し","無料",null,"雫石町中央公民館","雫石町上曽根田114","雫石町中央公民館","019-692-4181","019-692-4183"]
[380,null,"県民向け","第64回雫石町無形文化財芸能祭","教養・文化 - 郷土芸能","雫石町","県内屈指の伝統を誇る雫石町無形文化財芸能祭は、古くから地域に伝承されてきた30を超える民俗芸能が一堂に会する町の一大イベントです。",null,2021,11,23,2021,11,23,"808人","無料",null,"雫石町中央公民館野菊ホール","雫石町上曽根田114","雫石町中央公民館","019-692-4181","019-692-4183"]
[381,"継続","市町村向け","生涯学習フェア2021\nまなび学園祭","学術一般 - その他","花巻市","中止",null,null,null,null,null,null,null,null,null,null,null,null,null,null,null,null,null,null,"7/20変更"]
[382,"継続","市町村向け","初めての方も安心プチ教室「クラフト」編","教養・文化 - その他","花巻市","まなび学園利用団体の紹介も含め、新たな学びにチャレンジしたい人が、気軽に「モノづくり」体験できる生涯学習デビューの手助けとなる講座です。",null,2021,8,31,2021,12,2,15,null,null,"花巻市生涯学園都市会館（まなび学園）","花巻市花城町1-47","花巻市生涯学園都市会館（まなび学園）","0198-23-4234","0198-23-5254","shougai@city.hanamaki.iwate.jp"]
[383,"継続","市町村向け","初めての方も安心プチ教室「スポーツ」編","スポーツ・健康 - その他","花巻市","まなび学園利用団体の紹介も含め、新たな学びにチャレンジしたい人が、気軽に「スポーツ」体験できる生涯学習デビューの手助けとなる講座です。",null,2021,6,22,2021,7,17,15,null,null,"花巻市生涯学園都市会館（まなび学園）","花巻市花城町1-47","花巻市生涯学園都市会館（まなび学園）","0198-23-4234","0198-23-5254","shougai@city.hanamaki.iwate.jp"]
[384,"継続","市町村向け","庭木の手入れ教室","教養・文化 - その他","花巻市","庭木剪定の仕方や盆景の作り方を学び、庭園見学などを通して地域や家庭で役立てていける庭づくりを目的とした講座です。",null,2021,8,31,2021,10,26,20,null,null,"市内",null,"花巻市生涯学園都市会館（まなび学園）","0198-23-4234","0198-23-5254","shougai@city.hanamaki.iwate.jp"]
[385,"新規","市町村向け","アートの「鑑賞」を学ぶ教室","教養・文化 - 美術・工芸","花巻市","「花巻の三画人・浮世絵」「近代美術」「刀剣」「仏像」の観点のポイントを学ぶことで、より深く美術工芸品を知ることを目的とした講座です。",null,2021,6,4,2021,9,2,15,null,null,"市内",null,"花巻市生涯学園都市会館（まなび学園）","0198-23-4234","0198-23-5254","shougai@city.hanamaki.iwate.jp"]
[386,"新規","市町村向け","ズーム「食」大人教室","教養・文化 - その他","花巻市","大人対象の「食育」講座であり、非常食、食文化、食事からとれる栄養学等を学ぶことを目的とした講座です。",null,2021,8,5,2021,11,16,15,null,null,"花巻市生涯学園都市会館（まなび学園）","花巻市花城町1-47","花巻市生涯学園都市会館（まなび学園）","0198-23-4234","0198-23-5254","shougai@city.hanamaki.iwate.jp"]
[387,"新規","市町村向け","1 DAY LESSON はじめてさんのDIY教室","教養・文化 - その他","花巻市","DIYにはじめてチャレンジしてみたい人向けの入門講座です。階段ラック＆フォトフレームづくりとミニ植木鉢のペイントを行います。",null,2021,5,22,2021,6,12,15,null,null,"co-ba HANAMAKI","花巻市大通り1丁目4-14","花巻市生涯学習課","0198-41-3587","0198-24-0259","shougai@city.hanamaki.iwate.jp"]
[388,"新規","市町村向け","はなまき暮らし部","教養・文化 - その他","花巻市","じぶん時間を見つけたい働き世代を対象に、今話題のテーマを気軽に体験できる講座です。",null,2021,6,11,2021,8,28,15,null,null,"市内",null,"花巻市生涯学習課","0198-41-3587","0198-24-0259","shougai@city.hanamaki.iwate.jp"]
[389,"継続","市町村向け","はなまき賢治セミナー（親子編）","教養・文化 - その他","花巻市","郷土の先陣「宮沢賢治」について理解を深め、「賢治さんを語れる市民」を育む講座です。\n対象：市内の小学生とその保護者",null,2021,7,30,2021,8,28,"10組",null,null,"市内",null,"花巻市生涯学習課","0198-41-3587","0198-24-0259","shougai@city.hanamaki.iwate.jp"]
[390,"継続","市町村向け","はなまき賢治セミナー（一般編）","教養・文化 - その他","花巻市","郷土の先陣「宮沢賢治」について理解を深め、「賢治さんを語れる市民」を育む講座です。",null,2021,9,3,2021,10,26,20,null,null,"市内",null,"花巻市生涯学習課","0198-41-3587","0198-24-0259","shougai@city.hanamaki.iwate.jp"]
[391,"継続","市町村向け","赤ちゃん教室","現代的課題 - 子育て・家庭教育","花巻市","0歳～3歳までの子を持つご家族を対象とし、子育てに関する学習機会や情報を提供する講座です。",null,2021,7,4,2021,7,31,"4組～5組",null,null,"市内",null,"花巻市生涯学習課","0198-41-3587","0198-24-0259","shougai@city.hanamaki.iwate.jp"]
[392,"継続","市町村向け","はなまき！おもしろ探検隊","学術一般 - その他","花巻市","市内の小学3年生～6年生を対象に、児童による学校区を超えた交流と、花巻の魅力ある地域資源を活用した体験や学びを行う講座です。",null,2021,6,19,2021,10,23,20,null,null,"市内",null,"花巻市生涯学習課","0198-41-3587","0198-24-0259","shougai@city.hanamaki.iwate.jp"]
[393,"継続","市町村向け","いしどりや学園","教養・文化 - その他","花巻市","高齢者向けの講座　全６回コースです。\n３種類の教室（軽運動・カメラ入門・筆ペン教室）を実施します。",null,2021,6,11,2021,12,3,30,null,null,"石鳥谷生涯学習会館","花巻市石鳥谷町中寺林7-1-1","石鳥谷生涯学習会館","0198-45-3358","0198-45-2103"]
[394,"継続","市町村向け","市民講座","学術一般 - 自然・動植物","花巻市","自然観察会５回：各回毎１５名の募集です。（１日研修）、歴史講座４回（半日研修）、健康講座３回（ヨガ教室：半日研修）",null,2021,5,28,2022,2,4,"のべ100",null,null,"石鳥谷生涯学習会館","花巻市石鳥谷町中寺林7-1-1","石鳥谷生涯学習会館","0198-45-3358","0198-45-2103"]
[395,"継続","市町村向け","女性講座","教養・文化 - 美術・工芸","花巻市","「干支人形作り」「絵手紙づくり」「つるしびな作り」の３回コースです。",null,2021,11,22,2022,1,18,15,null,null,"石鳥谷生涯学習会館","花巻市石鳥谷町中寺林7-1-1","石鳥谷生涯学習会館","0198-45-3358","0198-45-2103"]
[396,"継続","市町村向け","花巻市民芸術祭開幕祭","学術一般 - その他","花巻市","市民の芸術文化活動の成果を発表し、より多くの観客に鑑賞していただく機会として開催する芸術祭の開幕祭です。",null,2021,9,25,2021,9,25,"―",null,null,"大迫交流活性化センター","花巻市大迫町大迫3-161","花巻市芸術協会","0198-23-0766"]
[397,"継続","市町村向け","花巻市民芸術祭展示部門（花巻会場）","学術一般 - その他","花巻市","市民の芸術文化活動の成果を発表する芸術祭です。",null,2021,10,30,2021,11,1,"―",null,null,"花巻市民体育館","花巻市城内1-43","花巻市芸術協会","0198-23-0766"]
[398,"継続","市町村向け","第15回文芸大会","教養・文化 - 文学","花巻市","短歌・俳句・川柳・詩・随筆を対象とした文芸大会です。",null,2021,11,13,2021,11,13,"―",null,null,"石鳥谷生涯学習会館","花巻市石鳥谷町中寺林7-1-1","花巻市芸術協会","0198-23-0766"]
[399,"継続","市町村向け","花巻ピアノの会第23回ピアノソロとアンサンブルの夕べ","教養・文化 - 音楽","花巻市","花巻ピアノの会による発表会です。",null,2021,6,27,2021,6,27,"―",null,null,"花巻市文化会館","花巻市若葉町3-16-22","花巻市芸術協会","0198-23-0766"]
[400,"継続","市町村向け","花巻地区吟詠発表会\n「詩吟と吟舞の集い」","教養・文化 - その他","花巻市","花巻吟詠連合会による発表会です。",null,2021,7,10,2021,7,10,"―",null,null,"花巻市文化会館","花巻市若葉町3-16-22","花巻市芸術協会","0198-23-0766"]
[401,"新規","市町村向け","“夏に舞う”とし美会・有扇会合同公演","教養・文化 - その他","花巻市","とし美会・有扇会による公演です。",null,2021,6,13,2021,6,13,"―",null,null,"花巻市文化会館","花巻市若葉町3-16-22","花巻市芸術協会","0198-23-0766"]
[402,"新規","市町村向け","フラメンコ舞踊・ギター発表会","教養・文化 - 音楽","花巻市","花巻フラメンコギター協会によるコンサートです。",null,2021,9,5,2021,9,5,"―",null,null,"花巻市文化会館","花巻市若葉町3-16-22","花巻市芸術協会","0198-23-0766"]
[403,"継続","市町村向け","花巻市民合唱祭","教養・文化 - 音楽","花巻市","花巻市合唱団連盟による合唱祭です。",null,2021,10,17,2021,10,17,"―",null,null,"花巻市文化会館","花巻市若葉町3-16-22","花巻市芸術協会","0198-23-0766"]
[404,"継続","市町村向け","謡と仕舞の鑑賞","教養・文化 - その他","花巻市","花巻能楽連合会による舞台発表です。",null,2021,10,24,2021,10,24,"―",null,null,"花巻市文化会館","花巻市若葉町3-16-22","花巻市芸術協会","0198-23-0766"]
[405,"継続","市町村向け","三曲演奏会","教養・文化 - 音楽","花巻市","花巻三曲協会による演奏会です。",null,2021,10,31,2021,10,31,"―",null,null,"花巻市文化会館","花巻市若葉町3-16-22","花巻市芸術協会","0198-23-0766"]
[406,"継続","市町村向け","民謡と舞踊のまつり","教養・文化 - その他","花巻市","花巻市民謡保存会等による舞台発表です。",null,2021,11,14,2021,11,14,"―",null,null,"花巻市文化会館","花巻市若葉町3-16-22","花巻市芸術協会","0198-23-0766"]
[407,"新規","市町村向け","舞踊る、初春の宴","教養・文化 - その他","花巻市","花巻舞友会による舞台発表です。",null,2022,1,23,2022,1,23,"―",null,null,"花巻市文化会館","花巻市若葉町3-16-22","花巻市芸術協会","0198-23-0766"]
[408,"継続","市町村向け","金星少年少女オーケストラ第11回定期演奏会","教養・文化 - 音楽","花巻市","金星少年少女オーケストラとイーハトーヴ子ども合唱隊による定期演奏会です。",null,2022,3,27,2022,3,27,"―",null,null,"花巻市文化会館","花巻市若葉町3-16-22","花巻市芸術協会","0198-23-0766"]
[409,"継続","市町村向け","第25回花巻美協展","教養・文化 - 美術・工芸","花巻市","花巻美術団体連絡協議会による写真展です。",null,2021,6,18,2021,6,20,"―",null,null,"花巻市文化会館","花巻市若葉町3-16-22","花巻市芸術協会","0198-23-0766"]
[410,"継続","市町村向け","第44回花巻写真協会写真展","教養・文化 - 美術・工芸","花巻市","花巻写真協会による写真展です。",null,2021,9,18,2021,9,20,"―",null,null,"花巻市文化会館","花巻市若葉町3-16-22","花巻市芸術協会","0198-23-0766"]
[411,"継続","市町村向け","花巻市民芸術祭大迫会場","学術一般 - その他","花巻市","市民の芸術文化活動の成果を発表する芸術祭です。",null,2021,10,31,2021,11,3,"―",null,null,"大迫交流活性化センター","花巻市大迫町大迫3-161","大迫総合支所地域支援室","0198-41-3124","0198-48-2943"]
[412,"継続","市町村向け","音楽演奏会「小さな森のコンサート」","教養・文化 - 音楽","花巻市","音楽演奏会を開催します。",null,2021,10,16,2021,10,16,"―",null,null,"大迫交流活性化センター","花巻市大迫町大迫3-161","大迫総合支所地域支援室","0198-41-3124","0198-48-2943"]
[413,"継続","市町村向け","舞台発表会","教養・文化 - その他","花巻市","合唱団体などによるステージ発表です。",null,2021,9,25,2021,9,25,"―",null,null,"大迫交流活性化センター","花巻市大迫町大迫3-161","大迫総合支所地域支援室","0198-41-3124","0198-48-2943"]
[414,"継続","市町村向け","秋の市民茶会（大迫会場）","教養・文化 - 料理・お茶・お花・書道","花巻市","お茶会を開催します。どなたでもご参加いただけます。",null,2021,11,3,2021,11,3,"―",null,null,"大迫交流活性化センター","花巻市大迫町大迫3-161","大迫総合支所地域支援室","0198-41-3124","0198-48-2943"]
[415,"継続","市町村向け","花巻市民芸術祭石鳥谷会場\n（展示部門・舞台部門）","学術一般 - その他","花巻市","市民の芸術文化活動の成果を発表する芸術祭です。市内団体による作品展示、合唱・演奏・伝承芸能などの発表がおこなわれます。",null,2021,10,16,2021,10,17,"―",null,null,"石鳥谷生涯学習会館","花巻市石鳥谷町中寺林7-1-1","石鳥谷総合支所地域支援室","0198-41-3444","0198-45-3733"]
[416,"継続","市町村向け","秋の市民茶会（石鳥谷会場）","教養・文化 - 料理・お茶・お花・書道","花巻市","お茶会を開催します。どなたでもご参加いただけます。",null,2021,10,16,2021,10,17,"―",null,null,"石鳥谷生涯学習会館","花巻市石鳥谷町中寺林7-1-1","石鳥谷総合支所地域支援室","0198-41-3444","0198-45-3733"]
[417,"継続","市町村向け","花巻市民芸術祭東和会場","学術一般 - その他","花巻市","市民の芸術文化活動の成果を発表する芸術祭です。",null,2021,10,2,2021,10,3,"―",null,null,"東和体育館","花巻市東和町安俵6-53","東和総合支所地域支援室","0198-41-6514","0198-42-3605"]
[418,"継続","市町村向け","東和俳句会","教養・文化 - 文学","花巻市","俳句の鑑賞などを行います。",null,2021,11,null,2021,11,null,"―",null,null,"東和コミュニティセンター","花巻市東和町安俵6-53","東和総合支所地域支援室","0198-41-6514","0198-42-3605"]
[419,"継続","市町村向け","東和町芸能発表会","教養・文化 - 郷土芸能","花巻市","郷土芸能（神楽、鹿踊など）、日本伝統芸能（和楽器演奏、日本舞踊など）、コーラスのステージ発表です。",null,2021,11,3,2021,11,3,"―",null,null,"東和総合福祉センター","花巻市東和町安俵6-71","東和総合支所地域支援室","0198-41-6514","0198-42-3605"]
[420,"継続","市町村向け","倉沢人形歌舞伎","教養・文化 - 郷土芸能","花巻市","倉沢人形歌舞伎を上演します。",null,2021,11,23,2021,11,23,"―",null,null,"倉沢人形歌舞伎伝承館","花巻市東和町倉沢4-81","東和総合支所地域支援室","0198-41-6514","0198-42-3605"]
[421,"継続","市町村向け","秋の市民茶会（東和会場）","教養・文化 - 料理・お茶・お花・書道","花巻市","お茶会を開催します。どなたでもご参加いただけます。",null,2021,11,3,2021,11,3,"―",null,null,"東和温泉茶室「随草庵」","花巻市東和町安俵6-135","東和総合支所地域支援室","0198-41-6514","0198-42-3605"]
[422,"継続","市町村向け","生涯学習町民のつどい\n（兼：教育振興運動推進大会）","教養・文化 - その他","平泉町","町民への生涯学習の推進と教育振興運動の活性化を図るため開催します。",null,2022,2,20,2022,2,20,"-","無料",null,"平泉小学校体育館","平泉町平泉字倉町155","平泉町教育委員会","0191-46-5576","0191-46-2015","kyoiku@town.hiraizumi.iwate.jp"]
[423,"継続","市町村向け","第48回ひらいずみ芸術文化祭","教養・文化 - 美術・工芸","平泉町","町民が丹精込めて作り上げた芸術作品の展示や各社会教育団体の活動の紹介を通じて、町民の芸術・文化活動の意欲醸成と振興を図ることを目的に開催。",null,2021,11,6,2021,11,7,"-","無料",null,"平泉小学校\n町立幼稚園\n平泉保育所","平泉町平泉字倉町155","平泉町教育委員会","0191-46-5576","0191-46-2015","kyoiku@town.hiraizumi.iwate.jp"]
[424,null,"市町村向け","かもしか号（移動図書館）","教養・文化 - その他","岩泉町","町内全7コースを曜日ごとに分けて貸し出しを行う移動図書館。",null,"年間",null,null,null,null,null,null,null,null,"岩泉町立図書館","岩泉町岩泉松橋21－1","岩泉町立図書館","0194－22－3149",null,null,"http://www.lib-eye.net/iwaizumi/"]
[425,null,"市町村向け","おはなし会","教養・文化 - 文学","岩泉町","毎月第1・第3土曜日に開催",null,"年間",null,null,null,null,null,null,null,null,"岩泉町立図書館","岩泉町岩泉松橋21－1","岩泉町立図書館","0194－22－3149",null,null,"http://www.lib-eye.net/iwaizumi/"]
[426,null,"広域（近隣市町村含む）向け","宇霊羅山登山①","スポーツ・健康 - 登山・野外活動","岩泉町","宇霊羅山・音床山登山",null,2021,5,16,2021,5,16,null,null,null,"宇霊羅山",null,"岩泉地域振興協議会","0194－22－3149",null,null,"http://blog.canpan.info/iwa-chishin/"]
[427,null,"広域（近隣市町村含む）向け","宇霊羅山登山②","スポーツ・健康 - 登山・野外活動","岩泉町","宇霊羅山・音床山登山",null,2021,10,10,2021,10,10,null,null,null,"宇霊羅山",null,"岩泉地域振興協議会","0194－22－3149",null,null,"http://blog.canpan.info/iwa-chishin/"]
[428,null,"市町村向け","ふるさと少年隊①","スポーツ・健康 - 登山・野外活動","岩泉町","町の財産でもある自然を最大限に活用した体験活動。学校・学年を越えた仲間でふるさとを理解し、愛する心を育てる。",null,2021,6,5,2021,6,5,null,null,null,"町内",null,"ＮＰＯぱぁとなぁ","0194－22－2771"]
[429,null,"市町村向け","ふるさと少年隊②スマイルキャンプ","スポーツ・健康 - 登山・野外活動","岩泉町","町の財産でもある自然を最大限に活用した体験活動。学校・学年を越えた仲間でふるさとを理解し、愛する心を育てる。",null,2021,8,7,2021,8,8,null,null,null,"町内",null,"ＮＰＯぱぁとなぁ","0194－22－2771"]
[430,null,"市町村向け","ふるさと少年隊③","スポーツ・健康 - 登山・野外活動","岩泉町","町の財産でもある自然を最大限に活用した体験活動。学校・学年を越えた仲間でふるさとを理解し、愛する心を育てる。",null,2021,9,18,2021,9,18,null,null,null,"町内",null,"ＮＰＯぱぁとなぁ","0194－22－2771"]
[431,null,"市町村向け","ふるさと少年隊④","スポーツ・健康 - 登山・野外活動","岩泉町","町の財産でもある自然を最大限に活用した体験活動。学校・学年を越えた仲間でふるさとを理解し、愛する心を育てる。",null,2021,12,25,2021,12,25,null,null,null,"町内",null,"ＮＰＯぱぁとなぁ","0194－22－2771"]
[432,null,"市町村向け","ふるさと少年隊⑤","スポーツ・健康 - 登山・野外活動","岩泉町","町の財産でもある自然を最大限に活用した体験活動。学校・学年を越えた仲間でふるさとを理解し、愛する心を育てる。",null,2022,2,11,2022,2,11,null,null,null,"町内",null,"ＮＰＯぱぁとなぁ","0194－22－2771"]
[433,null,"市町村向け","オリンピック聖火リレー","スポーツ・健康 - その他","岩泉町",null,null,2021,6,17,2021,6,17,null,null,null,"町内",null,"岩泉町教育委員会","0194－22－2111"]
[434,null,"市町村向け","パラリンピック聖火フェスティバル","スポーツ・健康 - その他","岩泉町",null,null,2021,8,12,2021,8,12,null,null,null,"龍泉洞園地",null,"岩泉町教育委員会","0194－22－2111"]
[435,null,"市町村向け","スポーツレクリエーション祭（グラウンドゴルフ）","スポーツ・健康 - 球技","岩泉町",null,null,2021,7,4,2021,7,4,null,null,null,"龍泉洞グラウンド",null,"スポ進協議会"]
[436,null,"広域（近隣市町村含む）向け","三鉄に乗って「十府ヶ浦を歩こう」","スポーツ・健康 - 登山・野外活動","野田村",null,null,2021,6,27,2021,6,27,null,null,null,"野田村十府ヶ浦",null,"岩泉地域振興協議会","0194－22－3149",null,null,"http://blog.canpan.info/iwa-chishin/"]
[437,null,"市町村向け","第2回町民福祉祭り","現代的課題 - まちづくり","岩泉町",null,null,2021,7,10,2021,7,10,null,null,null,"うれいら商店街",null,"社会福祉協議会"]
[438,null,"広域（近隣市町村含む）向け","第19回カタクリ再生大作戦","現代的課題 - 環境・自然保護","岩泉町",null,null,2021,7,25,2021,7,25,null,null,null,"早坂高原",null,"経済観光交流課"]
[439,null,"市町村向け","郷土芸能祭","教養・文化 - 郷土芸能","岩泉町",null,null,2021,8,22,2021,8,22,null,null,null,"町民会館",null,"岩泉町教育委員会","0194－22－2111"]
[440,null,"広域（近隣市町村含む）向け","大川七滝まつり前夜祭","教養・文化 - 舞踏・演劇","岩泉町",null,null,2021,8,28,2021,8,28,null,null,null,"七滝広場",null,"大川地区団体連絡協議会"]
[441,null,"広域（近隣市町村含む）向け","大川七滝まつり","教養・文化 - 舞踏・演劇","岩泉町",null,null,2021,8,29,2021,8,29,null,null,null,"七滝広場",null,"大川地区団体連絡協議会"]
[442,null,"広域（近隣市町村含む）向け","浅内公園まつり","教養・文化 - 舞踏・演劇","岩泉町",null,null,2021,9,12,2021,9,12,null,null,null,"浅内公園",null,"浅内地区連絡協議会"]
[443,null,"市町村向け","ゲートボール・輪投げ大会","スポーツ・健康 - レクリエーション","岩泉町",null,null,2021,9,18,2021,9,18,null,null,null,"小川多目的運動場",null,"社協小川支部"]
[444,null,"広域（近隣市町村含む）向け","釜津田秋祭り","教養・文化 - 舞踏・演劇","岩泉町",null,null,2021,9,19,2021,9,19,null,null,null,"釜津田中学校",null,"釜津田地区村づくり協議会"]
[445,null,"広域（近隣市町村含む）向け","あっか感謝祭","教養・文化 - 舞踏・演劇","岩泉町",null,null,2021,10,3,2021,10,3,null,null,null,"氷渡交流施設前広場",null,"安家地域振興協議会"]
[446,null,"市町村向け","龍ちゃんスポーツ大会","スポーツ・健康 - レクリエーション","岩泉町",null,null,2021,10,3,2021,10,3,null,null,null,"町民会館",null,"岩泉地域振興協議会","0194－22－3149",null,null,"http://blog.canpan.info/iwa-chishin/"]
[447,null,"広域（近隣市町村含む）向け","こがわ炭鉱ホルモンまつり","教養・文化 - 舞踏・演劇","岩泉町",null,null,2021,10,10,2021,10,10,null,null,null,"小川生活改善センター",null,"小川地域振興協議会"]
[448,null,"県民向け","第34回南部牛追唄全国大会","教養・文化 - 郷土芸能","岩泉町",null,null,2021,9,25,2021,9,26,null,null,null,"町民会館",null,"南部牛追唄全国大会実行委員会"]
[449,null,"広域（近隣市町村含む）向け","七頭舞の里おもと鮭まつり","教養・文化 - 郷土芸能","岩泉町",null,null,2021,10,31,2021,10,31,null,null,null,"浜の駅おもと愛土館",null,"小本地域振興協議会"]
[450,null,"県民向け","歴史民俗資料館まつり","学術一般 - 歴史・地理・民俗","岩泉町",null,null,2021,11,3,2021,11,3,null,null,null,"歴史民俗資料館",null,"岩泉町教育委員会","0194－22－2111"]
[451,null,"市町村向け","スポーツレクリエーション祭（ソフトバレーボール）","スポーツ・健康 - 球技","岩泉町",null,null,2021,11,7,2021,11,7,null,null,null,"町民会館",null,"スポ進協議会"]
[452,null,"市町村向け","町社会福祉大会・老人クラブ大会","現代的課題 - まちづくり","岩泉町",null,null,2021,11,12,2021,11,12,null,null,null,"町民会館",null,"社協・老連"]
[453,null,"市町村向け","町民文化展","教養・文化 - その他","岩泉町",null,null,2021,11,20,2021,11,21,null,null,null,"町民会館",null,"ＮＰＯぱぁとなぁ","0194－22－2771"]
[454,null,"広域（近隣市町村含む）向け","七頭舞・七ツ舞発表会（小本小・中）","教養・文化 - 郷土芸能","岩泉町",null,null,2021,11,27,2021,11,27,null,null,null,"小本中学校",null,"小本小中学校"]
[455,null,"市町村向け","町歳末たすけあい芸能祭","教養・文化 - 舞踏・演劇","岩泉町",null,null,2021,12,4,2021,12,4,null,null,null,"町民会館",null,"社教・岩泉支部"]
[456,null,"市町村向け","冬休み子ども映画会","教養・文化 - その他","岩泉町",null,null,2021,12,null,2022,1,null,null,null,null,"町内こども園等",null,"岩泉町立図書館","0194－22－3149",null,null,"http://www.lib-eye.net/iwaizumi/"]
[457,null,"市町村向け","第73回岩泉町成人式","教養・文化 - その他","岩泉町",null,null,2022,1,8,2022,1,8,"R2新成人",null,null,"町民会館",null,"町、教育員会","0194－22－2111"]
[458,null,"市町村向け","第74回岩泉町成人式","教養・文化 - その他","岩泉町",null,null,2022,1,9,2022,1,9,"R3新成人",null,null,"町民会館",null,"町、教育員会","0194－22－2111"]
[459,null,"市町村向け","合同芸能発表会","教養・文化 - 舞踏・演劇","岩泉町",null,null,2022,2,19,2022,2,19,null,null,null,"町民会館",null,"合同芸能団体連絡協議会"]
[460,null,"市町村向け","食の文化祭","教養・文化 - 料理・お茶・お花・書道","岩泉町",null,null,2022,2,27,2022,2,27,null,null,null,"町民会館",null,"岩泉地域振興協議会","0194－22－3149",null,null,"http://blog.canpan.info/iwa-chishin/"]
[461,null,"市町村向け","教育振興運動集約集会","現代的課題 - 子育て・家庭教育","岩泉町",null,null,2022,2,13,2022,2,13,null,null,null,"町民会館",null,"岩泉町教育委員会","0194－22－2111"]
[462,null,"広域（近隣市町村含む）向け","市民生涯学習のつどい","教養・文化 - その他","久慈市","久慈市民サークルの作品展示、ステージ発表などを行います。",null,2021,2,19,2021,2,19,null,"無料",null,"久慈市文化会館","久慈市川崎町17-1","久慈市生涯学習課","0194-52-2156","0194-52-2127"]
[463,null,"市町村向け","令和２年度久慈市成人式","教養・文化 - その他","久慈市",null,null,2021,8,14,2021,8,14,null,"無料",null,"久慈市文化会館","久慈市川崎町17-1","久慈市生涯学習課","0194-52-2156","0194-52-2127"]
[464,null,"市町村向け","令和３年度久慈市成人式","教養・文化 - その他","久慈市",null,null,2022,1,9,2022,1,9,null,"無料",null,"久慈市文化会館","久慈市川崎町17-2","久慈市生涯学習課","0194-52-2156","0194-52-2127"]
[465,null,"市町村向け","久慈市教育振興運動交流大会","現代的課題 - 子育て・家庭教育","久慈市","久慈市における教育振興運動の充実・発展を図るため、関係者が一堂に会し事例発表と交流を行います。",null,2021,11,null,2021,11,null,null,"無料",null,null,null,"久慈市生涯学習課","0194-52-2156","0194-52-2127"]
[466,null,"市町村向け","久慈市立図書館開館１周年記念講演会","現代的課題 - 子育て・家庭教育","久慈市","優れた作家を招き、講演会やワークショップを開催する。",null,2021,7,4,2021,7,4,null,"無料",null,"久慈市文化会館","久慈市川崎町17-2","久慈市生涯学習課","0194-52-2156","0194-52-2127"]
[467,null,"市町村向け","久慈市教育振興運動活動者研修会","現代的課題 - 子育て・家庭教育","久慈市",null,null,"未定",null,null,null,null,null,null,"無料",null,null,null,"久慈市生涯学習課","0194-52-2156","0194-52-2127"]
[468,null,"広域（近隣市町村含む）向け","三船十段杯争奪柔道大会柔道教室","スポーツ・健康 - 武道","久慈市","三船十段杯柔道大会前日に講師を招き柔道教室を開催します。",null,"未定",null,null,null,null,null,null,"無料",null,null,null,"久慈市生涯学習課","0194-52-2156","0194-52-2127"]
[469,null,"広域（近隣市町村含む）向け","三船十段杯争奪柔道大会","スポーツ・健康 - 武道","久慈市","久慈市の名誉市民である三船久蔵十段を顕彰し開催する伝統ある大会です。\n",null,"未定",null,null,null,null,null,null,"無料",null,null,null,"久慈市生涯学習課","0194-52-2156","0194-52-2127"]
[470,null,"広域（近隣市町村含む）向け","久慈もぐらんぴあ駅伝競走大会","スポーツ・健康 - マラソン・陸上","久慈市",null,null,"未定",null,null,null,null,null,null,"無料",null,null,null,"久慈市生涯学習課","0194-52-2156","0194-52-2127"]
[471,null,"広域（近隣市町村含む）向け","久慈あまちゃんマラソン大会","スポーツ・健康 - マラソン・陸上","久慈市","市内から小袖へと続く“あまちゃん街道”を会場としてマラソン大会を行います。",null,"未定",null,null,null,null,null,null,"無料",null,null,null,"久慈市生涯学習課","0194-52-2156","0194-52-2127"]
[472,null,"市町村向け","いきいきシニアスポーツ大会","スポーツ・健康 - その他","久慈市",null,null,"未定",null,null,null,null,null,null,"無料",null,null,null,"久慈市生涯学習課","0194-52-2156","0194-52-2127"]
[473,"継続","市町村向け","子ども会世話人研修会","現代的課題 - 子育て・家庭教育","軽米町","子ども会育成者対象です。子育てや家庭教育の講演会です。",null,2021,7,6,2021,7,6,"60人","無料",null,"町農村環境改善センター","軽米町大字軽米10-85","軽米町教育委員会事務局","0195-46-4744","0195-46-3050","ｋｙｏｕｉｋｕ＠town.karumai.iwate.jp"]
[474,"継続","広域（近隣市町村含む）向け","軽米町ちびっ子健康マラソン大会","スポーツ・健康 - マラソン・陸上","軽米町","小学生学年別・男女別に1.2年1500ｍ、3.4年2000ｍ、5.6年3000ｍで競います。各部門上位10までと6年連続出場者を表彰します。",null,2021,7,18,2021,7,18,"600人","1000円",null,"軽米町ハートフル・スポーツランド","軽米町大字軽米1-160-1","軽米町教育委員会事務局","0195-46-4744","0195-46-3050","ｋｙｏｕｉｋｕ＠town.karumai.iwate.jp"]
[475,"継続","市町村向け","令和２年度成人式","教養・文化 - その他","軽米町","新成人を一同に会し、成人としての責任と自覚を促し、積極的な地域社会に貢献する目標を設定する機会とする。",null,2021,8,14,2021,8,14,null,"無料",null,"町民体育館","軽米町大字軽米6-34-1","軽米町教育委員会事務局","0195-46-4744","0195-46-3050","ｋｙｏｕｉｋｕ＠town.karumai.iwate.jp"]
[476,"継続","市町村向け","令和３年度成人式","教養・文化 - その他","軽米町","新成人を一同に会し、成人としての責任と自覚を促し、積極的な地域社会に貢献する目標を設定する機会とする。",null,2021,8,15,2021,8,15,null,"無料",null,"町民体育館","軽米町大字軽米6-34-1","軽米町教育委員会事務局","0195-46-4744","0195-46-3050","ｋｙｏｕｉｋｕ＠town.karumai.iwate.jp"]
[477,"継続","市町村向け","軽米町民体育祭","スポーツ・健康 - レクリエーション","軽米町","幼児から高齢者まで、町民総参加のもとに各地区体育振興会、行政区単位のチームで競う運動会",null,2021,10,3,2021,10,3,null,"無料",null,"軽米町ハートフル・スポーツランド","軽米町大字軽米1-160-1","軽米町教育委員会事務局","0195-46-4744","0195-46-3050","ｋｙｏｕｉｋｕ＠town.karumai.iwate.jp"]
[478,"継続","市町村向け","軽米町民文化祭ステージ発表会","教養・文化 - その他","軽米町","町の文化協会所属団体の日頃の文化活動を発表する。",null,2021,10,24,2021,10,24,null,"無料",null,"町農村環境改善センター","軽米町大字軽米10-85","軽米町教育委員会事務局","0195-46-4744","0195-46-3050","ｋｙｏｕｉｋｕ＠town.karumai.iwate.jp"]
[479,"継続","市町村向け","軽米町民文化祭幼小中高作品展示","教養・文化 - 美術・工芸","軽米町","幼児、小中高校生の絵画と書道の展示発表会",null,2021,10,26,2021,10,31,null,"無料",null,"軽米町立図書館","軽米町大字軽米8-54","軽米町教育委員会事務局","0195-46-4744","0195-46-3050","ｋｙｏｕｉｋｕ＠town.karumai.iwate.jp"]
[480,"継続","市町村向け","軽米町民文化祭展示部門","教養・文化 - 美術・工芸","軽米町","町の文化協会所属団体や一般町民のの日頃の芸術文化活動を展示し、広く鑑賞機会を提供する。",null,2021,10,29,2021,10,31,null,"無料",null,"軽米町立中央公民館","軽米町大字軽米8-54","軽米町教育委員会事務局","0195-46-4744","0195-46-3050","ｋｙｏｕｉｋｕ＠town.karumai.iwate.jp"]
[481,"継続","市町村向け","チャレンジデー2021","スポーツ・健康 - レクリエーション","軽米町","軽米町で交流人口を含めた人が15分以上運動した参加率で対戦する。",null,2021,10,27,2021,10,27,null,"無料",null,"軽米町内","軽米町内","軽米町教育委員会事務局","0195-46-4744","0195-46-3050","ｋｙｏｕｉｋｕ＠town.karumai.iwate.jp"]
[482,"継続","広域（近隣市町村含む）向け","軽米町郷土芸能まつり","教養・文化 - 郷土芸能","軽米町","町に古くから伝承される郷土芸能を広く紹介し、民俗文化の理解と愛護を深める",null,2021,11,28,2021,11,28,null,"無料",null,"町農村環境改善センター","軽米町大字軽米10-85","軽米町教育委員会事務局","0195-46-4744","0195-46-3050","ｋｙｏｕｉｋｕ＠town.karumai.iwate.jp"]
[483,"継続","市町村向け","生涯学習フェスティバル","教養・文化 - その他","軽米町","日頃活動している団体・個人の芸術文化の発表会",null,2022,2,6,2022,2,6,null,"協力金500円",null,"町農村環境改善センター","軽米町大字軽米10-85","軽米町教育委員会事務局","0195-46-4744","0195-46-3050","ｋｙｏｕｉｋｕ＠town.karumai.iwate.jp"]
[484,null,"市町村向け","令和3年成人式","教養・文化 - その他","山田町","令和３年新成人者",null,2021,8,8,2021,8,8,null,null,null,"山田町中央公民館","下閉伊郡山田町八幡町3-20","山田町教育委員会生涯学習課","0193-82-3111"]
[485,null,"市町村向け","令和4年成人式","教養・文化 - その他","山田町","令和４年新成人者",null,2022,1,10,2022,1,10,null,null,null,"山田町中央公民館","下閉伊郡山田町八幡町3-20","山田町教育委員会生涯学習課","0193-82-3111"]
[486,null,"市町村向け","第4回教育フォーラム“人づくり・町づくり町民のつどい","現代的課題 - まちづくり","山田町","町民対象。",null,2022,1,16,2022,1,16,null,null,null,"山田町中央公民館","下閉伊郡山田町八幡町3-20","山田町教育委員会","0193-82-3111"]
[487,null,"県民向け","山田町ビーチフェスティバル","スポーツ・健康 - 登山・野外活動","山田町",null,null,2021,7,null,2021,7,null,null,null,null,"オランダ島\n裏の浜海水浴場","下閉伊郡山田町船越","山田町水産商工課","0193-82-3111"]
[488,null,"県民向け","山田の秋祭り","教養・文化 - 郷土芸能","山田町",null,null,2021,9,null,2021,9,null,null,null,null,"中央公園","山田町中央町","山田町水産商工課","0193-82-3111"]
[489,null,"県民向け","山田の鮭まつり","ビジネスライフ - 農林水産","山田町",null,null,2021,12,null,2021,12,null,null,null,null,"山田魚市場","山田町境田町","山田町水産商工課","0193-82-3111"]
[490,null,"県民向け","２０２１山田農業まつり","ビジネスライフ - 農林水産","山田町",null,null,2021,10,null,2021,10,null,null,null,null,"船越公園","鯨と海の科学館そば","山田町農林課","0193-82-3111"]
[491,null,"市町村向け","不来方高校音楽部コンサート","教養・文化 - 音楽","山田町",null,null,2021,8,1,2021,8,1,null,null,null,"山田町中央公民館","下閉伊郡山田町八幡町3-20","山田町教育委員会生涯学習課","0193-82-3111"]
[492,null,"市町村向け","池田高校ダンシング＆プレイングコンサート","教養・文化 - 舞踏・演劇","山田町",null,null,2021,8,10,2021,8,13,null,null,null,"山田町中央公民館","下閉伊郡山田町八幡町3-20","山田町教育委員会生涯学習課","0193-82-3111"]
[493,null,"市町村向け","“わ”で奏でる東日本コンサートｉｎ山田","教養・文化 - 音楽","山田町",null,null,2021,9,null,2021,9,null,null,null,null,"山田町中央公民館","下閉伊郡山田町八幡町3-20","山田町教育委員会生涯学習課","0193-82-3111"]
[494,null,"市町村向け","山田町民芸術祭（民謡と踊りの集い）","教養・文化 - 舞踏・演劇","山田町",null,null,2021,10,24,2021,10,24,null,null,null,"山田町中央公民館","下閉伊郡山田町八幡町3-20","山田町教育委員会生涯学習課","0193-82-3111"]
[495,null,"市町村向け","山田町民芸術祭（アートフェスティバル）","教養・文化 - 美術・工芸","山田町",null,null,2021,10,30,2021,10,31,null,null,null,"山田町中央公民館","下閉伊郡山田町八幡町3-20","山田町教育委員会生涯学習課","0193-82-3111"]
[496,null,"市町村向け","山田町民芸術祭（音楽の集い～第1章～）","教養・文化 - 音楽","山田町",null,null,2021,11,14,2021,11,14,null,null,null,"山田町中央公民館","下閉伊郡山田町八幡町3-20","山田町教育委員会生涯学習課","0193-82-3111"]
[497,null,"市町村向け","山田町民芸術祭（音楽の集い～第2章～）","教養・文化 - 音楽","山田町",null,null,2021,11,21,2021,11,21,null,null,null,"山田町中央公民館","下閉伊郡山田町八幡町3-20","山田町教育委員会生涯学習課","0193-82-3111"]
[498,null,"市町村向け","ＮＨＫ公開事業（ＮＨＫ盛岡支局）",null,"山田町",null,null,2021,12,5,2021,12,5,null,null,null,"山田町中央公民館","下閉伊郡山田町八幡町3-20","山田町教育委員会生涯学習課","0193-82-3111"]
[499,null,"市町村向け","歴史講演会","学術一般 - 歴史・地理・民俗","山田町",null,null,2021,12,11,2021,12,11,null,null,null,"山田町中央公民館","下閉伊郡山田町八幡町3-20","山田町教育委員会生涯学習課","0193-82-3111"]
[500,null,"市町村向け","ＮＨＫ公開録音事業（ＮＨＫ仙台支局）",null,"山田町",null,null,null,null,null,null,null,null,null,null,null,"山田町中央公民館等","下閉伊郡山田町八幡町3-20","山田町教育委員会生涯学習課","0193-82-3111"]
[501,"継続","市町村向け","初級英会話講座","現代的課題 - 語学・国際理解","大船渡市","市民の国際コミュニケーション能力の向上を目的とした講座を開催する。（全５回）",null,2021,6,3,2021,7,8,"20人","無料",null,"大船渡市民交流館・カメリアホール","大船渡市盛町字内ノ目４－２","大船渡市立中央公民館","0192-26-3166","0192-26-5903","ofu_chukou@city.ofunato.iwate.jp"]
[502,"継続","市町村向け","市民講座","教養・文化 - その他","大船渡市","大学等と連携し、共通テーマに関する専門的分野の講座を開催する。（全３回程度）",null,2021,7,null,2021,11,null,"50人程度","無料",null,"大船渡市民交流館・カメリアホール","大船渡市盛町字内ノ目４－２","大船渡市立中央公民館","0192-26-3166","0192-26-5903","ofu_chukou@city.ofunato.iwate.jp"]
[503,"継続","市町村向け","市民ＩＴ講座","パソコン - パソコン","大船渡市","ＩＴ活用力を強化することを目的とした初級者向けのスマホ講座を開催する。（全４回）",null,2021,8,null,2021,9,null,"25人程度","無料",null,"大船渡市民交流館・カメリアホール","大船渡市盛町字内ノ目４－２","大船渡市立中央公民館","0192-26-3166","0192-26-5903","ofu_chukou@city.ofunato.iwate.jp"]
[504,"継続","市町村向け","おはなしパレード","現代的課題 - 子育て・家庭教育","大船渡市","未就学児、児童等対象の、絵本の読み聞かせ等のおはなし会を開催する。毎月第２・４土曜日。",null,null,null,null,null,null,null,"-","無料",null,"大船渡市立図書館","大船渡市盛町字下館下18-1","大船渡市立図書館","0192-26-1040","0192-26-5902","ocl_info@city.ofunato.iwate.jp","https://www.city.ofunato.iwate.jp/site/riash-lib/5957.html"]
[505,"継続","市町村向け","ブックスタート事業","現代的課題 - 子育て・家庭教育","大船渡市","７カ月児健康相談の際、絵本をプレゼントするなど、乳児期からの本と触れ合う機会を提供する。",null,null,null,null,null,null,null,"-","無料",null,"大船渡市保健介護センター","大船渡市盛町字下館下14-1","大船渡市立図書館","0192-26-1040","0192-26-5902","ocl_info@city.ofunato.iwate.jp"]
[506,"継続","市町村向け","おたのしみ親子劇場","現代的課題 - 子育て・家庭教育","大船渡市","子どもと保護者を対象とした、読書ボランティアと人形劇グループの公演を開催する。",null,2021,12,null,null,null,null,"-","無料",null,"大船渡市民文化会館","大船渡市盛町字下館下18-1","大船渡市立図書館","0192-26-1040","0192-26-5902","ocl_info@city.ofunato.iwate.jp","https://www.city.ofunato.iwate.jp/site/riash-lib/5957.html"]
[507,"継続","広域（近隣市町村含む）向け","縄文土器製作会","教養・文化 - その他","大船渡市","縄文土器の製作過程を体験することを通して、縄文人の技術と知恵を探り、郷土の歴史の理解を深める。",null,2021,"未定",null,null,null,null,null,"有料","参加費1000円程度","大船渡市立博物館","大船渡市末崎町字大浜221-86","大船渡市立博物館","0192-29-2161","0192-29-2162","ocm_info@city.ofunato.iwate.jp","https://www.city.ofunato.iwate.jp/site/hakubutsukan/"]
[508,"継続","広域（近隣市町村含む）向け","地質観察会","教養・文化 - その他","大船渡市","野外での地質観察の方法を学びながら生物の進化や地層・岩石の成因を探り、郷土の生い立ちに関する理解を深める。",null,2021,"未定",null,null,null,null,null,"無料",null,"大船渡市立博物館","大船渡市末崎町字大浜221-86","大船渡市立博物館","0192-29-2161","0192-29-2162","ocm_info@city.ofunato.iwate.jp","https://www.city.ofunato.iwate.jp/site/hakubutsukan/"]
[509,"継続","市町村向け","こどもエコクラブ","教養・文化 - その他","釜石市","市内の小学生を対象に、生きものさがし、水生生物調査(海や川など）を行います。",null,2021,7,null,2022,2,null,"30人","無料",null,null,null,"釜石市市民生活部まちづくり課","0193-27-8454","0193-22-9505",null,null,"・詳細未定\n・新型コロナウイルスの感染拡大状況により、中止となる場合があります。"]
[510,"継続","市町村向け","釜石市成人のつどい","教養・文化 - その他","釜石市","新成人の門出を祝う式典を行います。",null,2022,1,9,2022,1,9,"300人","無料",null,"釜石市民ホールTETTO","釜石市大町1-1-9","釜石市市民生活部まちづくり課","0193-27-8454","0193-22-9505",null,null,"・詳細未定\n・新型コロナウイルスの感染拡大状況により、中止となる場合があります。"]
[511,"継続","市町村向け","生涯学習出前講座","学術一般 - その他","釜石市","通年、市民の要望に応じて、市職員の他公的機関や民間団体の方々を講師とした各種テーマ(約160個）の出前講座を実施します。",null,2021,null,null,null,null,null,null,null,null,"※申込みグループにご用意いただきます。",null,"釜石市市民生活部まちづくり課","0193-27-8454","0193-22-9505",null,null,"・新型コロナウイルスの感染拡大状況により、中止となる場合があります。"]
[512,"継続","市町村向け","第51回釜石市民芸術文化祭","教養・文化 - その他","釜石市","市と釜石市芸術文化協会との共催で、市民の芸術文化活動の発表及び鑑賞の場を提供します。",null,2021,11,12,2021,11,14,null,"無料",null,"釜石市民ホールTETTO","釜石市大町1-1-9","釜石市文化スポーツ部文化振興課","0193-27-5714",null,null,null,"・詳細未定\n・新型コロナウイルスの感染拡大状況により、中止となる場合があります。"]
[513,"継続","市町村向け","第３４回釜石市民劇場","教養・文化 - 舞踏・演劇","釜石市","郷土の先人の偉業などを題材として、脚本・演出。舞台装置製作から出演者まですべて市民の手作りの演劇を行います。",null,2022,3,6,null,null,null,null,"有料",null,"釜石市民ホールTETTO","釜石市大町1-1-9","釜石市文化スポーツ部文化振興課","0193-27-5714",null,null,null,"・詳細未定\n・新型コロナウイルスの感染拡大状況により、中止となる場合があります。"]
[514,"継続",null,"釜石市郷土芸能祭","教養・文化 - 郷土芸能","釜石市","釜石市内の文化財を公開し、市民が郷土にある貴重な資料や郷土芸能に触れる機会をつくる。",null,2022,null,null,2022,null,null,null,"無料",null,"釜石市民ホールTETTO","釜石市大町1-1-9","釜石市文化スポーツ部文化振興課","0193-27-5714",null,null,null,"・詳細未定\n・新型コロナウイルスの感染拡大状況により、中止となる場合があります。"]
[515,"継続","市町村向け","第４7回釜石健康マラソン大会","スポーツ・健康 - マラソン・陸上","釜石市","市民参加型年齢別のマラソン大会を開催します。\n種目　①マラソン　3.2㎞、2.3㎞、1.5㎞、400ｍ(幼児の部)　②リレー　100ｍ×4ほか\n部門　男女年齢別",null,2021,10,9,2021,10,9,null,"有料",null,"鵜住居復興スタジアム","釜石市鵜住居町第18地割5-1","釜石市文化スポーツ部スポーツ推進課","0193-27-5712",null,null,null,"・詳細未定\n・新型コロナウイルスの感染拡大状況により、中止となる場合があります。"]
[516,"継続",null,"第１２回かまいし仙人峠マラソン大会","スポーツ・健康 - マラソン・陸上","釜石市","大会前日の前夜祭や当日の会場で地元物産の紹介をしながら、当市固有の自然空間を活用する1000人規模のマラソン大会です。大会当日満16歳以上の方が対象です。\nコース　①峠コース　17.2㎞　②10㎞コース\n部門　男女年齢別",null,2021,10,31,2021,10,31,null,"有料",null,"旧釜石鉱山事務所周辺","釜石市甲子町第1地割90-2","釜石市文化スポーツ部スポーツ推進課","0193-27-5712",null,null,null,"・詳細未定\n・新型コロナウイルスの感染拡大状況により、中止となる場合があります。"]
[517,"継続",null,"釜石ラグビックドリーム2021","スポーツ・健康 - その他","釜石市","釜石シーウェイブスRFCによる招待試合のほか、ラグビーを通じた交流イベントを開催します。",null,2021,null,null,null,null,null,null,null,null,"鵜住居復興スタジアム","釜石市鵜住居町第18地割5-1","釜石市文化スポーツ部スポーツ推進課","0193-27-5712",null,null,null,"・詳細未定\n・新型コロナウイルスの感染拡大状況により、中止となる場合があります。"]
[518,"継続","市町村向け","日常英会話講座","現代的課題 - 語学・国際理解","釜石市","日常で使う英会話を学びたい方を対象に、英会話講座を行います。",null,2021,6,2,2021,7,27,10,"有料",3000,"シープラザ釜石　ほか","釜石市鈴子町22-1","釜石市文化スポーツ部国際交流課","0193-27-5713","0193-31-1170","kokusai@city.kamaishi.iwate.jp",null,"・新型コロナウイルスの感染拡大状況により、中止となる場合があります。"]
[519,"継続","市町村向け","外国人のための日本語講座","現代的課題 - 語学・国際理解","釜石市","市内に在住・在勤の外国人を対象に日本語講座を行います。",null,2021,5,16,2022,3,20,null,"無料",null,"青葉ビル","釜石市大町3-8-3","釜石市文化スポーツ部国際交流課","0193-27-5713","0193-31-1170","kokusai@city.kamaishi.iwate.jp",null,"・新型コロナウイルスの感染拡大状況により、中止となる場合があります。"]
[520,"継続","市町村向け","外国語広場","現代的課題 - 語学・国際理解","釜石市","市内に在住・在勤の方を対象に、市内在住外国人の多い国の言語・文化に触れる機会を提供します。",null,2021,8,null,null,null,null,null,"有料",null,null,null,"釜石市文化スポーツ部国際交流課","0193-27-5713","0193-31-1170","kokusai@city.kamaishi.iwate.jp",null,"・詳細未定\n・新型コロナウイルスの感染拡大状況により、中止となる場合があります。"]
[521,"新規","広域（近隣市町村含む）向け","釜石グローバルラウンジ","現代的課題 - 語学・国際理解","釜石市","プレゼンテーションや、ゲームや対話を通して文化交流・関係づくりを行います。",null,2021,4,11,2022,3,13,null,"無料",null,"青葉ビル","釜石市大町3-8-3","釜石市文化スポーツ部国際交流課","0193-27-5713","0193-31-1170","kokusai@city.kamaishi.iwate.jp",null,"・新型コロナウイルスの感染拡大状況により、中止となる場合があります。"]
[522,0,"広域（近隣市町村含む）向け","地域教育力向上フォーラム","現代的課題 - 子育て・家庭教育","北上市","北上市が取り組んでいる地域教育力向上の取り組み事例について発表し、皆で情報を共有する。",0,2022,1,15,2022,1,15,"450人","無料",0,"さくらホール","北上市さくら通り二丁目1-1","北上市まちづくり部生涯学習文化課","0197-72-8303","0197-63-3121","shogai@city.kitakami.iwate.jp","https://www.city.kitakami.iwate.jp/"]
[523,0,"広域（近隣市町村含む）向け","ワンワールドフェスタ","現代的課題 - まちづくり","北上市","国籍・民族・性別などに関係なく、多くの国の文化を理解し、外国人にやさしいまちづくりを推進するもの。",0,2021,11,14,2021,11,14,"1,000人","無料",0,"北上市生涯学習センター","北上市大通り1-3-1","一般社団法人北上市国際交流協会","0197-63-4497","0197-63-4497","kiah@kitakami.ne.jp","http://www.k-iah.com/"]
[524,0,"市町村向け","北上市民大学","教養・文化 - その他","北上市","自らを磨こうとする市民のために、生涯学習の一環として市民の一人ひとりが一般教養や専門的な知識について体系的に学習する。",null,2021,6,3,null,null,null,"100人","有料","3000円","日本現代詩歌文学館","北上市本石町2-5-60","北上市まちづくり部生涯学習文化課","0197-63-4497","0197-63-3121","shogai@city.kitakami.iwate.jp","https://www.city.kitakami.iwate.jp/"]
[525,"継続","広域（近隣市町村含む）向け","古文書解読講座","教養・文化 - その他","二戸市","初心者の方も楽しめる身近なテーマを題材とした古文書の解読を中心をした講座を開催します。",null,2021,null,null,2021,null,null,"12人","無料",null,"二戸市立図書館","二戸市石切所字狼穴1-1","二戸市立図書館","0195-23-3447","0195-23-1447","tosyo@city.ninohe.iwate.jp","http://ninohe-library.sakura.ne.jp/","全4回\n（9～16の空欄部分未定）"]
[526,"継続","広域（近隣市町村含む）向け","日本古典文学講座","教養・文化 - 文学","二戸市","日本古典文学の名作に親しんでもらうため、解読を中心とした講座を開催します。",null,2021,null,null,2021,null,null,"12人","無料",null,"二戸市立図書館","二戸市石切所字狼穴1-1","二戸市立図書館","0195-23-3447","0195-23-1447","tosyo@city.ninohe.iwate.jp","http://ninohe-library.sakura.ne.jp/","全3回\n（9～16の空欄部分未定）"]
[527,"継続","市町村向け","手づくり絵本教室","教養・文化 - その他","二戸市","幼児・小中学生・一般を対象に手づくり絵本教室を開催します。",null,2021,null,null,2021,null,null,"8人",null,null,"二戸市立図書館","二戸市石切所字狼穴1-1","二戸市立図書館","0195-23-3447","0195-23-1447","tosyo@city.ninohe.iwate.jp","http://ninohe-library.sakura.ne.jp/","全4回\n（9～16の空欄部分未定）"]
[528,"継続","市町村向け","子ども司書講座","教養・文化 - その他","二戸市","小学生4～6年生を対象に子ども司書講座を開催します。",null,2021,null,null,2021,null,null,"4人","無料",null,"二戸市立図書館","二戸市石切所字狼穴1-1","二戸市立図書館","0195-23-3447","0195-23-1447","tosyo@city.ninohe.iwate.jp","http://ninohe-library.sakura.ne.jp/","全1回\n（9～16の空欄部分未定）"]
[529,"継続","広域（近隣市町村含む）向け","二戸市文化祭（展示部門）","教養・文化 - 美術・工芸","二戸市","公民館教室や市内サークル等などによる絵画、写真、菊花、生け花、書道、盆栽など多様な作品展示。",null,2021,11,5,2021,11,7,null,"無料",null,"①市民文化会館②なにゃーと③金田一コミュニティセンター④浄法寺文化交流センター他","①二戸市石切所字狼穴1-1②二戸市石切所字森合68、③二戸市金田一字馬場80、④二戸市浄法寺町下前田30-1","二戸市教育委員会生涯学習課","0195-23-3483","0195-23-9335","shakyo@city.ninohe.iwate.jp"]
[530,"継続","広域（近隣市町村含む）向け","民舞踊発表会（文化祭ステージ部門）","教養・文化 - 舞踏・演劇","二戸市","二戸市文化祭ステージ部門の一環として行われる岩手県民謡保存会二戸支部による民謡や舞踊の発表会",null,"調整中",null,null,null,null,null,"調整中","調整中",null,"二戸市民文化会館","二戸市石切所字狼穴1-1","二戸市教育委員会生涯学習課","0195-23-3483","0195-23-9335","shakyo@city.ninohe.iwate.jp"]
[531,"継続","広域（近隣市町村含む）向け","日本文化のつどい（文化祭ステージ部門）","教養・文化 - 舞踏・演劇","二戸市","二戸市文化祭ステージ部門の一環として行われる日本舞踊、箏曲、尺八、詩吟の発表会",null,"調整中",null,null,null,null,null,"調整中","調整中",null,"二戸市民文化会館","二戸市石切所字狼穴1-1","二戸市教育委員会生涯学習課","0195-23-3483","0195-23-9335","shakyo@city.ninohe.iwate.jp"]
[532,"継続","広域（近隣市町村含む）向け","二戸吹奏楽団定期演奏会（文化祭ステージ部門）","教養・文化 - 音楽","二戸市","二戸市文化祭ステージ部門の一環として行われる二戸吹奏楽団による定期演奏会",null,"調整中",null,null,null,null,null,"調整中","調整中",null,"二戸市民文化会館","二戸市石切所字狼穴1-1","二戸市教育委員会生涯学習課","0195-23-3483","0195-23-9335","shakyo@city.ninohe.iwate.jp"]
[533,"継続","広域（近隣市町村含む）向け","二戸市民合唱団定期演奏会（文化祭ステージ部門）","教養・文化 - 音楽","二戸市","二戸市文化祭ステージ部門の一環として行われる二戸市民合唱団による定期演奏会",null,"調整中",null,null,null,null,null,"調整中","調整中",null,"二戸市民文化会館","二戸市石切所字狼穴1-1","二戸市教育委員会生涯学習課","0195-23-3483","0195-23-9335","shakyo@city.ninohe.iwate.jp"]
[534,"継続","広域（近隣市町村含む）向け","二戸演劇協会定期公演（文化祭ステージ部門）","教養・文化 - 舞踏・演劇","二戸市","二戸市文化祭ステージ部門の一環として行われる二戸演劇協会による定期公演",null,"調整中",null,null,null,null,null,"調整中","調整中",null,"二戸市民文化会館","二戸市石切所字狼穴1-1","二戸市教育委員会生涯学習課","0195-23-3483","0195-23-9335","shakyo@city.ninohe.iwate.jp"]
[535,"継続","広域（近隣市町村含む）向け","高齢者のための講演会","教養・文化 - その他","二戸市","高齢者が自らの健康や身の回りの問題について学ぶ機会を提供する講演会（テーマ未定）",null,2021,7,28,2021,7,28,100,"無料",null,"二戸市民文化会館","二戸市石切所字狼穴1-1","二戸市教育委員会生涯学習課","0195-23-3483","0195-23-9335","shakyo@city.ninohe.iwate.jp"]
[536,"継続","市町村向け","令和３年二戸市成人式","現代的課題 - まちづくり","二戸市","次代を担う若者の門出を祝い励ますとともに、成人としての自覚を促す。",null,2021,8,14,2021,8,14,null,"無料",null,"二戸市民文化会館","二戸市石切所字狼穴1-1","二戸市教育委員会生涯学習課","0195-23-3483","0195-23-9335","shakyo@city.ninohe.iwate.jp"]
[537,"継続","市町村向け","令和４年二戸市成人式","現代的課題 - まちづくり","二戸市","次代を担う若者の門出を祝い励ますとともに、成人としての自覚を促す。",null,2022,1,9,2022,1,9,null,"無料",null,"二戸市民文化会館","二戸市石切所字狼穴1-1","二戸市教育委員会生涯学習課","0195-23-3483","0195-23-9335","shakyo@city.ninohe.iwate.jp"]
[538,null,"市町村向け","いちのへ町民セミナー","教養・文化 - その他","一戸町","町民を対象とした、各種講座を年間20講座ほど開催。",null,2021,6,19,2022,1,22,null,null,null,"一戸町町民文化センター","一戸町高善寺字大川鉢24-9","一戸町生涯学習課","0195-33-2111","0195-32-2001"]
[539,null,"市町村向け","子ども会研修会","教養・文化 - その他","一戸町","子ども会を対象とした研修会を年２回（７月、２月）開催。",null,2021,7,null,2022,2,null,null,null,null,"御所野縄文博物館","一戸町岩舘字御所野２","一戸町生涯学習課","0195-33-2111","0195-32-2001"]
[540,null,"市町村向け","一戸町成人式典","教養・文化 - その他","一戸町","対象新成人（Ｈ12.4.2～Ｈ13.4.1生まれ）",null,null,null,null,null,null,null,null,null,null,"一戸町コミュニティセンター","一戸町一戸字砂森117-2","一戸町生涯学習課","0195-33-2111","0195-32-2001"]
[541,null,"市町村向け","文化祭（奥中山地区）","教養・文化 - 美術・工芸","一戸町","奥中山地区の公民館利用団体等による文化芸術活動の発表。",null,2021,10,9,2021,10,10,null,null,null,"奥中山地区公民館","一戸町中山字大塚82-2","奥中山地区公民館","0195-35-2111"]
[542,null,"市町村向け","一戸町文化祭","教養・文化 - 美術・工芸","一戸町","一戸町文化協会・各種サークル団体・個人の各種作品を展示。日曜日は舞台発表を予定。",null,2021,10,29,2021,10,31,null,"無料",null,"一戸町町民文化センター","一戸町高善寺字大川鉢24-9","一戸町生涯学習課","0195-33-2111","0195-32-2001"]
[543,null,"市町村向け","公民館まつり（小鳥谷地区）","教養・文化 - 美術・工芸","一戸町","小鳥谷地区の公民館利用団体等による文化芸術活動の発表。",null,2021,11,6,2021,11,7,null,null,null,"小鳥谷地区公民館","一戸町小鳥谷字中屋敷上12-4","小鳥谷地区公民館","0195-34-3315"]
[544,null,"市町村向け","子ども会ドッジボール大会","スポーツ・健康 - 球技","一戸町","子ども会対抗のドッジボール大会を開催。",null,2021,11,null,null,null,null,null,null,null,"一戸町町民文化センター","一戸町高善寺字大川鉢24-9","一戸町生涯学習課","0195-33-2111","0195-32-2001"]
[545,null,"市町村向け","新年かきぞめ大会","教養・文化 - 美術・工芸","一戸町","小学生・中学生・高校生・一般を対象としたかきぞめ大会を開催。",null,2022,1,8,null,null,null,null,null,null,"一戸町コミュニティセンター","一戸町一戸字砂森117-2","一戸町生涯学習課","0195-33-2111","0195-32-2001"]
[546,"自主","県民向け","大人ワンダークラブ【野外活動編】","スポーツ・健康 - 登山・野外活動","金ヶ崎町","【野外活動編】\n・スウェーデントーチで料理\n・テント設営の方法等","一般",2021,5,15,2021,5,15,20,"有料","3,000円","県南青少年の家","胆沢郡金ケ崎町永沢下舘49－1","県南青少年の家","0197-44-2124","0197-44-2126","kenritukennan＠echna.ne.jp","http://www.echna.ne.jp/~kenritu1/"]
[547,"自主","県民向け","大人ワンダークラブ【登山編】","スポーツ・健康 - 登山・野外活動","金ヶ崎町","【登山編】\n・栗駒山登山","一般",2021,10,13,2021,10,13,20,"有料","2,500円","栗駒山",null,"県南青少年の家","0197-44-2124","0197-44-2126","kenritukennan＠echna.ne.jp","http://www.echna.ne.jp/~kenritu1/"]
[548,"自主","県民向け","大人ワンダークラブ【創作活動編】","教養・文化 - 美術・工芸","金ヶ崎町","【創作活動編】\n・創作活動（選択制）\n・昼食，交流会等","一般",2022,2,11,2022,2,11,20,"有料","3,000円","県南青少年の家","胆沢郡金ケ崎町永沢下舘49－1","県南青少年の家","0197-44-2124","0197-44-2126","kenritukennan＠echna.ne.jp","http://www.echna.ne.jp/~kenritu1/"]
[549,"自主","県民向け","ファミリートレッキング","スポーツ・健康 - 登山・野外活動","金ヶ崎町","親子トレッキング","小学生の子どもを持つ家族",2021,6,13,2021,6,13,"10家族20名程度","有料","大人：1300円\n子ども：700円","県南青少年の家","胆沢郡金ケ崎町永沢下舘49－1","県南青少年の家","0197-44-2124","0197-44-2126","kenritukennan＠echna.ne.jp","http://www.echna.ne.jp/~kenritu1/"]
[550,"自主","県民向け","県南青少年の家所長杯サッカーフェスティバル\n","スポーツ・健康 - 球技","金ヶ崎町","【第28回】\n①　サッカー競技","サッカースポーツ少年団",2021,9,18,2021,9,19,"12チーム","有料","1ﾁｰﾑ3,000円","県南青少年の家","胆沢郡金ケ崎町永沢下舘49－1","県南青少年の家","0197-44-2124","0197-44-2126","kenritukennan＠echna.ne.jp","http://www.echna.ne.jp/~kenritu1/"]
[551,"自主","県民向け","県南青少年の家所長杯サッカーフェスティバル\n","スポーツ・健康 - 球技","金ヶ崎町","【第29回】\n②　サッカー競技","サッカースポーツ少年団",2021,9,25,2021,9,26,"12チーム","有料","1ﾁｰﾑ3,000円","県南青少年の家","胆沢郡金ケ崎町永沢下舘49－1","県南青少年の家","0197-44-2124","0197-44-2126","kenritukennan＠echna.ne.jp","http://www.echna.ne.jp/~kenritu1/"]
[552,"自主","県民向け","みどりのキャンバス・ふれあいフェスティバル\n","スポーツ・健康 - レクリエーション","金ヶ崎町","・ピザ作り体験\n・創作活動体験\n・ニュースポーツ体験\n・川遊び体験　等","子ども～一般",2021,8,29,2021,8,29,"なし","無料","創作代、ピザ体験代別途","県南青少年の家","胆沢郡金ケ崎町永沢下舘49－1","県南青少年の家","0197-44-2124","0197-44-2126","kenritukennan＠echna.ne.jp","http://www.echna.ne.jp/~kenritu1/"]
[553,"自主","市町村向け","親子ｄｅチャレンジ！\n(県北青少年の家他)\n","スポーツ・健康 - レクリエーション","金ヶ崎町","・氷上スポーツ体験（スケート・カーリング）\n・プラネタリウム鑑賞\n・創作活動\n・夕食交流会","小学生の子どもを持つ家族",2021,10,30,2021,10,31,"6家族20名程度","有料","大人：4,200円、子ども：2,500円、通信費：400円","県北青少年の家",null,"県南青少年の家","0197-44-2124","0197-44-2126","kenritukennan＠echna.ne.jp","http://www.echna.ne.jp/~kenritu1/"]
[554,"自主","県民向け","親子ｄｅクリスマスリース作り①②","教養・文化 - 美術・工芸","金ヶ崎町","親子でクリスマスリース作り","小学生とその家族",2021,11,27,2021,11,27,"午前午後各50","有料","650円","県南青少年の家","胆沢郡金ケ崎町永沢下舘49－1","県南青少年の家","0197-44-2124","0197-44-2126","kenritukennan＠echna.ne.jp","http://www.echna.ne.jp/~kenritu1/"]
[555,"自主","県民向け","親子ｄｅクリスマスキャンドル作り①②","教養・文化 - 美術・工芸","金ヶ崎町","親子でクリスマスキャンドル作り","小学生とその家族",2021,11,28,2021,11,28,"午前午後各50","有料","650円","県南青少年の家","胆沢郡金ケ崎町永沢下舘49－1","県南青少年の家","0197-44-2124","0197-44-2126","kenritukennan＠echna.ne.jp","http://www.echna.ne.jp/~kenritu1/"]
[556,"自主","県民向け","親子ｄｅクリスマスキャンドル作り③④","教養・文化 - 美術・工芸","金ヶ崎町","親子でクリスマスキャンドル作り","小学生とその家族",2021,12,4,2021,12,4,"午前午後各50","有料","650円","県南青少年の家","胆沢郡金ケ崎町永沢下舘49－1","県南青少年の家","0197-44-2124","0197-44-2126","kenritukennan＠echna.ne.jp","http://www.echna.ne.jp/~kenritu1/"]
[557,"自主","県民向け","かるがも親子のクリスマス","教養・文化 - 美術・工芸","金ヶ崎町","・共同創作活動\n・夕食交流会\n・メディア学習会（保護者）\n・サイエンス教室（子ども）","小学生の子どもを持つ家族",2021,12,11,2021,12,12,"24家族60名程度","有料","大人：3,300円、子ども：3,230円、通信費：400円","県南青少年の家","胆沢郡金ケ崎町永沢下舘49－1","県南青少年の家","0197-44-2124","0197-44-2126","kenritukennan＠echna.ne.jp","http://www.echna.ne.jp/~kenritu1/"]
[558,"自主","県民向け","レッツ！スケート\n(みどりの郷スケートリンク)\n","スポーツ・健康 - スキー・スケート","金ヶ崎町","① スケート講習会＆自由滑走","小学生とその家族",2022,1,15,2021,1,15,"50名程度","有料","大人：1,600円、子ども：1,200円","みどりの郷",null,"県南青少年の家","0197-44-2124","0197-44-2126","kenritukennan＠echna.ne.jp","http://www.echna.ne.jp/~kenritu1/"]
[559,"自主","県民向け","レッツ！スケート\n(みどりの郷スケートリンク)\n","スポーツ・健康 - スキー・スケート","金ヶ崎町","② スケート講習会＆自由滑走","小学生とその家族",2022,1,29,2021,1,29,"50名程度","有料","大人：1,600円、子ども：1,200円","みどりの郷",null,"県南青少年の家","0197-44-2124","0197-44-2126","kenritukennan＠echna.ne.jp","http://www.echna.ne.jp/~kenritu1/"]
[560,"受託","市町村向け","集団宿泊指導者研修会","学術一般 - 教育","金ヶ崎町","①「野外活動，創作活動，情報交換」など","小中学校教員",2021,5,7,2021,5,7,"小中学校教員","有料","600円","県南青少年の家","胆沢郡金ケ崎町永沢下舘49－1","県南青少年の家","0197-44-2124","0197-44-2126","kenritukennan＠echna.ne.jp","http://www.echna.ne.jp/~kenritu1/"]
[561,"受託","市町村向け","集団宿泊指導者研修会","学術一般 - 教育","金ヶ崎町","②「野外活動，創作活動，情報交換」など","小中学校教員",2021,5,11,2021,5,11,"小中学校教員","有料","600円","県南青少年の家","胆沢郡金ケ崎町永沢下舘49－1","県南青少年の家","0197-44-2124","0197-44-2126","kenritukennan＠echna.ne.jp","http://www.echna.ne.jp/~kenritu1/"]
[562,"受託","市町村向け","自然ワンダークラブ\n(県南青少年の家、陸前高田野外活動センター、他)\n","スポーツ・健康 - 登山・野外活動","金ヶ崎町","第１回\nウォークラリー，野外炊事 等","小学4～6年生",2021,5,29,2021,5,30,"30名","有料","2,300円","県南青少年の家","胆沢郡金ケ崎町永沢下舘49－1","県南青少年の家","0197-44-2124","0197-44-2126","kenritukennan＠echna.ne.jp","http://www.echna.ne.jp/~kenritu1/"]
[563,"受託","市町村向け","自然ワンダークラブ\n(県南青少年の家、陸前高田野外活動センター、他)\n","学術一般 - 歴史・地理・民俗","金ヶ崎町","第２回\n海遊び，東日本津波伝承館見学 等","小学4～6年生",2021,8,21,2021,8,22,"30名","有料","2,700円","県南青少年の家","胆沢郡金ケ崎町永沢下舘49－1","県南青少年の家","0197-44-2124","0197-44-2126","kenritukennan＠echna.ne.jp","http://www.echna.ne.jp/~kenritu1/"]
[564,"受託","市町村向け","自然ワンダークラブ\n(県南青少年の家、陸前高田野外活動センター、他)\n","スポーツ・健康 - 登山・野外活動","金ヶ崎町","第３回\n登山，創作活動 等","小学4～6年生",2021,10,2,2021,10,3,"30名","有料","2,600円","県南青少年の家","胆沢郡金ケ崎町永沢下舘49－1","県南青少年の家","0197-44-2124","0197-44-2126","kenritukennan＠echna.ne.jp","http://www.echna.ne.jp/~kenritu1/"]
[565,"受託","市町村向け","自然ワンダークラブ\n(県南青少年の家、陸前高田野外活動センター、他)\n","スポーツ・健康 - スキー・スケート","金ヶ崎町","第４回\n雪遊び，スケート 等","小学4～6年生",2022,1,15,2021,1,16,"30名","有料","3,200円","県南青少年の家","胆沢郡金ケ崎町永沢下舘49－1","県南青少年の家","0197-44-2124","0197-44-2126","kenritukennan＠echna.ne.jp","http://www.echna.ne.jp/~kenritu1/"]
[566,"受託","県民向け","アドバイザースタッフ養成講座\n","スポーツ・健康 - レクリエーション","金ヶ崎町","野外活動，創作活動，ニュースポーツ，仲間作りゲーム，事業紹介　など","高校生・学生等",2021,5,29,2021,5,30,"15名","有料","2,500円","県南青少年の家","胆沢郡金ケ崎町永沢下舘49－1","県南青少年の家","0197-44-2124","0197-44-2126","kenritukennan＠echna.ne.jp","http://www.echna.ne.jp/~kenritu1/"]
[567,"受託","県民向け","かるがも親子体験教室","教養・文化 - 料理・お茶・お花・書道","金ヶ崎町","「親子ｄｅアウトドアクッキング」","小学1～3年の子どもを持つ家族",2021,7,3,2021,7,3,"20家族40名程度","有料","大人：450円、子ども：250円、共通経費：610円","県南青少年の家","胆沢郡金ケ崎町永沢下舘49－1","県南青少年の家","0197-44-2124","0197-44-2126","kenritukennan＠echna.ne.jp","http://www.echna.ne.jp/~kenritu1/"]
[568,"受託","県民向け","かるがも親子体験教室","スポーツ・健康 - 登山・野外活動","金ヶ崎町","「親子ｄｅキャンプ!」","小学1～3年の子どもを持つ家族",2021,7,24,2021,7,25,"20家族40名程度","有料","大人：1210円、子ども：1000円","県南青少年の家","胆沢郡金ケ崎町永沢下舘49－1","県南青少年の家","0197-44-2124","0197-44-2126","kenritukennan＠echna.ne.jp","http://www.echna.ne.jp/~kenritu1/"]
[569,"受託","県民向け","水と緑のフレンドシップ","スポーツ・健康 - 登山・野外活動","金ヶ崎町","キャンプ体験，野外炊事，川遊び，創作活動，キャンプファイア 等","小学5年～中学生",2021,8,1,2021,8,5,"30名","有料","小学生：8,600円、中学生：8,700円","県南青少年の家","胆沢郡金ケ崎町永沢下舘49－1","県南青少年の家","0197-44-2124","0197-44-2126","kenritukennan＠echna.ne.jp","http://www.echna.ne.jp/~kenritu1/"]
[570,"受託","市町村向け","宿泊通学合宿","スポーツ・健康 - レクリエーション","金ヶ崎町","アイスブレイク，創作活動 ニュースポーツ，学習等","永岡・西小学校56年",2021,11,7,2021,11,10,"30名","有料","4,200円","県南青少年の家","胆沢郡金ケ崎町永沢下舘49－1","県南青少年の家","0197-44-2124","0197-44-2126","kenritukennan＠echna.ne.jp","http://www.echna.ne.jp/~kenritu1/"]
[571,"受託","県民向け","親子de手作りクリスマス！","教養・文化 - 美術・工芸","金ヶ崎町","「親子でクリスマスリース創作」①","小中学生の子どもを持つ家族",2021,11,27,2021,11,27,"15家族40名程度","有料","650円","県南青少年の家","胆沢郡金ケ崎町永沢下舘49－1","県南青少年の家","0197-44-2124","0197-44-2126","kenritukennan＠echna.ne.jp","http://www.echna.ne.jp/~kenritu1/"]
[572,"受託","県民向け","親子de手作りクリスマス！","教養・文化 - 美術・工芸","金ヶ崎町","「親子でクリスマスリース創作」②","小中学生の子どもを持つ家族",2021,11,27,2021,11,27,"15家族40名程度","有料","650円","県南青少年の家","胆沢郡金ケ崎町永沢下舘49－1","県南青少年の家","0197-44-2124","0197-44-2126","kenritukennan＠echna.ne.jp","http://www.echna.ne.jp/~kenritu1/"]
[573,"受託","県民向け","親子de手作りクリスマス！","教養・文化 - 美術・工芸","金ヶ崎町","「親子でクリスマスキャンドル創作」①","小中学生の子どもを持つ家族",2021,11,28,2021,11,28,"15家族40名程度","有料","650円","県南青少年の家","胆沢郡金ケ崎町永沢下舘49－1","県南青少年の家","0197-44-2124","0197-44-2126","kenritukennan＠echna.ne.jp","http://www.echna.ne.jp/~kenritu1/"]
[574,"受託","県民向け","親子de手作りクリスマス！","教養・文化 - 美術・工芸","金ヶ崎町","「親子でクリスマスキャンドル創作」②","小中学生の子どもを持つ家族",2021,11,28,2021,11,28,"15家族40名程度","有料","650円","県南青少年の家","胆沢郡金ケ崎町永沢下舘49－1","県南青少年の家","0197-44-2124","0197-44-2126","kenritukennan＠echna.ne.jp","http://www.echna.ne.jp/~kenritu1/"]
[575,"受託","県民向け","親子de手作りクリスマス！","教養・文化 - 美術・工芸","金ヶ崎町","「親子でクリスマスキャンドル創作」③","小中学生の子どもを持つ家族",2021,12,4,2021,12,4,"15家族40名程度","有料","650円","県南青少年の家","胆沢郡金ケ崎町永沢下舘49－1","県南青少年の家","0197-44-2124","0197-44-2126","kenritukennan＠echna.ne.jp","http://www.echna.ne.jp/~kenritu1/"]
[576,"受託","県民向け","親子de手作りクリスマス！","教養・文化 - 美術・工芸","金ヶ崎町","「親子でクリスマスキャンドル創作」④","小中学生の子どもを持つ家族",2021,12,4,2021,12,4,"15家族40名程度","有料","650円","県南青少年の家","胆沢郡金ケ崎町永沢下舘49－1","県南青少年の家","0197-44-2124","0197-44-2126","kenritukennan＠echna.ne.jp","http://www.echna.ne.jp/~kenritu1/"]
[577,"受託","市町村向け","かるがも親子のクリスマス","教養・文化 - 美術・工芸","金ヶ崎町","学習会（親），創作活動（親子），スポーツレクリエーション，クリスマスキャンドルづくり等","小学1～3年の子どもを持つ家族",2021,12,11,2021,12,12,"24家族60名程度","有料","大人：2,700円、子ども：2,300円","県南青少年の家","胆沢郡金ケ崎町永沢下舘49－1","県南青少年の家","0197-44-2124","0197-44-2126","kenritukennan＠echna.ne.jp","http://www.echna.ne.jp/~kenritu1/"]
[578,"受託","市町村向け","冬のおもしろ体験ランド\n(県南青少年の家、\n夏油高原スキー場、みどりの郷スケートリンク等)","スポーツ・健康 - スキー・スケート","金ヶ崎町","スキー，スケート 等","小学4年～中学生",2022,1,29,2022,1,30,"30名","有料","小学生：4,000円、中学生：4,410円","県南青少年の家","胆沢郡金ケ崎町永沢下舘49－1","県南青少年の家","0197-44-2124","0197-44-2126","kenritukennan＠echna.ne.jp","http://www.echna.ne.jp/~kenritu1/"]
[579,"受託","市町村向け","県南は～とふる♡Day\n(県南青少年の家他)","スポーツ・健康 - レクリエーション","金ヶ崎町","創作活動，ニュースポーツ等",null,"通年",null,null,null,null,null,"なし","無料","創作材料費","県南青少年の家","胆沢郡金ケ崎町永沢下舘49－1","県南青少年の家","0197-44-2124","0197-44-2126","kenritukennan＠echna.ne.jp","http://www.echna.ne.jp/~kenritu1/"]
[580,null,"広域（近隣市町村含む）向け","野外活動セミナー","スポーツ・健康 - 登山・野外活動","二戸市","施設利用説明、事前体験活動（野外炊事、ウォークラリー等）、日程調整等",null,2021,5,7,2021,5,7,"なし","有料","500円/1人","県北青少年の家","二戸市仁左平字放森61-35","県北青少年の家","0195\n23-9511","0195\n23-3874","kenritukenpoku@echna.ne.jp","http://www.echna.ne.jp/~kenritu3/"]
[581,null,"広域（近隣市町村含む）向け","いきいきグランド・ゴルフ大会①","スポーツ・健康 - レクリエーション","二戸市","近隣市町村の愛好者によるグランド・ゴルフ交流会（16×3コース）",null,2021,5,13,2021,5,13,"100人","有料","500円/1人","県北青少年の家","二戸市仁左平字放森61-35","県北青少年の家","0195\n23-9511","0195\n23-3874","kenritukenpoku@echna.ne.jp","http://www.echna.ne.jp/~kenritu3/","先着順"]
[582,null,"広域（近隣市町村含む）向け","いきいきグランド・ゴルフ大会②","スポーツ・健康 - レクリエーション","二戸市","近隣市町村の愛好者によるグランド・ゴルフ交流会（16×3コース）",null,2021,9,14,2021,9,14,"100人","有料","500円/１人","県北青少年の家","二戸市仁左平字放森61-35","県北青少年の家","0195\n23-9511","0195\n23-3874","kenritukenpoku@echna.ne.jp","http://www.echna.ne.jp/~kenritu3/","先着順"]
[583,null,"広域（近隣市町村含む）向け","親子でアウトドアチャレンジ","スポーツ・健康 - レクリエーション","二戸市","親子で楽しむ野外活動（野外炊事とゲーム）",null,2021,5,29,2021,5,30,"40人","有料","大人2500円\n小学2100円\n幼児1500円\n/1人","県北青少年の家","二戸市仁左平字放森61-35","県北青少年の家","0195\n23-9511","0195\n23-3874","kenritukenpoku@echna.ne.jp","http://www.echna.ne.jp/~kenritu3/","抽選"]
[584,null,"広域（近隣市町村含む）向け","レッツ！トレッキング①","スポーツ・健康 - 登山・野外活動","二戸市","八幡平へのトレッキング、自然観察",null,2021,6,8,2021,6,8,"20人","有料","400円/1人　\n程度","県北青少年の家","二戸市仁左平字放森61-35","県北青少年の家","0195\n23-9511","0195\n23-3874","kenritukenpoku@echna.ne.jp","http://www.echna.ne.jp/~kenritu3/","抽選"]
[585,null,"広域（近隣市町村含む）向け","レッツ！トレッキング②","スポーツ・健康 - 登山・野外活動","二戸市","三ツ石山へのトレッキング、自然観察",null,2021,9,28,2021,9,29,"20人","有料","400円/2人　\n程度","県北青少年の家","二戸市仁左平字放森61-35","県北青少年の家","0195\n23-9511","0195\n23-3874","kenritukenpoku@echna.ne.jp","http://www.echna.ne.jp/~kenritu3/","抽選"]
[586,null,"広域（近隣市町村含む）向け","わんぱく広場①","スポーツ・健康 - 登山・野外活動","二戸市","親子で楽しむ自然体験活動、野外炊事体験",null,2021,6,26,2021,6,26,"40人","有料","小学生以上\n900円/1人\n幼児\n300円/1人","県北青少年の家","二戸市仁左平字放森61-35","県北青少年の家","0195\n23-9511","0195\n23-3874","kenritukenpoku@echna.ne.jp","http://www.echna.ne.jp/~kenritu3/","抽選"]
[587,null,"広域（近隣市町村含む）向け","わんぱく広場②","スポーツ・健康 - 登山・野外活動","二戸市","親子で楽しむ自然体験活動、野外炊事体験",null,2021,6,27,2021,6,27,"40人","有料","小学生以上\n900円/1人\n幼児\n300円/1人","県北青少年の家","二戸市仁左平字放森61-35","県北青少年の家","0195\n23-9511","0195\n23-3874","kenritukenpoku@echna.ne.jp","http://www.echna.ne.jp/~kenritu3/","抽選"]
[588,null,"広域（近隣市町村含む）向け","サマーにこにこキャンプ①","スポーツ・健康 - 登山・野外活動","二戸市","仲間づくり、野外炊事、自然体験活動、室内テント泊、創作活動等",null,2021,7,10,2021,7,11,"30人","有料","小学生2･3年\n2,000円/1人\n程度","県北青少年の家","二戸市仁左平字放森61-35","県北青少年の家","0195\n23-9511","0195\n23-3874","kenritukenpoku@echna.ne.jp","http://www.echna.ne.jp/~kenritu3/","抽選"]
[589,null,"広域（近隣市町村含む）向け","サマーにこにこキャンプ②","スポーツ・健康 - 登山・野外活動","二戸市","仲間づくり、野外炊事、自然体験活動、室内テント泊、創作活動等",null,2021,7,17,2021,7,18,"30人","有料","小学生2･3年\n2,000円/1人\n程度","県北青少年の家","二戸市仁左平字放森61-35","県北青少年の家","0195\n23-9511","0195\n23-3874","kenritukenpoku@echna.ne.jp","http://www.echna.ne.jp/~kenritu3/","抽選"]
[590,null,"広域（近隣市町村含む）向け","ステラパル夏まつり","教養・文化・スポーツ・健康－その他","二戸市","伝統芸能体験、ニュースポーツ・パラ種目体験、ワークショップコーナー、食堂、等",null,2021,7,25,2021,7,25,"午前・午後それぞれ200人以内","入場\n無料","創作体験等\n一部有料","県北青少年の家","二戸市仁左平字放森61-35","県北青少年の家","0195\n23-9511","0195\n23-3874","kenritukenpoku@echna.ne.jp","http://www.echna.ne.jp/~kenritu3/","先着順"]
[591,null,"広域（近隣市町村含む）向け","プラネタリウム鑑賞デー①","学術一般 - 物理・天文・地学","二戸市","プラネタリウムによる各季節の星座鑑賞\n各季節の天文現象のトピック学習等",null,2021,7,25,2021,7,25,"20人\n程度","無料",null,"県北青少年の家","二戸市仁左平字放森61-35","県北青少年の家","0195\n23-9511","0195\n23-3874","kenritukenpoku@echna.ne.jp","http://www.echna.ne.jp/~kenritu3/","先着順"]
[592,null,"広域（近隣市町村含む）向け","プラネタリウム鑑賞デー②","学術一般 - 物理・天文・地学","二戸市","プラネタリウムによる各季節の星座鑑賞\n各季節の天文現象のトピック学習等",null,2021,9,18,2021,9,18,"20人\n程度","無料",null,"県北青少年の家","二戸市仁左平字放森61-35","県北青少年の家","0195\n23-9511","0195\n23-3874","kenritukenpoku@echna.ne.jp","http://www.echna.ne.jp/~kenritu3/","先着順"]
[593,null,"広域（近隣市町村含む）向け","プラネタリウム鑑賞デー③","学術一般 - 物理・天文・地学","二戸市","プラネタリウムによる各季節の星座鑑賞\n各季節の天文現象のトピック学習等",null,2022,2,11,2022,2,11,"20人\n程度","無料",null,"県北青少年の家","二戸市仁左平字放森61-35","県北青少年の家","0195\n23-9511","0195\n23-3874","kenritukenpoku@echna.ne.jp","http://www.echna.ne.jp/~kenritu3/","先着順"]
[594,null,"広域（近隣市町村含む）向け","サマーチャレンジキャンプ","スポーツ・健康 - 登山・野外活動","二戸市","仲間づくり、野外炊事、自然体験活動、テント泊、創作活動、キャンプファイヤー等",null,2021,8,3,2021,8,3,"30人","有料","小学4-6年\n12,000円/1人\n程度","県北青少年の家","二戸市仁左平字放森61-35","県北青少年の家","0195\n23-9511","0195\n23-3874","kenritukenpoku@echna.ne.jp","http://www.echna.ne.jp/~kenritu3/","抽選"]
[595,null,"広域（近隣市町村含む）向け","ジュニアフォレスターズ大作戦①","教養・文化・スポーツ・健康－その他","二戸市","仲間づくり、森林学習、環境保護活動、自然体験活動、野外炊事等",null,2021,8,28,2021,8,29,"30人","有料","3,500円/1人","県北青少年の家","二戸市仁左平字放森61-35","県北青少年の家","0195\n23-9511","0195\n23-3874","kenritukenpoku@echna.ne.jp","http://www.echna.ne.jp/~kenritu4/","抽選"]
[596,null,"広域（近隣市町村含む）向け","ジュニアフォレスターズ大作戦②","教養・文化・スポーツ・健康－その他","二戸市","仲間づくり、森林学習、環境保護活動、自然体験活動、野外炊事等",null,2022,1,22,2022,1,23,"30人","有料","3,500円/1人","県北青少年の家","二戸市仁左平字放森61-35","県北青少年の家","0195\n23-9511","0195\n23-3874","kenritukenpoku@echna.ne.jp","http://www.echna.ne.jp/~kenritu5/","抽選"]
[597,null,"広域（近隣市町村含む）向け","親子でアウトドアクッキング","スポーツ・健康 - 登山・野外活動","二戸市","親子で楽しむ野外炊事、仲間づくり等",null,2021,9,18,2021,9,18,"40人","有料","大人\n900円/1人\n子ども\n700円/1人","県北青少年の家","二戸市仁左平字放森61-35","県北青少年の家","0195\n23-9511","0195\n23-3874","kenritukenpoku@echna.ne.jp","http://www.echna.ne.jp/~kenritu3/","抽選"]
[598,null,"広域（近隣市町村含む）向け","親子ｄｅチャレンジ！\n（会場：県北青少年の家）","教養・文化・スポーツ・健康－その他","金ケ崎町","親子で楽しむ体験活動、参加者の交流等(県北・陸中海岸・県南青少年の家から参加)",null,2021,10,30,2021,10,31,"20人","有料","大人\n3,600円/1人\n子ども\n2,850円/1人","県北青少年の家","二戸市仁左平字放森61-35","県北青少年の家","0195\n23-9511","0195\n23-3874","kenritukenpoku@echna.ne.jp","http://www.echna.ne.jp/~kenritu3/","抽選"]
[599,null,"広域（近隣市町村含む）向け","スケート場感謝デー","スポーツ・健康 - スキー・スケート","二戸市","貸靴代・入場料無料、自由滑走、初心者・初級者向けのスケート教室、氷上スポーツ体験等",null,2021,11,3,2021,11,3,"なし","無料",null,"県北青少年の家","二戸市仁左平字放森61-35","県北青少年の家","0195\n23-9511","0195\n23-3874","kenritukenpoku@echna.ne.jp","http://www.echna.ne.jp/~kenritu3/","先着順"]
[600,null,"広域（近隣市町村含む）向け","だれでもスケート教室①","スポーツ・健康 - スキー・スケート","二戸市","初心者・初級者向けのスケート教室",null,2021,11,7,2021,11,7,"30人","有料","保険料\n100円/1人","県北青少年の家","二戸市仁左平字放森61-35","県北青少年の家","0195\n23-9511","0195\n23-3874","kenritukenpoku@echna.ne.jp","http://www.echna.ne.jp/~kenritu3/","先着順"]
[601,null,"広域（近隣市町村含む）向け","だれでもスケート教室②","スポーツ・健康 - スキー・スケート","二戸市","初心者・初級者向けのスケート教室",null,2021,11,14,2021,11,14,"30人","有料","保険料\n100円/1人","県北青少年の家","二戸市仁左平字放森61-35","県北青少年の家","0195\n23-9511","0195\n23-3874","kenritukenpoku@echna.ne.jp","http://www.echna.ne.jp/~kenritu3/","先着順"]
[602,null,"広域（近隣市町村含む）向け","だれでもスケート教室③","スポーツ・健康 - スキー・スケート","二戸市","初心者・初級者向けのスケート教室",null,2021,11,21,2021,11,21,"30人","有料","保険料\n100円/1人","県北青少年の家","二戸市仁左平字放森61-35","県北青少年の家","0195\n23-9511","0195\n23-3874","kenritukenpoku@echna.ne.jp","http://www.echna.ne.jp/~kenritu3/","先着順"]
[603,null,"広域（近隣市町村含む）向け","スケートキッズ感謝デー","スポーツ・健康 - スキー・スケート","二戸市","初心者・初級者向けのスケート教室",null,2021,12,12,2021,12,12,"なし","一部無料","中学生以下\n無料\n高校生以上\n有料","県北青少年の家","二戸市仁左平字放森61-35","県北青少年の家","0195\n23-9511","0195\n23-3874","kenritukenpoku@echna.ne.jp","http://www.echna.ne.jp/~kenritu3/","先着順"]
[604,null,"広域（近隣市町村含む）向け","ウィンタースクール","教養・文化・スポーツ・健康－その他","二戸市","仲間づくり、雪上遊び、調理体験、プラネタリウム鑑賞等",null,2022,2,5,2022,2,6,"30人","有料","小学1・2年\n2,300円/1人","県北青少年の家","二戸市仁左平字放森61-35","県北青少年の家","0195\n23-9511","0195\n23-3874","kenritukenpoku@echna.ne.jp","http://www.echna.ne.jp/~kenritu3/","抽選"]
[605,null,"広域（近隣市町村含む）向け","ステラパル冬まつり","教養・文化・スポーツ・健康－その他","二戸市","創作活動、ニュースポーツ体験、ウインタースポーツ体験等",null,2022,2,11,2022,2,11,"なし","入場無料","創作体験等\n一部有料","県北青少年の家","二戸市仁左平字放森61-35","県北青少年の家","0195\n23-9511","0195\n23-3874","kenritukenpoku@echna.ne.jp","http://www.echna.ne.jp/~kenritu3/","先着順"]
[606,null,"広域（近隣市町村含む）向け","ステラパル冬遊塾","教養・文化・スポーツ・健康－その他","二戸市","仲間づくり、雪上遊び、カーリング体験等",null,2022,2,19,2022,2,20,"30人","有料","小学3-6年\n5,500円/1人","県北青少年の家","二戸市仁左平字放森61-35","県北青少年の家","0195\n23-9511","0195\n23-3874","kenritukenpoku@echna.ne.jp","http://www.echna.ne.jp/~kenritu3/","抽選"]
[607,null,"広域（近隣市町村含む）向け","自然体験活動セミナー①","スポーツ・健康 - 登山・野外活動","山田町","・火おこし体験・野外炊事・ｳｫｰｸﾗﾘｰ・テント設営\n・沢登りコース見学等　　　　　",null,2021,4,22,2021,4,22,null,"有料","460円","陸中海岸青少年の家","下閉伊郡山田町船越2－42","陸中海岸青少年の家","0193-84-3311","0193-84-3312 ","kenriturikuchu@echna.ne.jp","http://www.echna.ne.jp/~kenritu2/"]
[608,null,"広域（近隣市町村含む）向け","自然体験活動セミナー②","スポーツ・健康 - 登山・野外活動","山田町","・火おこし体験・野外炊事・ｳｫｰｸﾗﾘｰ・テント設営\n・沢登りコース見学等　　　　　",null,2021,5,13,2021,5,13,null,"有料","460円","陸中海岸青少年の家","下閉伊郡山田町船越2－42","陸中海岸青少年の家","0193-84-3311","0193-84-3312 ","kenriturikuchu@echna.ne.jp","http://www.echna.ne.jp/~kenritu2/"]
[609,null,"県民向け","海釣り道場","スポーツ・健康 - 登山・野外活動","山田町","A：日帰り船釣りメインコース\nB：１泊２日船釣りメインコース\nC：日帰り堤防釣りメインコース\nD：１泊２日堤防釣りメインコース",null,2021,5,1,2021,5,2,"60人","有料","2,000～8,000円","陸中海岸青少年の家・船越湾周辺海域","下閉伊郡山田町船越2－42","陸中海岸青少年の家","0193-84-3311","0193-84-3312 ","kenriturikuchu@echna.ne.jp","http://www.echna.ne.jp/~kenritu2/"]
[610,null,"広域（近隣市町村含む）向け","マリンランド陸中杯\nグラウンド・ゴルフ交流会①","スポーツ・健康 - 球技","山田町","グラウンド・ゴルフ交流会",null,2021,5,20,2021,5,20,"100人","有料","1,000円","陸中海岸青少年の家","下閉伊郡山田町船越2－42","陸中海岸青少年の家","0193-84-3311","0193-84-3312 ","kenriturikuchu@echna.ne.jp","http://www.echna.ne.jp/~kenritu2/"]
[611,null,"広域（近隣市町村含む）向け","マリンランド陸中杯\nグラウンド・ゴルフ交流会②","スポーツ・健康 - 球技","山田町","グラウンド・ゴルフ交流会",null,2021,9,2,2021,9,2,"100人","有料","1,000円","陸中海岸青少年の家","下閉伊郡山田町船越2－42","陸中海岸青少年の家","0193-84-3311","0193-84-3312 ","kenriturikuchu@echna.ne.jp","http://www.echna.ne.jp/~kenritu2/"]
[612,null,"広域（近隣市町村含む）向け","マリンランド陸中杯\nグラウンド・ゴルフ交流会③","スポーツ・健康 - 球技","山田町","グラウンド・ゴルフ交流会",null,2021,10,1,2021,10,1,"100人","有料","1,000円","陸中海岸青少年の家","下閉伊郡山田町船越2－42","陸中海岸青少年の家","0193-84-3311","0193-84-3312 ","kenriturikuchu@echna.ne.jp","http://www.echna.ne.jp/~kenritu2/"]
[613,null,"県民向け","アドバイザースタッフセミナー①　　　　　　　　","現代的課題 - ＮＰＯ・ボランティア","山田町","ネイチャーゲーム、沢登り、創作活動",null,2021,7,10,2021,7,10,"15人","有料","2,000円","陸中海岸青少年の家・浦の浜海水浴場","下閉伊郡山田町船越2－42","陸中海岸青少年の家","0193-84-3311","0193-84-3312 ","kenriturikuchu@echna.ne.jp","http://www.echna.ne.jp/~kenritu2/"]
[614,null,"県民向け","アドバイザースタッフセミナー②　　　　　　　","現代的課題 - ＮＰＯ・ボランティア","山田町","海洋スポーツ",null,2021,7,17,2021,7,17,"15人","有料","2,000円","陸中海岸青少年の家・浦の浜海水浴場","下閉伊郡山田町船越2－42","陸中海岸青少年の家","0193-84-3311","0193-84-3312 ","kenriturikuchu@echna.ne.jp","http://www.echna.ne.jp/~kenritu2/"]
[615,null,"市町村向け","マリンランド陸中自然体験塾\n①海の子野外教室","スポーツ・健康 - 登山・野外活動","山田町","海洋スポーツ体験・海水浴・いかだ遊び・テント設営・星空観察・沢登り・鯨と海の科学館見学等\n",null,2021,7,29,2021,7,31,"小学5・6年30名","有料","5,000円","陸中海岸青少年の家・浦の浜海水浴場","下閉伊郡山田町船越2－42","陸中海岸青少年の家","0193-84-3311","0193-84-3312 ","kenriturikuchu@echna.ne.jp","http://www.echna.ne.jp/~kenritu2/","多数の場合抽選あり"]
[616,null,"市町村向け","家族ふれあい塾\n家族ふれあいデイキャンプinマリンランド陸中\n（陸中海岸青少年の家）","スポーツ・健康 - 登山・野外活動","山田町","・キャンプ体験・沢遊び\n・アウトドアクッキング等",null,2021,8,28,2021,8,29,"10家族程度","有料","2,200円","陸中海岸青少年の家","下閉伊郡山田町船越2－42","陸中海岸青少年の家","0193-84-3311","0193-84-3312 ","kenriturikuchu@echna.ne.jp","http://www.echna.ne.jp/~kenritu2/","多数の場合抽選あり"]
[617,null,"市町村向け","マリンランド陸中自然体験塾\n②雪ん子野外教室　","スポーツ・健康 - スキー・スケート","盛岡市","スキー、雪遊び等\n",null,2022,1,12,2022,1,14,"小学5・6年30名","有料","6,000円","国立岩手山青少年交流の家・岩手高原スキー場","滝沢市後292","陸中海岸青少年の家","0193-84-3311","0193-84-3312 ","kenriturikuchu@echna.ne.jp","http://www.echna.ne.jp/~kenritu2/","多数の場合抽選あり"]
[618,null,"市町村向け","季節の味わい　～和菓子作り～","教養・文化 - 料理・お茶・お花・書道","山田町","季節の和菓子作り　午前・午後各1回",null,2022,1,29,2022,1,29,"各回25名","有料","700円","陸中海岸青少年の家","下閉伊郡山田町船越2－42","陸中海岸青少年の家","0193-84-3311","0193-84-3312 ","kenriturikuchu@echna.ne.jp","http://www.echna.ne.jp/~kenritu2/","多数の場合抽選あり"]
[619,null,"市町村向け","ハートフルキャラバン","スポーツ・健康 - レクリエーション",null,"・創作活動（プラ板・森の贈り物・マリンキャンドル等）\n・ニュースポーツ（ラダーゲッター・ニチレクボール等）",null,"通年",null,null,"通年",null,null,null,null,"創作活動費","陸中海岸青少年の家・各団体活動場所",null,"陸中海岸青少年の家","0193-84-3311","0193-84-3312 ","kenriturikuchu@echna.ne.jp","http://www.echna.ne.jp/~kenritu2/"]
[620,null,"市町村向け","やまびこキャラバン","スポーツ・健康 - レクリエーション",null,"・創作（プラ板・森の贈り物他）、もちつき体験\n・ニュースポーツ（シャフルボード・キンボール他）",null,"通年",null,null,"通年",null,null,null,null,"創作活動費","各団体活動場所",null,"陸中海岸青少年の家","0193-84-3311","0193-84-3312 ","kenriturikuchu@echna.ne.jp","http://www.echna.ne.jp/~kenritu2/"]
[621,"新規","広域（近隣市町村含む）向け","グラウンド・ゴルフ交流会\n（陸中海岸青少年の家）　","スポーツ・健康 - 球技","山田町","グラウンド・ゴルフ交流会",null,2021,4,15,2021,4,15,"100人","有料","300円","陸中海岸青少年の家","下閉伊郡山田町船越2－42","陸中海岸青少年の家","0193-84-3311","0193-84-3312 ","kenriturikuchu@echna.ne.jp","http://www.echna.ne.jp/~kenritu2/"]
[622,null,"県民向け","ワンダフルネイチャー\n①鯨山登山（山田町）","スポーツ・健康 - 登山・野外活動","山田町","・鯨山登山\n",null,2021,4,24,2021,4,24,"30名","有料","400円","陸中海岸青少年の家","下閉伊郡山田町船越2－42","陸中海岸青少年の家","0193-84-3311","0193-84-3312 ","kenriturikuchu@echna.ne.jp","http://www.echna.ne.jp/~kenritu2/"]
[623,"新規","市町村向け","沢の果てまでイッテQ","スポーツ・健康 - 登山・野外活動","山田町","・沢登り　　・バーベキュー\n・思い出の創作活動　　\n　※９海の子野外教室に参加できない子限定",null,2021,7,22,2021,7,22,"30名","有料","1,000円","陸中海岸青少年の家","下閉伊郡山田町船越2－42","陸中海岸青少年の家","0193-84-3311","0193-84-3312 ","kenriturikuchu@echna.ne.jp","http://www.echna.ne.jp/~kenritu2/"]
[624,null,"県民向け","マリンランド陸中フェスタ\n「感謝まつり」\n（陸中海岸青少年の家）","教養・文化 - その他","山田町","・ﾐﾆ発表会\n・創作・ニュースポーツ体験\n・火おこし体験\n・もちつき体験等",null,2021,9,26,2021,9,26,"なし",null,"創作材料費","陸中海岸青少年の家","下閉伊郡山田町船越2－42","陸中海岸青少年の家","0193-84-3311","0193-84-3312 ","kenriturikuchu@echna.ne.jp","http://www.echna.ne.jp/~kenritu2/"]
[625,null,"県民向け","ワンダフルネイチャー\n②兜明神岳登山\n　（宮古市区界）\n※区界高原少年自然の家共催事業","スポーツ・健康 - 登山・野外活動","山田町","・兜明神岳登山",null,2021,10,9,2021,10,9,"30名","有料","600円","陸中海岸青少年の家","下閉伊郡山田町船越2－42","陸中海岸青少年の家","0193-84-3311","0193-84-3312 ","kenriturikuchu@echna.ne.jp","http://www.echna.ne.jp/~kenritu2/"]
[626,null,"市町村向け","３施設連携事業\n「親子deチャレンジ！」\n（県北青少年の家）","現代的課題 - 子育て・家庭教育","山田町","・プラネタリウム鑑賞\n・スケート、カーリング体験\n・創作活動\n・夕食交流会",null,2021,10,30,2021,10,31,"7家族30名","有料","3,500円","陸中海岸青少年の家","下閉伊郡山田町船越2－42","陸中海岸青少年の家","0193-84-3311","0193-84-3312 ","kenriturikuchu@echna.ne.jp","http://www.echna.ne.jp/~kenritu2/","多数の場合抽選あり"]
[627,null,"県民向け","ワンダフルネイチャー\n③霞露ヶ岳トレッキング（山田町）","スポーツ・健康 - 登山・野外活動","山田町","・霞露ヶ岳トレッキング",null,2021,11,6,2021,11,6,"30名","有料","300円","陸中海岸青少年の家","下閉伊郡山田町船越2－42","陸中海岸青少年の家","0193-84-3311","0193-84-3312 ","kenriturikuchu@echna.ne.jp","http://www.echna.ne.jp/~kenritu2/"]
[628,null,"県民向け","親子でエンジョイ１day夜釣り\n（山田町　船越漁港）","スポーツ・健康 - 登山・野外活動","山田町","・仕掛けづくり\n・夜釣り（堤防釣り）等",null,2021,11,20,2021,11,20,"10家族40名","有料","1,300円","陸中海岸青少年の家","下閉伊郡山田町船越2－42","陸中海岸青少年の家","0193-84-3311","0193-84-3312 ","kenriturikuchu@echna.ne.jp","http://www.echna.ne.jp/~kenritu2/","多数の場合抽選あり"]
[629,null,"県民向け","創作ひろば①\n～アイディアとアレンジでXmas飾り作り～\n（陸中海岸青少年の家）","教養・文化 - 美術・工芸","山田町","・クリスマス飾り作り　午前午後各1回",null,2021,12,5,2021,12,5,"各部40名","有料","各500円","陸中海岸青少年の家","下閉伊郡山田町船越2－42","陸中海岸青少年の家","0193-84-3311","0193-84-3312 ","kenriturikuchu@echna.ne.jp","http://www.echna.ne.jp/~kenritu2/","多数の場合抽選あり"]
[630,null,"県民向け","創作ひろば②\n～アイディアとアレンジでお正月飾り作り～\n（陸中海岸青少年の家）","教養・文化 - 美術・工芸","山田町","・お正月飾り作り　午前午後各1回",null,2021,12,12,2021,12,12,"各部40名","有料","各500円","陸中海岸青少年の家","下閉伊郡山田町船越2－42","陸中海岸青少年の家","0193-84-3311","0193-84-3312 ","kenriturikuchu@echna.ne.jp","http://www.echna.ne.jp/~kenritu2/","多数の場合抽選あり"]
[631,null,"市町村向け","第43回陸中海岸\n剣道スポーツ少年団交歓会\n(陸中海岸青少年の家）","スポーツ・健康 - 武道","山田町","剣道交流試合",null,2022,2,5,2022,2,6,"100名","有料","1,720円","陸中海岸青少年の家","下閉伊郡山田町船越2－42","陸中海岸青少年の家","0193-84-3311","0193-84-3312 ","kenriturikuchu@echna.ne.jp","http://www.echna.ne.jp/~kenritu2/"]
[632,null,"市町村向け","第１4回マリンランド陸中\nミニバスケットボール交流会\n(山田中学校体育館等）","スポーツ・健康 - 球技","山田町","ミニバスケットボール交流試合　",null,2022,2,26,2022,2,27,"20チーム","有料","1ﾁｰﾑ2,000円","陸中海岸青少年の家・山田中学校体育館","下閉伊郡山田町船越2－42","陸中海岸青少年の家","0193-84-3311","0193-84-3312 ","kenriturikuchu@echna.ne.jp","http://www.echna.ne.jp/~kenritu2/"]
[633,null,"市町村向け","第１8回マリンランド陸中\nフットサル交流会\n(宮古市民総合体育館)","スポーツ・健康 - 球技","山田町","フットサル交流試合",null,2022,2,19,2022,2,20,"14チーム","有料","1ﾁｰﾑ3,000円","宮古市民総合体育館","宮古市小山田2丁目1-1","陸中海岸青少年の家","0193-84-3311","0193-84-3312 ","kenriturikuchu@echna.ne.jp","http://www.echna.ne.jp/~kenritu2/"]
[634,"新規","広域（近隣市町村含む）向け","謎解き1089（テンパーク）探偵団","スポーツ・健康 - レクリエーション","滝沢市","岩手山青少年交流の家館内に50枚のチェックカードが設置されています。家族で地図を頼りに，そのカードを探し謎解きをするものです。","日帰り事業",2021,null,"6/13,6/20,6/27\n7/4",2021,null,null,"なし","無料",null,"国立岩手山青少年交流の家","滝沢市後292","国立岩手山青少年交流の家","019-688-4221",null,"iwate@niye.go.jp"]
[635,"新規","広域（近隣市町村含む）向け","テンパークスタンプラリー３１","スポーツ・健康 - レクリエーション","滝沢市","岩手山青少年交流の家の敷地内に35個のスタンプが設置してあり，31個以上のスタンプを発見し，パスポートにスタンプをついて集めるものです。","日帰り事業",2021,null,"9/12,9/19,9/26",2021,null,null,"なし","無料",null,"国立岩手山青少年交流の家","滝沢市後292","国立岩手山青少年交流の家","019-688-4221",null,"iwate@niye.go.jp"]
[636,"新規","広域（近隣市町村含む）向け","テンパークスタンプラリー４６","スポーツ・健康 - レクリエーション","滝沢市","岩手山青少年交流の家の敷地内に50個のスタンプが設置してあり，46個以上のスタンプを発見し，パスポートにスタンプをついて集めるものです。","日帰り事業",2021,null,"10/10,10/17,10,24",2021,null,null,"なし","無料",null,"国立岩手山青少年交流の家","滝沢市後292","国立岩手山青少年交流の家","019-688-4221",null,"iwate@niye.go.jp"]
[637,"新規","広域（近隣市町村含む）向け","テンパークスタンプラリー・スノーシュー","スポーツ・健康 - レクリエーション","滝沢市","岩手山青少年交流の家の冬の敷地内に35個のスタンプが設置してあり，スノーシューを履いて31個以上のスタンプを発見し，パスポートにスタンプをついて集めるものです。","日帰り事業",2022,null,"1/30,2/6,2/13",2022,null,null,"なし","無料",null,"国立岩手山青少年交流の家","滝沢市後292","国立岩手山青少年交流の家","019-688-4221",null,"iwate@niye.go.jp"]
[638,"新規","市町村向け","防災キャンプ","学術一般 - 教育","滝沢市","避難生活型の防災キャンプを実施します。子供たちが災害時の不自由さや不便さを体験し，日ごろから防災の備えが大切であることに気づき，災害時には「自分の命は自分で守る」「お互いに助け合う」という「自助」「共助」の気持ちを育みます。",null,2021,9,4,2021,9,5,30,"検討中",null,"国立岩手山青少年交流の家","滝沢市後292","国立岩手山青少年交流の家","019-688-4221",null,"iwate@niye.go.jp",null,"応募多数の場合，抽選です"]
[639,null,"広域（近隣市町村含む）向け","親子ビギナーズキャンプ","スポーツ・健康 - レクリエーション","滝沢市","全国各地でキャンプの人気が高まっていることから，テント設営やアウトドアクッキング、アウトドアの体験を通してキャンプの方法を学びます。",null,2021,7,3,2021,7,4,"20家族80名","2,000円程度",null,"国立岩手山青少年交流の家","滝沢市後292","国立岩手山青少年交流の家","019-688-4221",null,"iwate@niye.go.jp",null,"応募多数の場合，抽選です"]
[640,"新規","広域（近隣市町村含む）向け","親子ウィンターキャンプ","スポーツ・健康 - レクリエーション","滝沢市","小学校低学年とその家族が，雪上レクリエーションやスキー体験を行います。",null,2022,1,15,2022,1,16,"15家族50名","検討中",null,"国立岩手山青少年交流の家","滝沢市後292","国立岩手山青少年交流の家","019-688-4221",null,"iwate@niye.go.jp",null,"応募多数の場合，抽選です"]

{"sheet":"個別データ","index":2,"n_rows":17,"n_cols":16,"rows_kept":17,"cut":false,"hidden":false,"merged":[[10,3,10,15],[15,3,15,15],[16,3,16,15],[11,3,11,15],[12,3,12,15],[13,3,13,15],[14,3,14,15],[2,9,2,15],[9,3,9,6],[9,7,9,15],[3,1,3,2],[2,1,2,2],[2,3,2,5],[2,6,2,8],[4,1,4,2],[3,3,3,15],[4,3,4,15],[5,1,5,2],[8,1,8,2],[6,3,6,15],[7,3,7,15],[8,3,8,15],[15,1,15,2],[16,1,16,2],[11,1,14,1],[6,1,7,1],[9,1,9,2],[10,1,10,2]]}
[]
[]
[null,"項番",null,1,null,null,"分類",null,null,{"$f":"VLOOKUP($D$3,'2021講座イベント情報'!$A$2:$Y$4070,5,0)","v":"現代的課題 - 子育て・家庭教育"}]
[null,"事業名",null,{"$f":"VLOOKUP($D$3,'2021講座イベント情報'!$A$2:$Y$4070,4,0)","v":"図書バッグ作り講座"}]
[null,"内容",null,{"$f":"VLOOKUP($D$3,'2021講座イベント情報'!$A$2:$Y$4070,7,0)","v":"児童保護者を対象とした，図書室利用の際に役立つエコバッグを児童書のデザインを参考にしながら制作。"}]
[null,"開催日",null,{"$f":"VLOOKUP($D$3,'2021講座イベント情報'!$A$2:$Y$4070,9,0)","v":2022},"年",{"$f":"VLOOKUP($D$3,'2021講座イベント情報'!$A$2:$Y$4070,10,0)","v":3},"月",{"$f":"VLOOKUP($D$3,'2021講座イベント情報'!$A$2:$Y$4070,11,0)","v":0},"日","～",{"$f":"VLOOKUP($D$3,'2021講座イベント情報'!$A$2:$Y$4070,12,0)","v":2022},"年",{"$f":"VLOOKUP($D$3,'2021講座イベント情報'!$A$2:$Y$4070,13,0)","v":3},"月",{"$f":"VLOOKUP($D$3,'2021講座イベント情報'!$A$2:$Y$4070,14,0)","v":0},"日"]
[null,"開催場所","名称",{"$f":"VLOOKUP($D$3,'2021講座イベント情報'!$A$2:$Y$4070,18,0)","v":"盛岡市中央公民館"}]
[null,null,"住所",{"$f":"VLOOKUP($D$3,'2021講座イベント情報'!$A$2:$Y$4070,19,0)","v":"盛岡市愛宕町14-1"}]
[null,"県民向け・市町村向け",null,{"$f":"VLOOKUP($D$3,'2021講座イベント情報'!$A$2:$Y$4070,3,0)","v":"市町村向け"}]
[null,"費用",null,{"$f":"VLOOKUP($D$3,'2021講座イベント情報'!$A$2:$Y$4070,16,0)","v":"無料"},null,null,null,{"$f":"VLOOKUP($D$3,'2021講座イベント情報'!$A$2:$Y$4070,17,0)","v":0}]
[null,"定員",null,{"$f":"VLOOKUP($D$3,'2021講座イベント情報'!$A$2:$Y$4070,15,0)","v":0}]
[null,"問い合わせ先","名称",{"$f":"VLOOKUP($D$3,'2021講座イベント情報'!$A$2:$Y$4070,20,0)","v":"盛岡市中央公民館"}]
[null,null,"電話番号",{"$f":"VLOOKUP($D$3,'2021講座イベント情報'!$A$2:$Y$4070,21,0)","v":"019-654-5366"}]
[null,null,"ＦＡＸ番号",{"$f":"VLOOKUP($D$3,'2021講座イベント情報'!$A$2:$Y$4070,22,0)","v":"019-653-3505"}]
[null,null,"Ｅ-ＭＡＩＬ",{"$f":"VLOOKUP($D$3,'2021講座イベント情報'!$A$2:$Y$4070,23,0)","v":"chuo.ph@city.morioka.iwate.jp"}]
[null,"備考",null,{"$f":"VLOOKUP($D$3,'2021講座イベント情報'!$A$2:$Y$4070,25,0)","v":"先着順"}]
[null,"関連サイトＵＲＬ",null,{"$f":"VLOOKUP($D$3,'2021講座イベント情報'!$A$2:$Y$4070,24,0)","v":"http://www.city.morioka.iwate.jp/kurashi/kokyoshisetsu/kominkan/chuo/index.html"}]

{"sheet":"選択リスト","index":3,"n_rows":40,"n_cols":7,"rows_kept":40,"cut":false,"hidden":false,"merged":[[1,0,1,1],[2,0,3,0],[2,3,36,3],[8,0,10,0],[12,0,17,0],[19,0,21,0],[5,0,6,0]]}
[]
["【選択用リスト】"]
["該当あり",null,null,"開催場所\n市町村","盛岡市",null,"現代的課題 - 子育て・家庭教育"]
[null,"○",null,null,"雫石町",null,"現代的課題 - 環境・自然保護"]
[null,null,null,null,"葛巻町",null,"現代的課題 - 男女共同参画"]
["更新種別","新規",null,null,"岩手町",null,"現代的課題 - 高齢化・介護・福祉"]
[null,"継続",null,null,"八幡平市",null,"現代的課題 - ＮＰＯ・ボランティア"]
[null,null,null,null,"滝沢市",null,"現代的課題 - まちづくり"]
["県民・市町村向け","県民向け",null,null,"紫波町",null,"現代的課題 - 語学・国際理解"]
[null,"市町村向け",null,null,"矢巾町",null,"学術一般 - 歴史・地理・民俗"]
[null,"広域",null,null,"花巻市",null,"学術一般 - 心理・哲学・法律"]
[null,null,null,null,"北上市",null,"学術一般 - 教育"]
[null,null,null,null,"西和賀町",null,"学術一般 - 物理・天文・地学"]
[null,null,null,null,"奥州市",null,"学術一般 - 自然・動植物"]
[null,null,null,null,"金ヶ崎町",null,"学術一般 - 医学・薬学"]
[null,null,null,null,"平泉町",null,"学術一般 - その他"]
[null,null,null,null,"一関市",null,"教養・文化 - 美術・工芸"]
[null,null,null,null,"大船渡市",null,"教養・文化 - 音楽"]
[null,null,null,null,"陸前高田市",null,"教養・文化 - 文学"]
[null,null,null,null,"住田町",null,"教養・文化 - 舞踏・演劇"]
[null,null,null,null,"遠野市",null,"教養・文化 - 郷土芸能"]
[null,null,null,null,"釜石市",null,"教養・文化 - 料理・お茶・お花・書道"]
[null,null,null,null,"大槌町",null,"教養・文化 - その他"]
[null,null,null,null,"宮古市",null,"スポーツ・健康 - マラソン・陸上"]
[null,null,null,null,"山田町",null,"スポーツ・健康 - 球技"]
[null,null,null,null,"岩泉町",null,"スポーツ・健康 - 武道"]
[null,null,null,null,"田野畑村",null,"スポーツ・健康 - 水泳"]
[null,null,null,null,"川井村",null,"スポーツ・健康 - スキー・スケート"]
[null,null,null,null,"久慈市",null,"スポーツ・健康 - 健康・予防"]
[null,null,null,null,"普代村",null,"スポーツ・健康 - 登山・野外活動"]
[null,null,null,null,"洋野町",null,"スポーツ・健康 - レクリエーション"]
[null,null,null,null,"野田村",null,"スポーツ・健康 - その他"]
[null,null,null,null,"二戸市",null,"ビジネスライフ - 経営管理"]
[null,null,null,null,"軽米町",null,"ビジネスライフ - 土木・建築"]
[null,null,null,null,"九戸村",null,"ビジネスライフ - 機械・電気・工学"]
[null,null,null,null,"一戸町",null,"ビジネスライフ - ISO・知的財産"]
[null,null,null,null,null,null,"ビジネスライフ - 農林水産"]
[null,null,null,null,null,null,"ビジネスライフ - 産業振興"]
[null,null,null,null,null,null,"ビジネスライフ - その他"]
[null,null,null,null,null,null,"パソコン - パソコン"]